Workbook

Sheet Cover
BS1: =COUNTA(BS3:BS50) -> 6 | BT1: =COUNTA(BT3:BT50) -> 9 | BU1: 7 | BV1: 8 | BW1: 5 | BX1: 6 | BY1: 6 | BZ1: 3 | CA1: 5 | CB1: 5 | CC1: 8 | CD1: 8 | CE1: =COUNTA(CE3:CE50) -> 8 | CF1: =COUNTA(CF3:CF50) -> 4 | CH1: =16-COUNTBLANK(CI3:CI22) -> 3 | CQ1: Once-off adjustments to base | DG1: Personnel | EZ1: Inflator | FA1: 0.056
AA2: 749 | AY2: SIP Category | AZ2: Econ Class for ODA | BA2: Year | BB2: Lookup ID | BC2: EconClass | BD2: Outcomes - fixed | BE2: InfraList1 | BF2: InfraList2 | BG2: InfraList3 | BH2: InfraList4 | BI2: ODAList1 | BJ2: ListedProgs | BL2: =MAX(BL3:BL18) -> 6 | BM2: ProgList | BO2: InfraS dropdown list | BQ2: DoR Cat | BS2: Outputs-1 | BT2: Outputs-2 | BU2: Outputs-3 | BV2: Outputs-4 | BW2: Outputs-5 | BX2: Outputs-6 | BY2: Outputs-7 | BZ2: Outputs-8 | CA2: Outputs-9 | CB2: Outputs-10 | CC2: Outputs-11 | CD2: Outputs-12 | CE2: Outputs-13 | CF2: Outputs-14 | CI2: Array Range to lock | CQ2: Department | CR2: Programme | CS2: Subprogramme | CT2: Econ1 | CU2: Econ5 | CV2: Empty1 | CW2: 2019/20 amount above 5.6% growth | CX2: Empty2 | CY2: Trans_Indi | CZ2: Sprog_Indi | DA2: Econc_Indi | DG2: Department | DH2: Programme | DI2: Salary Level | DJ2: 2015/16 - Number of posts on approved establishment as at 30 June 2015 | DK2: 2015/16 - Number of posts on funded establishment as at 30 June 2015 | DL2: 2015/16 - Number of posts additional to the establishment as at 30 June 2015 | DM2: 2014/15 - Number of posts filled | DN2: 2014/15 - Expenditure on posts filled | DO2: 2015/16 - Number of all posts to be filled | DP2: 2015/16 - Expenditure on all posts to be filled | DQ2: 2016/17 - Number of all posts to be filled | DR2: 2016/17 - Expenditure on all posts to be filled | DS2: 2017/18 - Number of all posts to be filled | DT2: 2017/18 - Expenditure on all posts to be filled | DU2: 2018/19 - Number of all posts to be filled | DV2: 2018/19 - Expenditure on all posts to be filled | DW2: Combo_DeptProg | DX2: DeptCode | DY2: ProgCode | DZ2: DeptProg_Combo_Code | ED2: Budgets - ENE 2018 | GK2: Sheet Names | GL2: Lock | GM2: Hide | GN2: Index
AY3: Not related to SIPs | AZ3: Compensation of employees | BA3: 2015/16 | BB3: 111 | BC3: Provincial Revenue Funds | BD3: OUTCOME 1: QUALITY BASIC EDUCATION | BE3: Programme | BF3: New infrastructure assets | BG3: Site identification | BH3: Mega | BI3: Long term technical assistance | BJ3: =IF(Summary!F31=0,Direct_charges!$H$8,Summary!F31) -> Strategic Leadership and Governance | BK3: 1 | BL3: =IF(BM3<>"",BK3,0) -> 1 | BM3: =IF(BK3>PListed,"",Cover!BJ3) -> Strategic Leadership and Governance | BN3: 1 | BO3: =IF(ISERROR(INDEX(($BM$3:$BM$18),MATCH(BN3,$BL$3:$BL$18,0))),"",INDEX(($BM$3:$BM$18),MATCH(BN3,$BL$3:$BL$18,0))) -> Strategic Leadership and Governance | BQ3: National | BS3: Improved quality of teaching and learning through development, supply and effective utilisation of teachers | BT3: Average male and female life expectancy at birth increased to 70 years | BU3: Reduced levels of contact crime | BV3: Productive investment is effectively crowded in through the infrastructure build programme | BW3: Establish a credible institutional mechanism for skills planning | BX3: Regulation, funding and investment improved | BY3: Improved land administration and spatial planning for integrated development in rural areas | BZ3: Adequate housing and improved quality living environments | CA3: Members of society have sustainable and reliable access to basic services. | CB3: Ecosystems are sustained and natural resources are used efficiently | CC3: SA’s national priorities advanced in bilateral engagements | CD3: A stable political-administrative interface | CE3: Current social welfare system reformed to deliver better results for vulnerable groups | CF3: Fostering Constitutional values | CH3: 1 | CI3: V185:W274,V276:W289 | CQ3: National Treasury | CR3: Direct charge against the National Revenue Fund | CS3: Provincial Equitable Share | CV3: 0 | CW3: 0 | CX3: 0 | CY3: =+CQ3&CR3&CS3&CT3&CU3 -> National TreasuryDirect charge against the National Revenue FundProvincial Equitable Share | CZ3: =+CQ3&CR3&CS3 -> National TreasuryDirect charge against the National Revenue FundProvincial Equitable Share | DA3: =+CQ3&CR3&CS3&CU3 -> National TreasuryDirect charge against the National Revenue FundProvincial Equitable Share | DG3: The Presidency | DH3: Administration | DI3: 1 | DJ3: 0 | DK3: 40 | DL3: 40 | DM3: 32 | DN3: 2302 | DO3: 40 | DP3: 2335 | DQ3: 40 | DR3: 2396 | DS3: 40 | DT3: 2559 | DU3: 40 | DV3: 2707 | DW3: =Cover!$DG3&"|"&Cover!$DH3 -> The Presidency|Administration | DX3: =INDEX(($FC$4:$FC$4931),MATCH(Cover!$DG3,$EF$4:$EF$4931,0)) -> 001 | DY3: =INDEX(($FD$4:$FD$4931),MATCH(Cover!$DH3,$EH$4:$EH$4931,0)) -> 001 | DZ3: =Cover!$DX3&Cover!$DY3 -> 001001 | ED3: Lookup_Lvl_No | EE3: Vote No. | EF3: Department | EG3: Programme No. | EH3: Programme | EI3: Subprogramme No. | EJ3: Subprogramme | EK3: Econ2 | EL3: Econ3 | EM3: Econ4 | EN3: 2015/16 | EO3: 2016/17 | EP3: 2017/18 MA | EQ3: 2017/18 AA | ER3: 2017/18 RE | ES3: 2018/19 | ET3: 2019/20 | EU3: 2020/21 | EV3: 2017_18_Pre-Audited | EW3: 2019_20 NR | EX3: 2020_21 NR | EY3: 2019_20 IB | EZ3: 2020_21 IB | FA3: 2021_22 IB | FB3: Combo_DeptProg | FC3: DeptCode | FD3: ProgCode | FE3: SProgCode | FF3: ItemCode | FG3: DeptProg_Combo_Code | FH3: DeptEcon_Combo_Code | FI3: Econ3/4 ID | FJ3: DPSP_Econ_Combo | FK3: Econ_Id | FL3: DeptProgEcon_Combo_Code | FS3: Lookup_Lvl_No | FT3: Vote No. | FU3: Department | FV3: Programme No. | FW3: Programme | FX3: Subprogramme No. | FY3: Subprogramme | FZ3: Econ2 | GA3: Econ3 | GB3: Econ4 | GK3: Settings | GL3: 1 | GM3: 1 | GN3: 1
AY4: SIP 1: Unlocking the northern mineral belt with Waterberg as Catalyst | AZ4: Goods and services | BA4: 2016/17 | BB4: 112 | BC4: Provincial agencies and funds | BD4: OUTCOME 2: A LONG AND HEALTHY LIFE FOR ALL SOUTH AFRICANS | BE4: Project | BF4: Upgrading and additions | BG4: Pre-feasibility | BH4: Large | BI4: Short term technical assistance | BJ4: =IF(OR(BJ3="Direct_charges",BJ3=""),"",IF(Summary!F32=0,"Direct_charges",Summary!F32)) -> Administration | BK4: 2 | BL4: =IF(BM4<>"",MAX(BL$3:BL3)+1,0) -> 2 | BM4: =IF(BK4>PListed,"",Cover!BJ4) -> Administration | BN4: 2 | BO4: =IF(ISERROR(INDEX(($BM$3:$BM$18),MATCH(BN4,$BL$3:$BL$18,0))),"",INDEX(($BM$3:$BM$18),MATCH(BN4,$BL$3:$BL$18,0))) -> Administration | BQ4: Provincial equitable share | BR4: =PM!F123 -> Provincial Revenue Funds | BS4: Improve the quality of teaching and learning through provision of Infrastructure and learning materials | BT4: Tuberculosis (TB) prevention and cure progressively improved | BU4: An efficient and effective criminal Justice system | BV4: The productive sectors account for a growing share of production and employment, exports are diversified, African regional development is accelerated, the carbon intensity of growth is reduced, knowledge and technology support increasingly inclusive and dynamic growth, and the organs of the state improve their alignment in support of employment-creating growth | BW4: Increase access to programmes leading to intermediate and high level learning | BX4: Reliable generation, transmission and distribution of energy ensured | BY4: Sustainable Land Reform (agrarian transformation) | BZ4: A functionally equitable residential property market | CA4: Intergovernmental and democratic governance arrangements for a functional system of cooperative governance strengthened. | CB4: An effective climate change mitigation and adaptation response | CC4: An economically integrated Southern Africa | CD4: A public service that is a career of choice | CE4: Improved monitoring, evaluation, accountability and quality assurance | CF4: Equal opportunities, inclusion and redress | CH4: 2 | CI4: AE185:AF274,AE276:AF289 | CQ4: Cooperative Governance And Traditional Affairs | CR4: Institutional Development | CS4: Local government equitable share | CT4: Current | CU4: Municipal bank accounts | CV4: 0 | CW4: 0 | CX4: 0 | CY4: =+CQ4&CR4&CS4&CT4&CU4 -> Cooperative Governance And Traditional AffairsInstitutional DevelopmentLocal government equitable shareCurrentMunicipal bank accounts | CZ4: =+CQ4&CR4&CS4 -> Cooperative Governance And Traditional AffairsInstitutional DevelopmentLocal government equitable share | DA4: =+CQ4&CR4&CS4&CU4 -> Cooperative Governance And Traditional AffairsInstitutional DevelopmentLocal government equitable shareMunicipal bank accounts | DG4: The Presidency | DH4: Administration | DI4: 2 | DJ4: 51 | DK4: 51 | DL4: 0 | DM4: 49 | DN4: 6488 | DO4: 45 | DP4: 7235 | DQ4: 45 | DR4: 7758 | DS4: 45 | DT4: 8148 | DU4: 50 | DV4: 9496 | DW4: The Presidency|Administration | DX4: 001 | DY4: 001 | DZ4: 001001 | EC4: 111 | ED4: =+INDEX(($FS$4:$FS$27),MATCH(EM4,$GB$4:$GB$27,0)) -> 1 | EE4: 1 | EF4: The Presidency | EG4: 1 | EH4: Administration | EI4: 1 | EJ4: Management | EK4: Current payments | EL4: Compensation of employees | EM4: Compensation of employees | EN4: 197360 | EO4: 209875 | EP4: 220293 | EQ4: 220293 | ER4: 220293 | ES4: 225123 | ET4: 242434 | EU4: 260617 | EV4: 0 | EW4: 0 | EX4: 0 | EY4: =+ET4+EW4 -> 242434 | EZ4: =+EU4+EX4 -> 260617 | FA4: 277557 | FB4: =+EF4&"|"&EH4 -> The Presidency|Administration | FC4: =REPT("0",3-LEN(EE4))&EE4 -> 001 | FD4: =REPT("0",3-LEN(EG4))&EG4 -> 001 | FE4: =REPT("0",3-LEN(EI4))&EI4 -> 001 | FF4: =REPT("0",3-LEN(ED4))&ED4 -> 001 | FG4: =+FC4&FD4 -> 001001 | FH4: =+FC4&FF4 -> 001001 | FI4: =+FF4*1 -> 1 | FJ4: =FG4&FE4&REPT("0",3-LEN(FI4))&FI4 -> 001001001001 | FL4: =LEFT(FJ4,6)&FF4 -> 001001001 | FS4: 1 | FT4: 1 | FU4: The Presidency | FV4: 1 | FW4: Administration | FX4: 1 | FY4: Management | FZ4: Current payments | GA4: Compensation of employees | GB4: Compensation of employees | GK4: Summary | GL4: 1 | GM4: 0 | GN4: 2
AY5: SIP 2: Durban-Free State Gauteng Logistics and Industrial Corridor | AZ5: Provinces and municipalities | BA5: 2017/18 | BB5: 113 | BC5: Municipal bank accounts | BD5: OUTCOME 3: ALL PEOPLE IN SOUTH AFRICA ARE AND FEEL SAFE | BF5: Rehabilitation and refurbishment | BG5: Feasibility | BH5: Small | BI5: Conferences / workshops | BJ5: =IF(OR(BJ4="Direct_charges",BJ4=""),"",IF(Summary!F33=0,"Direct_charges",Summary!F33)) -> Core Business | BK5: 3 | BL5: =IF(BM5<>"",MAX(BL$3:BL4)+1,0) -> 3 | BM5: =IF(BK5>PListed,"",Cover!BJ5) -> Core Business | BN5: 3 | BO5: =IF(ISERROR(INDEX(($BM$3:$BM$18),MATCH(BN5,$BL$3:$BL$18,0))),"",INDEX(($BM$3:$BM$18),MATCH(BN5,$BL$3:$BL$18,0))) -> Core Business | BQ5: Provincial conditional grants (Direct) | BR5: =PM!F123 -> Provincial Revenue Funds | BS5: Regular annual national assessments to track improvements in the quality of teaching and learning (ANA) | BT5: Maternal, Infant and Child Mortality reduced | BU5: South Africa’s borders effectively defended, protected, secured and well-managed | BV5: The elimination of unnecessary regulatory burdens and lower price increases for key inputs and wage goods fosters investment and economic growth | BW5: Increase access to occupationally-directed programmes in needed areas and thereby expand the availability of intermediate level skills (with special focus on artisan skills) | BX5: Maintenance, strategic expansion, operational efficiency, capacity and competitiveness of our logistics and transport infrastructure ensured | BY5: Improved food security | BZ5: Enhanced institutional capabilities for effective coordination of spatial investment decisions | CA5: Sound financial and administrative management. | CB5: An environmentally sustainable, low-carbon economy resulting from a well-managed just transition | CC5: Political cohesion within Southern Africa to ensure a peaceful, secure and stable Southern African region | CD5: Sufficient technical and specialist professional skills | CE5: Development of more sustainable model of funding social development | CF5: Using sport and recreation to promote social cohesion | CH5: 3 | CI5: AN185:AO274,AN276:AO289 | CQ5: Cooperative Governance And Traditional Affairs | CR5: Local Government Support and Intervention Management | CS5: Municipal Infrastructure Support Agency | CT5: Current | CU5: Departmental agencies and accounts | CV5: 0 | CW5: 0 | CX5: 0 | CY5: Cooperative Governance And Traditional AffairsLocal Government Support and Intervention ManagementMunicipal Infrastructure Support AgencyCurrentDepartmental agencies and accounts | CZ5: Cooperative Governance And Traditional AffairsLocal Government Support and Intervention ManagementMunicipal Infrastructure Support Agency | DA5: Cooperative Governance And Traditional AffairsLocal Government Support and Intervention ManagementMunicipal Infrastructure Support AgencyDepartmental agencies and accounts | DG5: The Presidency | DH5: Administration | DI5: 3 | DJ5: 9 | DK5: 9 | DL5: 0 | DM5: 14 | DN5: 1845 | DO5: 9 | DP5: 1607 | DQ5: 9 | DR5: 1705 | DS5: 9 | DT5: 1798 | DU5: 9 | DV5: 1901 | DW5: The Presidency|Administration | DX5: 001 | DY5: 001 | DZ5: 001001 | EC5: 111 | ED5: =+INDEX(($FS$4:$FS$27),MATCH(EM5,$GB$4:$GB$27,0)) -> 2 | EE5: 1 | EF5: The Presidency | EG5: 1 | EH5: Administration | EI5: 1 | EJ5: Management | EK5: Current payments | EL5: Goods and services | EM5: Goods and services | EN5: 95692 | EO5: 113356 | EP5: 101982 | EQ5: 104710 | ER5: 104710 | ES5: 100585 | ET5: 106102 | EU5: 112136 | EV5: 0 | EW5: 0 | EX5: 0 | EY5: =+ET5+EW5 -> 106102 | EZ5: =+EU5+EX5 -> 112136 | FA5: 118303 | FB5: =+EF5&"|"&EH5 -> The Presidency|Administration | FC5: =REPT("0",3-LEN(EE5))&EE5 -> 001 | FD5: =REPT("0",3-LEN(EG5))&EG5 -> 001 | FE5: =REPT("0",3-LEN(EI5))&EI5 -> 001 | FF5: =REPT("0",3-LEN(ED5))&ED5 -> 002 | FG5: =+FC5&FD5 -> 001001 | FH5: =+FC5&FF5 -> 001002 | FI5: =+FF5*1 -> 2 | FJ5: =FG5&FE5&REPT("0",3-LEN(FI5))&FI5 -> 001001001002 | FL5: =LEFT(FJ5,6)&FF5 -> 001001002 | FS5: 2 | FT5: 1 | FU5: The Presidency | FV5: 1 | FW5: Administration | FX5: 2 | FY5: Support Service to President | FZ5: Transfers and subsidies | GA5: Goods and services | GB5: Goods and services | GK5: 1 | GL5: 1 | GM5: 0 | GN5: 3
B6: Department | AY6: Sip 3: South eastern note and corridor development | AZ6: Departmental agencies and accounts | BA6: 2018/19 | BB6: 114 | BC6: Municipal agencies and funds | BD6: OUTCOME 4: DECENT EMPLOYMENT THROUGH INCLUSIVE GROWTH | BF6: Maintenance and repair | BG6: Design | BI6: Study tours | BJ6: =IF(OR(BJ5="Direct_charges",BJ5=""),"",IF(Summary!F34=0,"Direct_charges",Summary!F34)) -> Support Services | BK6: 4 | BL6: =IF(BM6<>"",MAX(BL$3:BL5)+1,0) -> 4 | BM6: =IF(BK6>PListed,"",Cover!BJ6) -> Support Services | BN6: 4 | BO6: Support Services | BQ6: Local government equitable share | BR6: =PM!F126 -> Municipal bank accounts | BS6: Improved Grade R and planning for extension of ECD | BT6: Prevalence of Non-Communicable Diseases reduced by 28% | BU6: Secure cyber space | BV6: Workers’ education and skills increasingly meet economic needs | BW6: Increase access to high-level occupationally directed programmes in needed areas | BX6: Maintenance and supply availability of our bulk water resources infrastructure ensured | BY6: Smallholder producers' development and support (technical, financial, infrastructure) for agrarian transformation | CA6: Promotion of social and economic development. | CB6: Enhanced governance systems and capacity | CC6: A Peaceful, secure and stable Africa | CD6: Efficient and effective management and operations systems | CE6: Increased human resource capacity in the social development sector | CF6: Promoting active citizenry and leadership | CH6: 4 | CI6: V298:W310,AE298:AF310,AN298:AO310 | CQ6: Social Development | CR6: Social Assistance | CS6: Old Age | CT6: Current | CU6: Social benefits | CV6: 0 | CW6: 0 | CX6: 0 | CY6: Social DevelopmentSocial AssistanceOld AgeCurrentSocial benefits | CZ6: Social DevelopmentSocial AssistanceOld Age | DA6: Social DevelopmentSocial AssistanceOld AgeSocial benefits | DG6: The Presidency | DH6: Administration | DI6: 4 | DJ6: 84 | DK6: 90 | DL6: 6 | DM6: 85 | DN6: 18683 | DO6: 88 | DP6: 18324 | DQ6: 88 | DR6: 19443 | DS6: 88 | DT6: 20503 | DU6: 90 | DV6: 22148 | DW6: The Presidency|Administration | DX6: 001 | DY6: 001 | DZ6: 001001 | EC6: 111 | ED6: 3 | EE6: 1 | EF6: The Presidency | EG6: 1 | EH6: Administration | EI6: 1 | EJ6: Management | EK6: Current payments | EL6: Interest and rent on land | EM6: Interest and rent on land | EN6: 0 | EO6: 46 | EP6: 0 | EQ6: 0 | ER6: 0 | ES6: 0 | ET6: 0 | EU6: 0 | EV6: 0 | EW6: 0 | EX6: 0 | EY6: 0 | EZ6: 0 | FA6: 0 | FB6: The Presidency|Administration | FC6: 001 | FD6: 001 | FE6: 001 | FF6: 003 | FG6: 001001 | FH6: 001003 | FI6: 3 | FJ6: 001001001003 | FL6: 001001003 | FS6: 3 | FT6: 1 | FU6: The Presidency | FV6: 1 | FW6: Administration | FX6: 3 | FY6: Support Service to Deputy President | FZ6: Payments for capital assets | GA6: Interest and rent on land | GB6: Interest and rent on land | GK6: 2 | GL6: 1 | GM6: 0 | GN6: 4
B7: Parliament | AY7: SIP 4: Unlocking the economic opportunities in the Both West Province | AZ7: Higher education institutions | BA7: 2019/20 | BB7: 115 | BC7: Social security funds | BD7: OUTCOME 5: A SKILLED AND CAPABLE WORKFORCE TO SUPPORT AN INCLUSIVE GROWTH PATH | BG7: Tender | BI7: Training | BJ7: =IF(OR(BJ6="Direct_charges",BJ6=""),"",IF(Summary!F35=0,"Direct_charges",Summary!F35)) -> Associated Services | BK7: 5 | BL7: =IF(BM7<>"",MAX(BL$3:BL6)+1,0) -> 5 | BM7: =IF(BK7>PListed,"",Cover!BJ7) -> Associated Services | BN7: 5 | BO7: Associated Services | BQ7: Local government conditional grants (Direct) | BR7: =PM!F126 -> Municipal bank accounts | BS7: A credible, outcomes-focused planning and accountability system (building the capacity of the state to intervene and support quality education) | BT7: Injury, accidents and violence reduced by 50% from 2010 levels | BU7: Ensure Domestic Stability | BV7: Macroeconomic conditions support employment-creating growth | BW7: Strengthen the governance, management and student support in post school education and training institutions | BX7: Expansion, modernisation, access and affordability of our Information and communications infrastructure ensured | BY7: Increased access to quality infrastructure and services, particularly in education, healthcare and public transport in rural areas | CA7: Local public employment programmes expanded through the Community Work Programme. | CB7: Sustainable human communities | CC7: A sustainable developed and economically integrated Africa | CD7: Procurement systems that deliver value for money | CE7: Deepening social assistance and expanding access to social security | CH7: 5 | CI7: V356:W365,V370:W371,V373:W410,V412:W413,V440:W441,V443:W449 | CQ7: Social Development | CR7: Social Assistance | CS7: War Veterans | CT7: Current | CU7: Social benefits | CV7: 0 | CW7: 0 | CX7: 0 | CY7: Social DevelopmentSocial AssistanceWar VeteransCurrentSocial benefits | CZ7: Social DevelopmentSocial AssistanceWar Veterans | DA7: Social DevelopmentSocial AssistanceWar VeteransSocial benefits | DG7: The Presidency | DH7: Administration | DI7: 5 | DJ7: 20 | DK7: 20 | DL7: 0 | DM7: 17 | DN7: 3320 | DO7: 19 | DP7: 4359 | DQ7: 19 | DR7: 4625 | DS7: 19 | DT7: 4878 | DU7: 20 | DV7: 5417 | DW7: The Presidency|Administration | DX7: 001 | DY7: 001 | DZ7: 001001 | EC7: 111 | ED7: 57 | EE7: 1 | EF7: The Presidency | EG7: 1 | EH7: Administration | EI7: 1 | EJ7: Management | EK7: Payments for capital assets | EL7: Machinery and equipment | EM7: Other machinery and equipment | EN7: 35675 | EO7: 9366 | EP7: 10331 | EQ7: 10331 | ER7: 10331 | ES7: 8440 | ET7: 8868 | EU7: 9248 | EV7: 0 | EW7: 0 | EX7: 0 | EY7: 8868 | EZ7: 9248 | FA7: 9757 | FB7: The Presidency|Administration | FC7: 001 | FD7: 001 | FE7: 001 | FF7: 057 | FG7: 001001 | FH7: 001057 | FI7: 57 | FJ7: 001001001057 | FL7: 001001057 | FS7: 44 | FT7: 1 | FU7: The Presidency | FV7: 1 | FW7: Administration | FX7: 4 | FY7: Ministry | FZ7: Payments for financial assets | GA7: Provinces and municipalities | GB7: Municipalities | GK7: 3 | GL7: 1 | GM7: 0 | GN7: 5
B8: Enquires: | E8: Department Contact Details: | AY8: SIP 5: Saldanha-Northern Cape Development Corridor | AZ8: Foreign governments and international organisations | BA8: 2020/21 | BB8: 116 | BC8: Departmental agencies (non-business entities) | BD8: OUTCOME 6: AN EFFICIENT, COMPETITIVE AND RESPONSIVE ECONOMIC INFRASTRUCTURE NETWORK | BE8: InfraList5 | BG8: Construction | BI8: Equipment | BJ8: =IF(OR(BJ7="Direct_charges",BJ7=""),"",IF(Summary!F36=0,"Direct_charges",Summary!F36)) -> Direct_charges | BK8: 6 | BL8: =IF(BM8<>"",MAX(BL$3:BL7)+1,0) -> 0 | BM8: =IF(BK8>PListed,"",Cover!BJ8) ->  | BN8: 6 | BO8: Multiple programmes | BQ8: General Fuel Levy sharing with Metropolitan Municipalities | BR8: =PM!F126 -> Municipal bank accounts | BS8: Partnerships for a Strong Education System | BT8: Health Systems Reforms Completed | BU8: Identity of all persons in South Africa known and secured | BV8: Reduced workplace conflict and improved collaboration between government, organised business and organised labour | BX8: Coordination, planning, integration and monitoring implementation of strategic integrated projects in the National Infrastructure Plan | BY8: Growth of sustainable rural enterprises and industries, characterised by strong rural-urban linkages, increased investment in agro-processing, trade development and access to local markets and financial services – resulting in rural job creation | CC8: An equitable and just System of Global Governance | CD8: Strengthened accountability to citizens | CE8: Early childhood development provision | CH8: 6 | CI8: AE356:AF365,AE370:AF371,AE373:AF410,AE412:AF413,AE440:AF441,AE443:AF449 | CQ8: Social Development | CR8: Social Assistance | CS8: Disability | CT8: Current | CU8: Social benefits | CV8: 0 | CW8: 0 | CX8: 0 | CY8: Social DevelopmentSocial AssistanceDisabilityCurrentSocial benefits | CZ8: Social DevelopmentSocial AssistanceDisability | DA8: Social DevelopmentSocial AssistanceDisabilitySocial benefits | DG8: The Presidency | DH8: Administration | DI8: 6 | DJ8: 79 | DK8: 85 | DL8: 6 | DM8: 86 | DN8: 19337 | DO8: 83 | DP8: 22896 | DQ8: 83 | DR8: 24293 | DS8: 83 | DT8: 25618 | DU8: 85 | DV8: 27673 | DW8: The Presidency|Administration | DX8: 001 | DY8: 001 | DZ8: 001001 | EC8: 111 | ED8: 56 | EE8: 1 | EF8: The Presidency | EG8: 1 | EH8: Administration | EI8: 1 | EJ8: Management | EK8: Payments for capital assets | EL8: Machinery and equipment | EM8: Transport equipment | EN8: 696 | EO8: 821 | EP8: 1185 | EQ8: 1185 | ER8: 1185 | ES8: 1254 | ET8: 1324 | EU8: 1397 | EV8: 0 | EW8: 0 | EX8: 0 | EY8: 1324 | EZ8: 1397 | FA8: 1474 | FB8: The Presidency|Administration | FC8: 001 | FD8: 001 | FE8: 001 | FF8: 056 | FG8: 001001 | FH8: 001056 | FI8: 56 | FJ8: 001001001056 | FL8: 001001056 | FS8: 46 | FT8: 1 | FU8: The Presidency | FV8: 2 | FW8: Executive Support | FX8: 1 | FY8: Cabinet Services | GA8: Departmental agencies and accounts | GB8: Departmental agencies (non-business entities) | GK8: 4 | GL8: 1 | GM8: 0 | GN8: 6
B9: =+$AF$23 -> Timothy Murwa | E9: Name: | AY9: SIP 6: Integrated municipal infrastructure project | AZ9: Public corporations and private enterprises | BA9: 2021/22 | BB9: 117 | BC9: Higher education institutions | BD9: OUTCOME 7: COMPREHENSIVE RURAL DEVELOPMENT AND LAND REFORM | BE9: Provinces and municipalities | BF9: InfraList6 | BG9: Hand over | BI9: Other | BJ9: =IF(OR(BJ8="Direct_charges",BJ8=""),"",IF(Summary!F37=0,"Direct_charges",Summary!F37)) ->  | BK9: 7 | BL9: =IF(BM9<>"",MAX(BL$3:BL8)+1,0) -> 0 | BM9: =IF(BK9>PListed,"",Cover!BJ9) ->  | BN9: 7 | BT9: Primary health care teams deployed to provide care to families and communities | BU9: Corruption in the public and private sectors reduced | BV9: Expanded economic opportunities for historically excluded and vulnerable groups | CC9: Strong, mutually beneficial South-South cooperation | CD9: Improved inter-departmental coordination and institutionalisation of long-term planning | CE9: Improve household food and nutrition security | CH9: 7 | CI9: AN356:AO365,AN370:AO371,AN373:AO410,AN412:AO413,AN440:AO441,AN443:AO449 | CQ9: Social Development | CR9: Social Assistance | CS9: Foster Care | CT9: Current | CU9: Social benefits | CV9: 0 | CW9: 0 | CX9: 0 | CY9: Social DevelopmentSocial AssistanceFoster CareCurrentSocial benefits | CZ9: Social DevelopmentSocial AssistanceFoster Care | DA9: Social DevelopmentSocial AssistanceFoster CareSocial benefits | DG9: The Presidency | DH9: Administration | DI9: 7 | DJ9: 72 | DK9: 77 | DL9: 5 | DM9: 77 | DN9: 21458 | DO9: 70 | DP9: 22702 | DQ9: 71 | DR9: 24436 | DS9: 71 | DT9: 25769 | DU9: 77 | DV9: 29439 | DW9: The Presidency|Administration | DX9: 001 | DY9: 001 | DZ9: 001001 | EC9: 111 | ED9: 44 | EE9: 1 | EF9: The Presidency | EG9: 1 | EH9: Administration | EI9: 1 | EJ9: Management | EK9: Transfers and subsidies | EL9: Provinces and municipalities | EM9: Municipalities | EN9: 4 | EO9: 3 | EP9: 0 | EQ9: 5 | ER9: 5 | ES9: 0 | ET9: 0 | EU9: 0 | EV9: 0 | EW9: 0 | EX9: 0 | EY9: 0 | EZ9: 0 | FA9: 0 | FB9: The Presidency|Administration | FC9: 001 | FD9: 001 | FE9: 001 | FF9: 044 | FG9: 001001 | FH9: 001044 | FI9: 44 | FJ9: 001001001044 | FL9: 001001044 | FS9: 53 | FT9: 1 | FU9: The Presidency | FV9: 16 | FW9: Direct charge against the National Revenue Fund | FX9: 1 | FY9: Salary of the President | GA9: Households | GB9: Other transfers to households | GK9: 5 | GL9: 1 | GM9: 0 | GN9: 7
B10: =+$AG$23 -> (012) 315 5002 | E10: Email: | AY10: SIP 7: Integrated urban space and public transport programme | AZ10: Non-profit institutions | BB10: 118 | BC10: Foreign governments and international organisations | BD10: OUTCOME 8: SUSTAINABLE HUMAN SETTLEMENTS AND IMPROVED QUALITY OF HOUSEHOLD LIFE | BE10: Departmental agencies and accounts | BF10: Residential buildings | BG10: Handed over | BJ10: =IF(OR(BJ9="Direct_charges",BJ9=""),"",IF(Summary!F38=0,"Direct_charges",Summary!F38)) ->  | BK10: 8 | BL10: =IF(BM10<>"",MAX(BL$3:BL9)+1,0) -> 0 | BM10: =IF(BK10>PListed,"",Cover!BJ10) ->  | BN10: 8 | BT10: Universal health coverage achieved | BV10: Public employment schemes provide short-term relief for the unemployed and build community solidarity and agency | CC10: Beneficial relations with strategic formations of the North | CD10: Improved mechanisms to prevent corruption in the public service (refer to the chapter on Outcome 3 for further elements of fighting corruption effectively) | CE10: Strengthening of community development interventions to strengthen coordination, integration, planning, monitoring and evaluation of services | CH10: 8 | CQ10: Social Development | CR10: Social Assistance | CS10: Care Dependency | CT10: Current | CU10: Social benefits | CV10: 0 | CW10: 0 | CX10: 0 | CY10: Social DevelopmentSocial AssistanceCare DependencyCurrentSocial benefits | CZ10: Social DevelopmentSocial AssistanceCare Dependency | DA10: Social DevelopmentSocial AssistanceCare DependencySocial benefits | DG10: The Presidency | DH10: Administration | DI10: 8 | DJ10: 53 | DK10: 53 | DL10: 0 | DM10: 50 | DN10: 16902 | DO10: 49 | DP10: 18749 | DQ10: 49 | DR10: 19893 | DS10: 50 | DT10: 21388 | DU10: 52 | DV10: 23546 | DW10: The Presidency|Administration | DX10: 001 | DY10: 001 | DZ10: 001001 | EC10: 111 | ED10: 53 | EE10: 1 | EF10: The Presidency | EG10: 1 | EH10: Administration | EI10: 1 | EJ10: Management | EK10: Transfers and subsidies | EL10: Households | EM10: Other transfers to households | EN10: 244 | EO10: 204 | EP10: 0 | EQ10: 0 | ER10: 0 | ES10: 0 | ET10: 0 | EU10: 0 | EV10: 0 | EW10: 0 | EX10: 0 | EY10: 0 | EZ10: 0 | FA10: 0 | FB10: The Presidency|Administration | FC10: 001 | FD10: 001 | FE10: 001 | FF10: 053 | FG10: 001001 | FH10: 001053 | FI10: 53 | FJ10: 001001001053 | FL10: 001001053 | FS10: 52 | FT10: 1 | FU10: The Presidency | FV10: 16 | FW10: Direct charge against the National Revenue Fund | FX10: 2 | FY10: Salary of the Deputy President | GA10: Machinery and equipment | GB10: Social benefits | GK10: 6 | GL10: 1 | GM10: 0 | GN10: 8
B11: =+$AH$23 -> Timothy.Murwa@treasury.gov.za | E11: Telephone number: | AY11: SIP 8: Green energy in support of the South African economy | AZ11: Households | BB11: 119 | BC11: Subsidies on products and production (pc) | BD11: OUTCOME 9: RESPONSIVE, ACCOUNTABLE, EFFECTIVE AND EFFICIENT DEVELOPMENTAL LOCAL GOVERNMENT | BE11: Higher education institutions | BF11: Non-residential buildings | BG11: On hold | BJ11: =IF(OR(BJ10="Direct_charges",BJ10=""),"",IF(Summary!F39=0,"Direct_charges",Summary!F39)) ->  | BK11: 9 | BL11: =IF(BM11<>"",MAX(BL$3:BL10)+1,0) -> 0 | BM11: =IF(BK11>PListed,"",Cover!BJ11) ->  | BN11: 9 | BT11: Posts filled with skilled, committed and competent individuals | CH11: 9 | CQ11: Social Development | CR11: Social Assistance | CS11: Child Support | CT11: Current | CU11: Social benefits | CV11: 0 | CW11: 0 | CX11: 0 | CY11: Social DevelopmentSocial AssistanceChild SupportCurrentSocial benefits | CZ11: Social DevelopmentSocial AssistanceChild Support | DA11: Social DevelopmentSocial AssistanceChild SupportSocial benefits | DG11: The Presidency | DH11: Administration | DI11: 9 | DJ11: 43 | DK11: 49 | DL11: 6 | DM11: 43 | DN11: 18415 | DO11: 48 | DP11: 22309 | DQ11: 48 | DR11: 23671 | DS11: 48 | DT11: 24962 | DU11: 49 | DV11: 26893 | DW11: The Presidency|Administration | DX11: 001 | DY11: 001 | DZ11: 001001 | EC11: 111 | ED11: 52 | EE11: 1 | EF11: The Presidency | EG11: 1 | EH11: Administration | EI11: 1 | EJ11: Management | EK11: Transfers and subsidies | EL11: Households | EM11: Social benefits | EN11: 503 | EO11: 2240 | EP11: 0 | EQ11: 3155 | ER11: 3155 | ES11: 0 | ET11: 0 | EU11: 0 | EV11: 0 | EW11: 0 | EX11: 0 | EY11: 0 | EZ11: 0 | FA11: 0 | FB11: The Presidency|Administration | FC11: 001 | FD11: 001 | FE11: 001 | FF11: 052 | FG11: 001001 | FH11: 001052 | FI11: 52 | FJ11: 001001001052 | FL11: 001001052 | FS11: 57 | FT11: 2 | FU11: Parliament | FV11: 1 | FW11: Strategic Leadership and Governance | FX11: 1 | FY11: Office of the Speaker | GA11: Software and other intangible assets | GB11: Other machinery and equipment | GK11: 7 | GL11: 1 | GM11: 0 | GN11: 9
E12: Mobile (optional): | AJ12: =AA13 -> Data file ENE 2019 | AY12: SIP 9: Electricity generations to support socio-economic development | AZ12: Buildings and other fixed structures | BA12: Donation | BB12: 116 | BC12: Other transfers to public corporations | BD12: OUTCOME 10: PROTECT AND ENHANCE OUR ENVIRONMENTAL ASSETS AND NATURAL RESOURCES | BE12: Foreign governments and international organisations | BF12: Investment property | BG12: Complete | BJ12: =IF(OR(BJ11="Direct_charges",BJ11=""),"",IF(Summary!F40=0,"Direct_charges",Summary!F40)) ->  | BK12: 10 | BL12: =IF(BM12<>"",MAX(BL$3:BL11)+1,0) -> 0 | BM12: =IF(BK12>PListed,"",Cover!BJ12) ->  | BN12: 10 | CH12: 10 | CQ12: Social Development | CR12: Social Assistance | CS12: Grant-in-Aid | CT12: Current | CU12: Social benefits | CV12: 0 | CW12: 0 | CX12: 0 | CY12: Social DevelopmentSocial AssistanceGrant-in-AidCurrentSocial benefits | CZ12: Social DevelopmentSocial AssistanceGrant-in-Aid | DA12: Social DevelopmentSocial AssistanceGrant-in-AidSocial benefits | DG12: The Presidency | DH12: Administration | DI12: 10 | DJ12: 16 | DK12: 18 | DL12: 2 | DM12: 20 | DN12: 10371 | DO12: 18 | DP12: 10063 | DQ12: 18 | DR12: 10677 | DS12: 18 | DT12: 11260 | DU12: 18 | DV12: 11903 | DW12: The Presidency|Administration | DX12: 001 | DY12: 001 | DZ12: 001001 | EC12: 111 | ED12: 46 | EE12: 1 | EF12: The Presidency | EG12: 1 | EH12: Administration | EI12: 1 | EJ12: Management | EK12: Transfers and subsidies | EL12: Departmental agencies and accounts | EM12: Departmental agencies (non-business entities) | EN12: 3 | EO12: 0 | EP12: 36 | EQ12: 36 | ER12: 36 | ES12: 38 | ET12: 40 | EU12: 42 | EV12: 0 | EW12: 0 | EX12: 0 | EY12: 40 | EZ12: 42 | FA12: 44 | FB12: The Presidency|Administration | FC12: 001 | FD12: 001 | FE12: 001 | FF12: 046 | FG12: 001001 | FH12: 001046 | FI12: 46 | FJ12: 001001001046 | FL12: 001001046 | FS12: 56 | FT12: 2 | FU12: Parliament | FV12: 1 | FW12: Strategic Leadership and Governance | FX12: 2 | FY12: Office of the Chairperson | GA12: Payments for financial assets | GB12: Transport equipment | GK12: 8 | GL12: 1 | GM12: 0 | GN12: 10
B13: =IF(B15="","","OR") -> OR | E13: CFO Contact Details: | AA13: Data file ENE 2019 | AY13: SIP 10: Electricity transmission and distribution for all | AZ13: Machinery and equipment | BA13: Foreign | BB13: 121 | BC13: Subsidies on products and production (pe) | BD13: OUTCOME 11: CREATE A BETTER SOUTH AFRICA, A BETTER AFRICA AND A BETTER WORLD | BE13: Public corporations and private enterprises | BF13: Heritage assets | BG13: On-going | BJ13: =IF(OR(BJ12="Direct_charges",BJ12=""),"",IF(Summary!F41=0,"Direct_charges",Summary!F41)) ->  | BK13: 11 | BL13: =IF(BM13<>"",MAX(BL$3:BL12)+1,0) -> 0 | BM13: =IF(BK13>PListed,"",Cover!BJ13) ->  | BN13: 11 | BO13: =IF(ISERROR(INDEX(($BM$3:$BM$18),MATCH(BN13,$BL$3:$BL$18,0))),"",INDEX(($BM$3:$BM$18),MATCH(BN13,$BL$3:$BL$18,0))) ->  | CH13: 11 | CQ13: Social Development | CR13: Social Assistance | CS13: Social Relief of Distress | CT13: Current | CU13: Social benefits | CV13: 0 | CW13: 0 | CX13: 0 | CY13: Social DevelopmentSocial AssistanceSocial Relief of DistressCurrentSocial benefits | CZ13: Social DevelopmentSocial AssistanceSocial Relief of Distress | DA13: Social DevelopmentSocial AssistanceSocial Relief of DistressSocial benefits | DG13: The Presidency | DH13: Administration | DI13: 11 | DJ13: 60 | DK13: 62 | DL13: 2 | DM13: 57 | DN13: 38212 | DO13: 57 | DP13: 38898 | DQ13: 56 | DR13: 40618 | DS13: 58 | DT13: 44211 | DU13: 62 | DV13: 49651 | DW13: The Presidency|Administration | DX13: 001 | DY13: 001 | DZ13: 001001 | EC13: 111 | ED13: 50 | EE13: 1 | EF13: The Presidency | EG13: 1 | EH13: Administration | EI13: 1 | EJ13: Management | EK13: Transfers and subsidies | EL13: Public corporations and private enterprises | EM13: Private enterprises | EN13: 0 | EO13: 42 | EP13: 0 | EQ13: 0 | ER13: 0 | ES13: 0 | ET13: 0 | EU13: 0 | EV13: 0 | EW13: 0 | EX13: 0 | EY13: 0 | EZ13: 0 | FA13: 0 | FB13: The Presidency|Administration | FC13: 001 | FD13: 001 | FE13: 001 | FF13: 050 | FG13: 001001 | FH13: 001050 | FI13: 50 | FJ13: 001001001050 | FL13: 001001050 | FS13: 62 | FT13: 2 | FU13: Parliament | FV13: 2 | FW13: Administration | FX13: 1 | FY13: Secretary's Office | GA13: Non-profit institutions | GB13: Software and other intangible assets | GK13: 9 | GL13: 1 | GM13: 0 | GN13: 11
E14: Name: | AY14: SIP 11: Agri-logistics and rural infrastructure | AZ14: Heritage assets | BA14: Local | BB14: 122 | BC14: Other transfers to private enterprises | BD14: OUTCOME 12: AN EFFICIENT, EFFECTIVE AND DEVELOPMENT ORIENTED PUBLIC SERVICE | BE14: Non-profit institutions | BF14: Other fixed structures | BJ14: =IF(OR(BJ13="Direct_charges",BJ13=""),"",IF(Summary!F42=0,"Direct_charges",Summary!F42)) ->  | BK14: 12 | BL14: =IF(BM14<>"",MAX(BL$3:BL13)+1,0) -> 0 | BM14: =IF(BK14>PListed,"",Cover!BJ14) ->  | BN14: 12 | CH14: 12 | DG14: The Presidency | DH14: Administration | DI14: 12 | DJ14: 41 | DK14: 41 | DL14: 0 | DM14: 34 | DN14: 21233 | DO14: 39 | DP14: 32732 | DQ14: 39 | DR14: 34729 | DS14: 40 | DT14: 37398 | DU14: 41 | DV14: 40354 | DW14: The Presidency|Administration | DX14: 001 | DY14: 001 | DZ14: 001001 | EC14: 111 | ED14: 63 | EE14: 1 | EF14: The Presidency | EG14: 1 | EH14: Administration | EI14: 1 | EJ14: Management | EK14: Payments for financial assets | EL14: Payments for financial assets | EM14: Payments for financial assets | EN14: 1069 | EO14: 799 | EP14: 0 | EQ14: 0 | ER14: 0 | ES14: 0 | ET14: 0 | EU14: 0 | EV14: 0 | EW14: 0 | EX14: 0 | EY14: 0 | EZ14: 0 | FA14: 0 | FB14: The Presidency|Administration | FC14: 001 | FD14: 001 | FE14: 001 | FF14: 063 | FG14: 001001 | FH14: 001063 | FI14: 63 | FJ14: 001001001063 | FL14: 001001063 | FS14: 63 | FT14: 2 | FU14: Parliament | FV14: 2 | FW14: Administration | FX14: 2 | FY14: Finance Management Office | GA14: Public corporations and private enterprises | GB14: Payments for financial assets | GK14: 10 | GL14: 1 | GM14: 0 | GN14: 12
B15: =+$AI$23 -> Isaac Mabena | E15: Email: | AY15: SIP 12: Revitalisation of public hospitals and other health facilities | AZ15: Specialised military assets | BB15: 123 | BC15: Non-profit institutions | BD15: OUTCOME 13: AN INCLUSIVE AND RESPONSIVE SOCIAL PROTECTION SYSTEM | BE15: Households | BJ15: =IF(OR(BJ14="Direct_charges",BJ14=""),"",IF(Summary!F43=0,"Direct_charges",Summary!F43)) ->  | BK15: 13 | BL15: =IF(BM15<>"",MAX(BL$3:BL14)+1,0) -> 0 | BM15: =IF(BK15>PListed,"",Cover!BJ15) ->  | BN15: 13 | CH15: 13 | DG15: The Presidency | DH15: Administration | DI15: 13 | DJ15: 37 | DK15: 38 | DL15: 1 | DM15: 34 | DN15: 33037 | DO15: 35 | DP15: 34920 | DQ15: 37 | DR15: 39240 | DS15: 38 | DT15: 42425 | DU15: 38 | DV15: 44849 | DW15: The Presidency|Administration | DX15: 001 | DY15: 001 | DZ15: 001001 | EC15: 112 | ED15: 1 | EE15: 1 | EF15: The Presidency | EG15: 1 | EH15: Administration | EI15: 2 | EJ15: Support Service to President | EK15: Current payments | EL15: Compensation of employees | EM15: Compensation of employees | EN15: 42591 | EO15: 42628 | EP15: 39288 | EQ15: 39288 | ER15: 39288 | ES15: 41588 | ET15: 44748 | EU15: 48104 | EV15: 0 | EW15: 0 | EX15: 0 | EY15: 44748 | EZ15: 48104 | FA15: 51231 | FB15: The Presidency|Administration | FC15: 001 | FD15: 001 | FE15: 002 | FF15: 001 | FG15: 001001 | FH15: 001001 | FI15: 1 | FJ15: 001001002001 | FL15: 001001001 | FS15: 51 | FT15: 2 | FU15: Parliament | FV15: 2 | FW15: Administration | FX15: 3 | FY15: Internal Audit | GA15: Foreign governments and international organisations | GB15: Non-profit institutions | GK15: 11 | GL15: 1 | GM15: 0 | GN15: 13
B16: =+$AJ$23 -> (012) 315 5582 | E16: Telephone number: | AY16: SIP 13: National school build programme | AZ16: Biological assets | BB16: 124 | BC16: Social benefits | BD16: OUTCOME 14: NATION BUILDING AND SOCIAL COHESION | BJ16: =IF(OR(BJ15="Direct_charges",BJ15=""),"",IF(Summary!F44=0,"Direct_charges",Summary!F44)) ->  | BK16: 14 | BL16: =IF(BM16<>"",MAX(BL$3:BL15)+1,0) -> 0 | BM16: =IF(BK16>PListed,"",Cover!BJ16) ->  | BN16: 14 | CH16: 14 | DG16: The Presidency | DH16: Administration | DI16: 14 | DJ16: 17 | DK16: 19 | DL16: 2 | DM16: 21 | DN16: 18999 | DO16: 18 | DP16: 21581 | DQ16: 19 | DR16: 24094 | DS16: 19 | DT16: 25408 | DU16: 19 | DV16: 26860 | DW16: The Presidency|Administration | DX16: 001 | DY16: 001 | DZ16: 001001 | EC16: 112 | ED16: 2 | EE16: 1 | EF16: The Presidency | EG16: 1 | EH16: Administration | EI16: 2 | EJ16: Support Service to President | EK16: Current payments | EL16: Goods and services | EM16: Goods and services | EN16: 22144 | EO16: 19294 | EP16: 22129 | EQ16: 21196 | ER16: 21196 | ES16: 23415 | ET16: 24679 | EU16: 26033 | EV16: 0 | EW16: 0 | EX16: 0 | EY16: 24679 | EZ16: 26033 | FA16: 27465 | FB16: The Presidency|Administration | FC16: 001 | FD16: 001 | FE16: 002 | FF16: 002 | FG16: 001001 | FH16: 001002 | FI16: 2 | FJ16: 001001002002 | FL16: 001001002 | FS16: 49 | FT16: 2 | FU16: Parliament | FV16: 2 | FW16: Administration | FX16: 4 | FY16: Strategic Management & Governance | GA16: Heritage assets | GB16: Public corporations | GK16: 12 | GL16: 1 | GM16: 0 | GN16: 14
B17: =+$AK$23 -> Isaac.Mabena@treasury.gov.za | E17: Mobile (optional): | AY17: SIP 14: Higher education infrastructure | AZ17: Land and sub-soil assets | BB17: 124 | BC17: Other transfers to households | BD17: Departmental mandate | BJ17: =IF(OR(BJ16="Direct_charges",BJ16=""),"",IF(Summary!F45=0,"Direct_charges",Summary!F45)) ->  | BK17: 15 | BL17: =IF(BM17<>"",MAX(BL$3:BL16)+1,0) -> 0 | BM17: =IF(BK17>PListed,"",Cover!BJ17) ->  | BN17: 15 | CH17: 15 | DG17: The Presidency | DH17: Administration | DI17: 15 | DJ17: 5 | DK17: 8 | DL17: 3 | DM17: 5 | DN17: 8463 | DO17: 5 | DP17: 7101 | DQ17: 8 | DR17: 12221 | DS17: 8 | DT17: 12887 | DU17: 8 | DV17: 13623 | DW17: The Presidency|Administration | DX17: 001 | DY17: 001 | DZ17: 001001 | EC17: 112 | ED17: 57 | EE17: 1 | EF17: The Presidency | EG17: 1 | EH17: Administration | EI17: 2 | EJ17: Support Service to President | EK17: Payments for capital assets | EL17: Machinery and equipment | EM17: Other machinery and equipment | EN17: 889 | EO17: 875 | EP17: 851 | EQ17: 851 | ER17: 851 | ES17: 689 | ET17: 723 | EU17: 754 | EV17: 0 | EW17: 0 | EX17: 0 | EY17: 723 | EZ17: 754 | FA17: 795 | FB17: The Presidency|Administration | FC17: 001 | FD17: 001 | FE17: 002 | FF17: 057 | FG17: 001001 | FH17: 001057 | FI17: 57 | FJ17: 001001002057 | FL17: 001001057 | FS17: 48 | FT17: 2 | FU17: Parliament | FV17: 3 | FW17: Core Business | FX17: 1 | FY17: Office of the Deputy Secretary | GA17: Buildings and other fixed structures | GB17: Foreign governments and international organisations | GK17: 13 | GL17: 1 | GM17: 0 | GN17: 15
AY18: SIP 15: Expanding access to communication technology | AZ18: Software and other intangible assets | BA18: Currency | BL18: =IF(BM18<>"",MAX(BL$3:BL17)+1,0) -> 6 | BM18: Multiple programmes | BN18: 16 | CH18: 16 | DG18: The Presidency | DH18: Administration | DI18: 16 | DJ18: 2 | DK18: 7 | DL18: 5 | DM18: 7 | DN18: 11830 | DO18: 7 | DP18: 13142 | DQ18: 7 | DR18: 13944 | DS18: 7 | DT18: 14704 | DU18: 7 | DV18: 15544 | DW18: The Presidency|Administration | DX18: 001 | DY18: 001 | DZ18: 001001 | EC18: 112 | ED18: 53 | EE18: 1 | EF18: The Presidency | EG18: 1 | EH18: Administration | EI18: 2 | EJ18: Support Service to President | EK18: Transfers and subsidies | EL18: Households | EM18: Other transfers to households | EN18: 6 | EO18: 0 | EP18: 0 | EQ18: 0 | ER18: 0 | ES18: 0 | ET18: 0 | EU18: 0 | EV18: 0 | EW18: 0 | EX18: 0 | EY18: 0 | EZ18: 0 | FA18: 0 | FB18: The Presidency|Administration | FC18: 001 | FD18: 001 | FE18: 002 | FF18: 053 | FG18: 001001 | FH18: 001053 | FI18: 53 | FJ18: 001001002053 | FL18: 001001053 | FS18: 58 | FT18: 2 | FU18: Parliament | FV18: 3 | FW18: Core Business | FX18: 2 | FY18: National Assembly | GA18: Land and sub-soil assets | GB18: Heritage assets | GK18: 14 | GL18: 1 | GM18: 0 | GN18: 16
AY19: SIP 16: SKA and Meerkat | BA19: In Cash | CH19: 17 | DG19: The Presidency | DH19: Executive Support | DI19: 6 | DJ19: 8 | DK19: 8 | DL19: 0 | DM19: 8 | DN19: 1497 | DO19: 8 | DP19: 2562 | DQ19: 8 | DR19: 2870 | DS19: 8 | DT19: 3009 | DU19: 8 | DV19: 3200 | DW19: The Presidency|Executive Support | DX19: 001 | DY19: 002 | DZ19: 001002 | EC19: 112 | ED19: 52 | EE19: 1 | EF19: The Presidency | EG19: 1 | EH19: Administration | EI19: 2 | EJ19: Support Service to President | EK19: Transfers and subsidies | EL19: Households | EM19: Social benefits | EN19: 289 | EO19: 43 | EP19: 0 | EQ19: 460 | ER19: 460 | ES19: 0 | ET19: 0 | EU19: 0 | EV19: 0 | EW19: 0 | EX19: 0 | EY19: 0 | EZ19: 0 | FA19: 0 | FB19: The Presidency|Administration | FC19: 001 | FD19: 001 | FE19: 002 | FF19: 052 | FG19: 001001 | FH19: 001052 | FI19: 52 | FJ19: 001001002052 | FL19: 001001052 | FS19: 43 | FT19: 2 | FU19: Parliament | FV19: 3 | FW19: Core Business | FX19: 3 | FY19: National Council of Provinces | GA19: Higher education institutions | GB19: Provinces | GK19: 15 | GL19: 1 | GM19: 0 | GN19: 17
B20: Data file to be submitted to: | AY20: SIP 17: Regional integration for African Cooperation and development | BA20: In Kind | CH20: 18 | DG20: The Presidency | DH20: Executive Support | DI20: 7 | DJ20: 3 | DK20: 3 | DL20: 0 | DM20: 2 | DN20: 755 | DO20: 3 | DP20: 1172 | DQ20: 3 | DR20: 1314 | DS20: 3 | DT20: 1377 | DU20: 3 | DV20: 1464 | DW20: The Presidency|Executive Support | DX20: 001 | DY20: 002 | DZ20: 001002 | EC20: 112 | ED20: 63 | EE20: 1 | EF20: The Presidency | EG20: 1 | EH20: Administration | EI20: 2 | EJ20: Support Service to President | EK20: Payments for financial assets | EL20: Payments for financial assets | EM20: Payments for financial assets | EN20: 25 | EO20: 146 | EP20: 0 | EQ20: 0 | ER20: 0 | ES20: 0 | ET20: 0 | EU20: 0 | EV20: 0 | EW20: 0 | EX20: 0 | EY20: 0 | EZ20: 0 | FA20: 0 | FB20: The Presidency|Administration | FC20: 001 | FD20: 001 | FE20: 002 | FF20: 063 | FG20: 001001 | FH20: 001063 | FI20: 63 | FJ20: 001001002063 | FL20: 001001063 | FS20: 55 | FT20: 2 | FU20: Parliament | FV20: 3 | FW20: Core Business | FX20: 4 | FY20: Core Business Support | GA20: Biological assets | GB20: Other fixed structures | GK20: Direct_charges | GL20: 1 | GM20: 0 | GN20: 18
B21: DatafileNAT@treasury.gov.za | AY21: SIP 18. Water and sanitation master plan | CH21: 19 | DG21: The Presidency | DH21: Executive Support | DI21: 9 | DJ21: 2 | DK21: 2 | DL21: 0 | DM21: 2 | DN21: 554 | DO21: 2 | DP21: 850 | DQ21: 2 | DR21: 952 | DS21: 2 | DT21: 998 | DU21: 2 | DV21: 1062 | DW21: The Presidency|Executive Support | DX21: 001 | DY21: 002 | DZ21: 001002 | EC21: 112 | ED21: 1 | EE21: 1 | EF21: The Presidency | EG21: 1 | EH21: Administration | EI21: 3 | EJ21: Support Service to Deputy President | EK21: Current payments | EL21: Compensation of employees | EM21: Compensation of employees | EN21: 33845 | EO21: 36225 | EP21: 36137 | EQ21: 36137 | ER21: 36137 | ES21: 38250 | ET21: 41155 | EU21: 44242 | EV21: 0 | EW21: 0 | EX21: 0 | EY21: 41155 | EZ21: 44242 | FA21: 47118 | FB21: The Presidency|Administration | FC21: 001 | FD21: 001 | FE21: 003 | FF21: 001 | FG21: 001001 | FH21: 001001 | FI21: 1 | FJ21: 001001003001 | FL21: 001001001 | FS21: 54 | FT21: 2 | FU21: Parliament | FV21: 3 | FW21: Core Business | FX21: 5 | FY21: Knowledge and Information Services | GA21: Specialised military assets | GB21: Buildings | GK21: PM | GL21: 0 | GM21: 1 | GN21: 19
AA22: 27 | AB22: =+MATCH(AC22,$AB$25:$AB$71,0) -> 27 | AC22: 2 | BA22: CurCap | CH22: 20 | DG22: The Presidency | DH22: Executive Support | DI22: 11 | DJ22: 1 | DK22: 1 | DL22: 0 | DM22: 1 | DN22: 569 | DO22: 1 | DP22: 742 | DQ22: 1 | DR22: 832 | DS22: 1 | DT22: 872 | DU22: 1 | DV22: 927 | DW22: The Presidency|Executive Support | DX22: 001 | DY22: 002 | DZ22: 001002 | EC22: 113 | ED22: 2 | EE22: 1 | EF22: The Presidency | EG22: 1 | EH22: Administration | EI22: 3 | EJ22: Support Service to Deputy President | EK22: Current payments | EL22: Goods and services | EM22: Goods and services | EN22: 14408 | EO22: 11007 | EP22: 15934 | EQ22: 14634 | ER22: 14634 | ES22: 15972 | ET22: 16838 | EU22: 17753 | EV22: 0 | EW22: 0 | EX22: 0 | EY22: 16838 | EZ22: 17753 | FA22: 18729 | FB22: The Presidency|Administration | FC22: 001 | FD22: 001 | FE22: 003 | FF22: 002 | FG22: 001001 | FH22: 001002 | FI22: 2 | FJ22: 001001003002 | FL22: 001001002 | FS22: 61 | FT22: 2 | FU22: Parliament | FV22: 3 | FW22: Core Business | FX22: 6 | FY22: International Relations & Protocol | GB22: Land and sub-soil assets | GK22: Expend Trends | GL22: 1 | GM22: 0 | GN22: 20
Z23: =IF(AI23="",1,2) -> 2 | AA23: 27 | AB23: =INDEX(($AB$25:$AB$71),MATCH(DeptName,$AC$25:$AC$71,0)) -> 2 | AC23: =+B7 -> Parliament | AD23: =INDEX((AD$25:AD$71),MATCH($AA$23,$AA$25:$AA$71,1)) -> 0 | AE23: =INDEX((AE$25:AE$71),MATCH($AA$23,$AA$25:$AA$71,1)) -> 0 | AF23: =INDEX((AF$25:AF$71),MATCH($AA$23,$AA$25:$AA$71,1)) -> Timothy Murwa | AG23: (012) 315 5002 | AH23: Timothy.Murwa@treasury.gov.za | AI23: Isaac Mabena | AJ23: (012) 315 5582 | AK23: =INDEX((AK$25:AK$71),MATCH($AA$23,$AA$25:$AA$71,1)) -> Isaac.Mabena@treasury.gov.za | AL23: 0 | AM23: 0 | AN23: 0 | AO23: datafileNAT@treasury.gov.za | AP23: =INDEX((AP$25:AP$71),MATCH($AA$23,$AA$25:$AA$71,1)) -> 2525460 | AQ23: 2694159 | AR23: =INDEX((AR$25:AR$71),MATCH($AA$23,$AA$25:$AA$71,1)) -> 2868176 | AT23: Revised Baseline | AV23: =IFERROR(INDEX((AV$25:AV$71),MATCH($AB$23,$AT$25:$AT$71,0)),0) -> 2626743 | AW23: =IFERROR(INDEX((AW$25:AW$71),MATCH($AB$23,$AT$25:$AT$71,0)),0) -> 2813438 | AX23: =IFERROR(INDEX((AX$25:AX$71),MATCH($AB$23,$AT$25:$AT$71,0)),0) -> 3005640 | BA23: Current | DG23: The Presidency | DH23: Executive Support | DI23: 12 | DJ23: 4 | DK23: 4 | DL23: 0 | DM23: 4 | DN23: 1983 | DO23: 4 | DP23: 3152 | DQ23: 4 | DR23: 3532 | DS23: 4 | DT23: 3702 | DU23: 4 | DV23: 3938 | DW23: The Presidency|Executive Support | DX23: 001 | DY23: 002 | DZ23: 001002 | EC23: 113 | ED23: 57 | EE23: 1 | EF23: The Presidency | EG23: 1 | EH23: Administration | EI23: 3 | EJ23: Support Service to Deputy President | EK23: Payments for capital assets | EL23: Machinery and equipment | EM23: Other machinery and equipment | EN23: 723 | EO23: 583 | EP23: 834 | EQ23: 834 | ER23: 834 | ES23: 649 | ET23: 681 | EU23: 710 | EV23: 0 | EW23: 0 | EX23: 0 | EY23: 681 | EZ23: 710 | FA23: 749 | FB23: The Presidency|Administration | FC23: 001 | FD23: 001 | FE23: 003 | FF23: 057 | FG23: 001001 | FH23: 001057 | FI23: 57 | FJ23: 001001003057 | FL23: 001001057 | FS23: 47 | FT23: 2 | FU23: Parliament | FV23: 4 | FW23: Support Services | FX23: 1 | FY23: Office of the Deputy Secretary | GB23: Higher education institutions | GK23: Significant Spending | GL23: 0 | GM23: 1 | GN23: 21
AA24: Dept Index No. | AB24: Vote No. | AC24: Department | AD24: Category | AE24: ID1 | AF24: Contact Person | AG24: Tel | AH24: email | AI24: Contact Person | AJ24: Tel | AK24: email | AL24: ID2 | AM24: Contact Person | AN24: Tel | AO24: email | AP24: =MyYearP1 -> 2019/20 | AQ24: =MyYearP2 -> 2020/21 | AR24: =MyYearP3 -> 2021/22 | AT24: Vote No. | AU24: Dept | AV24: =+AP24 -> 2019/20 | AW24: =+AQ24 -> 2020/21 | AX24: 2021/22 | BA24: Capital | BC24: Payments for Financial Assets | DG24: The Presidency | DH24: Executive Support | DI24: 13 | DJ24: 1 | DK24: 2 | DL24: 1 | DM24: 2 | DN24: 1833 | DO24: 2 | DP24: 2008 | DQ24: 2 | DR24: 2250 | DS24: 2 | DT24: 2358 | DU24: 2 | DV24: 2508 | DW24: The Presidency|Executive Support | DX24: 001 | DY24: 002 | DZ24: 001002 | EC24: 113 | ED24: 52 | EE24: 1 | EF24: The Presidency | EG24: 1 | EH24: Administration | EI24: 3 | EJ24: Support Service to Deputy President | EK24: Transfers and subsidies | EL24: Households | EM24: Social benefits | EN24: 7 | EO24: 120 | EP24: 0 | EQ24: 1215 | ER24: 1215 | ES24: 0 | ET24: 0 | EU24: 0 | EV24: 0 | EW24: 0 | EX24: 0 | EY24: 0 | EZ24: 0 | FA24: 0 | FB24: The Presidency|Administration | FC24: 001 | FD24: 001 | FE24: 003 | FF24: 052 | FG24: 001001 | FH24: 001052 | FI24: 52 | FJ24: 001001003052 | FL24: 001001052 | FS24: 50 | FT24: 2 | FU24: Parliament | FV24: 4 | FW24: Support Services | FX24: 2 | FY24: Parliamentary Communication Services | GB24: Private enterprises | GK24: Prov_Cond_Grants | GL24: 1 | GM24: 0 | GN24: 22
Y25: 1 | AA25: 1 | AB25: 24 | AC25: Agriculture, Forestry and Fisheries | AF25: Bothwell Deka | AG25: (012) 395 6784 | AH25: Bothwell.Deka@treasury.gov.za | AI25: Humbelani Ramuedzisi | AJ25: (012) 315 5585 | AK25: Humbelani.Ramuedzisi@treasury.gov.za | AO25: datafileNAT@treasury.gov.za | AP25: 7601275 | AQ25: 7813371 | AR25: 8305754 | AT25: 24 | AU25: Agriculture, Forestry and Fisheries | AV25: 7667421 | AW25: 7925904 | AX25: 8428426 | BC25: Forex losses | DG25: The Presidency | DH25: Executive Support | DI25: 14 | DJ25: 3 | DK25: 4 | DL25: 1 | DM25: 4 | DN25: 4800 | DO25: 4 | DP25: 5280 | DQ25: 4 | DR25: 5917 | DS25: 4 | DT25: 6201 | DU25: 4 | DV25: 6596 | DW25: The Presidency|Executive Support | DX25: 001 | DY25: 002 | DZ25: 001002 | EC25: 113 | ED25: 63 | EE25: 1 | EF25: The Presidency | EG25: 1 | EH25: Administration | EI25: 3 | EJ25: Support Service to Deputy President | EK25: Payments for financial assets | EL25: Payments for financial assets | EM25: Payments for financial assets | EN25: 39 | EO25: 36 | EP25: 0 | EQ25: 0 | ER25: 0 | ES25: 0 | ET25: 0 | EU25: 0 | EV25: 0 | EW25: 0 | EX25: 0 | EY25: 0 | EZ25: 0 | FA25: 0 | FB25: The Presidency|Administration | FC25: 001 | FD25: 001 | FE25: 003 | FF25: 063 | FG25: 001001 | FH25: 001063 | FI25: 63 | FJ25: 001001003063 | FL25: 001001063 | FS25: 45 | FT25: 2 | FU25: Parliament | FV25: 4 | FW25: Support Services | FX25: 3 | FY25: Human Resources Management | GB25: Social security funds | GK25: Grants Admin | GL25: 1 | GM25: 0 | GN25: 23
Y26: 2 | AA26: 2 | AB26: 37 | AC26: Arts and Culture | AF26: Judy Naidoo | AG26: (012) 315 5269 | AH26: Judy.Naidoo@treasury.gov.za | AI26: Pindi Masiso | AJ26: (012) 315 5722 | AK26: Pindi.Masiso@treasury.gov.za | AO26: datafileNAT@treasury.gov.za | AP26: 4622723 | AQ26: 4882785 | AR26: 5166093 | AT26: 37 | AU26: Arts and Culture | AV26: 4622723 | AW26: 4882785 | AX26: 5166093 | BC26: Thefts and losses | DG26: The Presidency | DH26: Executive Support | DI26: 15 | DJ26: 1 | DK26: 1 | DL26: 0 | DM26: 1 | DN26: 1321 | DO26: 1 | DP26: 1384 | DQ26: 1 | DR26: 1551 | DS26: 1 | DT26: 1626 | DU26: 1 | DV26: 1730 | DW26: The Presidency|Executive Support | DX26: 001 | DY26: 002 | DZ26: 001002 | EC26: 113 | ED26: 1 | EE26: 1 | EF26: The Presidency | EG26: 2 | EH26: Executive Support | EI26: 1 | EJ26: Cabinet Services | EK26: Current payments | EL26: Compensation of employees | EM26: Compensation of employees | EN26: 15682 | EO26: 14287 | EP26: 16293 | EQ26: 16143 | ER26: 16143 | ES26: 17232 | ET26: 18413 | EU26: 19794 | EV26: 0 | EW26: 0 | EX26: 0 | EY26: 18413 | EZ26: 19794 | FA26: 21081 | FB26: The Presidency|Executive Support | FC26: 001 | FD26: 002 | FE26: 001 | FF26: 001 | FG26: 001002 | FH26: 001001 | FI26: 1 | FJ26: 001002001001 | FL26: 001002001 | FS26: 60 | FT26: 2 | FU26: Parliament | FV26: 4 | FW26: Support Services | FX26: 4 | FY26: Information Communication & Technology | GB26: Biological assets | GK26: Budget Tracking | GL26: 1 | GM26: 0 | GN26: 24
Y27: 3 | AA27: 3 | AB27: 14 | AC27: Basic Education | AF27: Spencer Janari | AG27: (012) 315 5436 | AH27: Spencer.Janari@treasury.gov.za | AI27: Pindi Masiso | AJ27: (012) 315 5722 | AK27: Pindi.Masiso@treasury.gov.za | AO27: datafileNAT@treasury.gov.za | AP27: 23615319 | AQ27: 25203843 | AR27: 26890637 | AT27: 14 | AU27: Basic Education | AV27: 24505638 | AW27: 25988843 | AX27: 28190637 | BC27: Extension of loans for policy purposes | DG27: The Presidency | DH27: Direct charge against the National Revenue Fund | DI27: Salary of the President | DJ27: 1 | DK27: 1 | DL27: 0 | DM27: 1 | DN27: 2622 | DO27: 1 | DP27: 3109 | DQ27: 1 | DR27: 3274 | DS27: 1 | DT27: 3438 | DU27: 1 | DV27: 3637 | DW27: The Presidency|Direct charge against the National Revenue Fund | DX27: 001 | DY27: 016 | DZ27: 001016 | EC27: 113 | ED27: 2 | EE27: 1 | EF27: The Presidency | EG27: 2 | EH27: Executive Support | EI27: 1 | EJ27: Cabinet Services | EK27: Current payments | EL27: Goods and services | EM27: Goods and services | EN27: 4030 | EO27: 12334 | EP27: 28759 | EQ27: 28259 | ER27: 28259 | ES27: 31190 | ET27: 32761 | EU27: 34507 | EV27: 0 | EW27: 0 | EX27: 0 | EY27: 32761 | EZ27: 34507 | FA27: 36405 | FB27: The Presidency|Executive Support | FC27: 001 | FD27: 002 | FE27: 001 | FF27: 002 | FG27: 001002 | FH27: 001002 | FI27: 2 | FJ27: 001002001002 | FL27: 001002002 | FS27: 59 | FT27: 2 | FU27: Parliament | FV27: 4 | FW27: Support Services | FX27: 5 | FY27: Institutional Support Services | GB27: Specialised military assets | GK27: NMOS | GL27: 1 | GM27: 1 | GN27: 25
Y28: 4 | AA28: 4 | AB28: 47 | AC28: Centre for Public Service Innovation | AF28: George Tembo | AG28: (012) 315 5514 | AH28: George.Tembo@treasury.gov.za | AI28: Mokgatla Tema | AJ28: (012) 315 5948 | AK28: Mokgatla.Tema@treasury.gov.za | AO28: datafileNAT@treasury.gov.za | AP28: 38437 | AQ28: 40969 | AR28: 43446 | AT28: 47 | AU28: Centre for Public Service Innovation | AV28: 38437 | AW28: 40969 | AX28: 43446 | BC28: Purchase of equity | CI28: Array Range to print | DG28: The Presidency | DH28: Direct charge against the National Revenue Fund | DI28: Salary of the Deputy President | DJ28: 1 | DK28: 1 | DL28: 0 | DM28: 1 | DN28: 2208 | DO28: 1 | DP28: 2617 | DQ28: 1 | DR28: 2761 | DS28: 1 | DT28: 2935 | DU28: 1 | DV28: 3105 | DW28: The Presidency|Direct charge against the National Revenue Fund | DX28: 001 | DY28: 016 | DZ28: 001016 | EC28: 114 | ED28: 57 | EE28: 1 | EF28: The Presidency | EG28: 2 | EH28: Executive Support | EI28: 1 | EJ28: Cabinet Services | EK28: Payments for capital assets | EL28: Machinery and equipment | EM28: Other machinery and equipment | EN28: 810 | EO28: 407 | EP28: 1117 | EQ28: 1117 | ER28: 1117 | ES28: 1155 | ET28: 1212 | EU28: 1275 | EV28: 0 | EW28: 0 | EX28: 0 | EY28: 1212 | EZ28: 1275 | FA28: 1345 | FB28: The Presidency|Executive Support | FC28: 001 | FD28: 002 | FE28: 001 | FF28: 057 | FG28: 001002 | FH28: 001057 | FI28: 57 | FJ28: 001002001057 | FL28: 001002057 | FT28: 2 | FU28: Parliament | FV28: 5 | FW28: Associated Services | FX28: 1 | FY28: Members Support Services | GK28: Function shifts | GL28: 1 | GM28: 0 | GN28: 26
Y29: 5 | AA29: 5 | AB29: 41 | AC29: Civilian Secretariat | AF29: Nompumelelo Radebe | AG29: (012) 315 5957 | AH29: Nompumelelo.Radebe@treasury.gov.za | AI29: Sithabiso Buthelezi | AJ29: (012) 406 9025 | AK29: sithabiso.buthelezi@treasury.gov.za | AO29: datafileNAT@treasury.gov.za | AP29: 140469 | AQ29: 150292 | AR29: 159684 | AT29: 41 | AU29: Civilian Secretariat | AV29: 146669 | AW29: 156988 | AX29: 167050 | BC29: Debt take overs | CH29: 1 | CI29: F26:J143,L26:L143,R26:R143,AB26:AB143,AK26:AK143,AT26:AT143 | DG29: Parliament | DH29: Direct charge against the National Revenue Fund | DI29: Members of Parliament | DJ29: 0 | DK29: 0 | DL29: 0 | DM29: 0 | DN29: 479803 | DO29: 0 | DP29: 503132 | DQ29: 0 | DR29: 529798 | DS29: 0 | DT29: 556288 | DU29: 0 | DV29: 588553 | DW29: Parliament|Direct charge against the National Revenue Fund | DX29: 002 | DY29: 016 | DZ29: 002016 | EC29: 114 | ED29: 52 | EE29: 1 | EF29: The Presidency | EG29: 2 | EH29: Executive Support | EI29: 1 | EJ29: Cabinet Services | EK29: Transfers and subsidies | EL29: Households | EM29: Social benefits | EN29: 0 | EO29: 591 | EP29: 0 | EQ29: 1320 | ER29: 1320 | ES29: 0 | ET29: 0 | EU29: 0 | EV29: 0 | EW29: 0 | EX29: 0 | EY29: 0 | EZ29: 0 | FA29: 0 | FB29: The Presidency|Executive Support | FC29: 001 | FD29: 002 | FE29: 001 | FF29: 052 | FG29: 001002 | FH29: 001052 | FI29: 52 | FJ29: 001002001052 | FL29: 001002052 | FT29: 2 | FU29: Parliament | FV29: 5 | FW29: Associated Services | FX29: 2 | FY29: Political Party Support | GK29: Performance Indicators | GL29: 1 | GM29: 0 | GN29: 27
Y30: 6 | AA30: 6 | AB30: 3 | AC30: Communications | AF30: Rhoda Marais | AG30: (012) 315 5906 | AH30: rhoda.marais@treasury.gov.za | AI30: Deeviya Patel | AJ30: (012) 395 6562 | AK30: deeviya.patel@treasury.gov.za | AO30: datafileNAT@treasury.gov.za | AP30: 1589147 | AQ30: 1683640 | AR30: 1751895 | AT30: 3 | AU30: Communications | AV30: 1589147 | AW30: 1683640 | AX30: 1751895 | BC30: Losses on GFECRA | CH30: 2 | DG30: Parliament | DH30: Strategic Leadership and Governance | DI30: 8 | DJ30: 0 | DK30: 0 | DL30: 0 | DM30: 2 | DN30: 324 | DO30: 1 | DP30: 157 | DQ30: 1 | DR30: 166 | DS30: 1 | DT30: 174 | DU30: 1 | DV30: 183 | DW30: Parliament|Strategic Leadership and Governance | DX30: 002 | DY30: 001 | DZ30: 002001 | EC30: 114 | ED30: 63 | EE30: 1 | EF30: The Presidency | EG30: 2 | EH30: Executive Support | EI30: 1 | EJ30: Cabinet Services | EK30: Payments for financial assets | EL30: Payments for financial assets | EM30: Payments for financial assets | EN30: 3 | EO30: 5 | EP30: 0 | EQ30: 0 | ER30: 0 | ES30: 0 | ET30: 0 | EU30: 0 | EV30: 0 | EW30: 0 | EX30: 0 | EY30: 0 | EZ30: 0 | FA30: 0 | FB30: The Presidency|Executive Support | FC30: 001 | FD30: 002 | FE30: 001 | FF30: 063 | FG30: 001002 | FH30: 001063 | FI30: 63 | FJ30: 001002001063 | FL30: 001002063 | FT30: 2 | FU30: Parliament | FV30: 5 | FW30: Associated Services | FX30: 3 | FY30: Constituency Support | GK30: Reprioritisation | GL30: 0 | GM30: 1 | GN30: 28
Y31: 7 | AA31: 7 | AB31: 4 | AC31: Cooperative Governance and Traditional Affairs | AF31: Misaveni Ngobeni | AG31: (012) 315 5305 | AH31: misaveni.ngobeni@treasury.gov.za | AI31: Millicent Mulaudzi | AJ31: (012) 395 6576 | AK31: Millicent.Mulaudzi@treasury.gov.za | AO31: datafileNAT@treasury.gov.za | AP31: 90597259 | AQ31: 98507595 | AR31: 106607425 | AT31: 4 | AU31: Cooperative Governance And Traditional Affairs | AV31: 90730479 | AW31: 98507595 | AX31: 106607425 | BC31: Premiums on loan transactions | CH31: 3 | DG31: Parliament | DH31: Strategic Leadership and Governance | DI31: 9 | DJ31: 1 | DK31: 1 | DL31: 0 | DM31: 2 | DN31: 356 | DO31: 1 | DP31: 159 | DQ31: 1 | DR31: 167 | DS31: 1 | DT31: 175 | DU31: 1 | DV31: 185 | DW31: Parliament|Strategic Leadership and Governance | DX31: 002 | DY31: 001 | DZ31: 002001 | EC31: 121 | ED31: 1 | EE31: 1 | EF31: The Presidency | EG31: 16 | EH31: Direct charge against the National Revenue Fund | EI31: 1 | EJ31: Salary of the President | EK31: Current payments | EL31: Compensation of employees | EM31: Compensation of employees | EN31: 2885 | EO31: 2996 | EP31: 3438 | EQ31: 3438 | ER31: 3438 | ES31: 3637 | ET31: 3913 | EU31: 4206 | EV31: 0 | EW31: 0 | EX31: 0 | EY31: 3913 | EZ31: 4206 | FA31: 4479 | FB31: The Presidency|Direct charge against the National Revenue Fund | FC31: 001 | FD31: 016 | FE31: 001 | FF31: 001 | FG31: 001016 | FH31: 001001 | FI31: 1 | FJ31: 001016001001 | FL31: 001016001 | FT31: 2 | FU31: Parliament | FV31: 5 | FW31: Associated Services | FX31: 4 | FY31: Party Leadership Support | GK31: Personnel | GL31: 1 | GM31: 0 | GN31: 29
Y32: 8 | AA32: 8 | AB32: 18 | AC32: Correctional Services | AF32: Elvis Ramafamba | AG32: (012) 315 5204 | AH32: elvis.ramafamba@treasury.gov.za | AI32: Keabetswe Matlwa | AJ32: (012) 315 6678 | AK32: Keabetswe.Matlwa@treasury.gov.za | AO32: datafileNAT@treasury.gov.za | AP32: 25487579 | AQ32: 27251424 | AR32: 28962564 | AT32: 18 | AU32: Correctional Services | AV32: 25407638 | AW32: 27177120 | AX32: 28962564 | BC32: Other | CH32: 4 | DG32: Parliament | DH32: Strategic Leadership and Governance | DI32: 10 | DJ32: 6 | DK32: 6 | DL32: 0 | DM32: 25 | DN32: 6923 | DO32: 18 | DP32: 3196 | DQ32: 18 | DR32: 3375 | DS32: 18 | DT32: 3543 | DU32: 18 | DV32: 3745 | DW32: Parliament|Strategic Leadership and Governance | DX32: 002 | DY32: 001 | DZ32: 002001 | EC32: 121 | ED32: 1 | EE32: 1 | EF32: The Presidency | EG32: 16 | EH32: Direct charge against the National Revenue Fund | EI32: 2 | EJ32: Salary of the Deputy President | EK32: Current payments | EL32: Compensation of employees | EM32: Compensation of employees | EN32: 2735 | EO32: 2717 | EP32: 2935 | EQ32: 2935 | ER32: 2935 | ES32: 3105 | ET32: 3341 | EU32: 3592 | EV32: 0 | EW32: 0 | EX32: 0 | EY32: 3341 | EZ32: 3592 | FA32: 3825 | FB32: The Presidency|Direct charge against the National Revenue Fund | FC32: 001 | FD32: 016 | FE32: 002 | FF32: 001 | FG32: 001016 | FH32: 001001 | FI32: 1 | FJ32: 001016002001 | FL32: 001016001 | FT32: 2 | FU32: Parliament | FV32: 5 | FW32: Associated Services | FX32: 5 | FY32: National Assembly Member's Facilities | GK32: Receipts | GL32: 1 | GM32: 0 | GN32: 30
Y33: 9 | AA33: 9 | AB33: 19 | AC33: Defence and Military Veterans | AF33: Mashudu Bidzha | AG33: (012) 315 5344 | AH33: mashudu.bidzha@treasury.gov.za | AI33: Lesiba Ledwaba | AJ33: (012) 315 6660 | AK33: Lesiba.Ledwaba@treasury.gov.za | AO33: datafileNAT@treasury.gov.za | AP33: 50696236 | AQ33: 53999283 | AR33: 57312272 | AT33: 19 | AU33: Defence And Military Veterans | AV33: 50542843 | AW33: 53856708 | AX33: 57312272 | CH33: 5 | DG33: Parliament | DH33: Strategic Leadership and Governance | DI33: 11 | DJ33: 23 | DK33: 23 | DL33: 0 | DM33: 17 | DN33: 7487 | DO33: 12 | DP33: 3590 | DQ33: 12 | DR33: 3791 | DS33: 12 | DT33: 3981 | DU33: 12 | DV33: 4208 | DW33: Parliament|Strategic Leadership and Governance | DX33: 002 | DY33: 001 | DZ33: 002001 | EC33: 121 | ED33: 1 | EE33: 2 | EF33: Parliament | EG33: 1 | EH33: Strategic Leadership and Governance | EI33: 1 | EJ33: Office of the Speaker | EK33: Current payments | EL33: Compensation of employees | EM33: Compensation of employees | EN33: 27473 | EO33: 33326 | EP33: 27933 | EQ33: 27933 | ER33: 27933 | ES33: 40292 | ET33: 30638 | EU33: 42168 | EV33: 0 | EW33: 0 | EX33: 0 | EY33: 30638 | EZ33: 42168 | FA33: 44909 | FB33: Parliament|Strategic Leadership and Governance | FC33: 002 | FD33: 001 | FE33: 001 | FF33: 001 | FG33: 002001 | FH33: 002001 | FI33: 1 | FJ33: 002001001001 | FL33: 002001001 | FT33: 2 | FU33: Parliament | FV33: 5 | FW33: Associated Services | FX33: 6 | FY33: National Council of Provinces Member's Facilities | GK33: Analysis | GL33: 1 | GM33: 0 | GN33: 31
Y34: 10 | AA34: 10 | AB34: 25 | AC34: Economic Development | AF34: Isaac Kurasha | AG34: (012) 315 5213 | AH34: isaac.kurasha@treasury.gov.za | AI34: Millicent Movare | AJ34: (012) 315 5279 | AK34: millicent.movare@treasury.gov.za | AO34: datafileNAT@treasury.gov.za | AP34: 1016248 | AQ34: 1067223 | AR34: 1126970 | AT34: 25 | AU34: Economic Development | AV34: 1014395 | AW34: 1065148 | AX34: 1124943 | AY34: Funding Pressures | AZ34: Type of request | BA34: Compensation of employees | DG34: Parliament | DH34: Strategic Leadership and Governance | DI34: 12 | DJ34: 23 | DK34: 23 | DL34: 0 | DM34: 26 | DN34: 12332 | DO34: 20 | DP34: 8112 | DQ34: 20 | DR34: 8563 | DS34: 20 | DT34: 8991 | DU34: 20 | DV34: 9503 | DW34: Parliament|Strategic Leadership and Governance | DX34: 002 | DY34: 001 | DZ34: 002001 | EC34: 121 | ED34: 2 | EE34: 2 | EF34: Parliament | EG34: 1 | EH34: Strategic Leadership and Governance | EI34: 1 | EJ34: Office of the Speaker | EK34: Current payments | EL34: Goods and services | EM34: Goods and services | EN34: 17446 | EO34: 11545 | EP34: 11177 | EQ34: 11177 | ER34: 11177 | ES34: 11856 | ET34: 12711 | EU34: 13410 | EV34: 0 | EW34: 0 | EX34: 0 | EY34: 12711 | EZ34: 13410 | FA34: 14148 | FB34: Parliament|Strategic Leadership and Governance | FC34: 002 | FD34: 001 | FE34: 001 | FF34: 002 | FG34: 002001 | FH34: 002002 | FI34: 2 | FJ34: 002001001002 | FL34: 002001002 | FT34: 2 | FU34: Parliament | FV34: 16 | FW34: Direct charge against the National Revenue Fund | FX34: 1 | FY34: Members Remuneration | GK34: InfraS Summary | GL34: 1 | GM34: 0 | GN34: 32
Y35: 11 | AA35: 11 | AB35: 26 | AC35: Energy | AF35: Rezah Atcha | AG35: (012) 315 5287 | AH35: Rezah.Atcha@treasury.gov.za | AI35: Nomagugu Madikane | AJ35: (012) 315 5312 | AK35: Nomagugu.Madikane@treasury.gov.za | AO35: datafileNAT@treasury.gov.za | AP35: 7573646 | AQ35: 7997605 | AR35: 8486465 | AT35: 26 | AU35: Energy | AV35: 7440021 | AW35: 7874744 | AX35: 8408778 | AY35: Current payments - Compensation of employees | AZ35: New project | BA35: Goods and services | DG35: Parliament | DH35: Strategic Leadership and Governance | DI35: 13 | DJ35: 20 | DK35: 20 | DL35: 0 | DM35: 9 | DN35: 6882 | DO35: 21 | DP35: 11577 | DQ35: 21 | DR35: 12226 | DS35: 21 | DT35: 12837 | DU35: 21 | DV35: 13569 | DW35: Parliament|Strategic Leadership and Governance | DX35: 002 | DY35: 001 | DZ35: 002001 | EC35: 121 | ED35: 57 | EE35: 2 | EF35: Parliament | EG35: 1 | EH35: Strategic Leadership and Governance | EI35: 1 | EJ35: Office of the Speaker | EK35: Payments for capital assets | EL35: Machinery and equipment | EM35: Other machinery and equipment | EN35: 263 | EO35: 32 | EP35: 292 | EQ35: 292 | ER35: 292 | ES35: 309 | ET35: 326 | EU35: 344 | EV35: 0 | EW35: 0 | EX35: 0 | EY35: 326 | EZ35: 344 | FA35: 363 | FB35: Parliament|Strategic Leadership and Governance | FC35: 002 | FD35: 001 | FE35: 001 | FF35: 057 | FG35: 002001 | FH35: 002057 | FI35: 57 | FJ35: 002001001057 | FL35: 002001057 | FT35: 3 | FU35: Communications | FV35: 1 | FW35: Administration | FX35: 1 | FY35: Ministry | GK35: InfraS 1.1 | GL35: 1 | GM35: 0 | GN35: 33
Y36: 12 | AA36: 12 | AB36: 27 | AC36: Environmental Affairs | AF36: Ashley Ramasimu | AG36: (012) 315 5166 | AH36: Ashley.Ramasimu@treasury.gov.za | AI36: Thabiso Molewa | AJ36: (012) 395 6780 | AK36: Thabiso.Molewa@treasury.gov.za | AO36: datafileNAT@treasury.gov.za | AP36: 7531838 | AQ36: 7969308 | AR36: 8301222 | AT36: 27 | AU36: Environmental Affairs | AV36: 7556751 | AW36: 7987903 | AX36: 8273365 | AY36: Current payments - Goods and services | AZ36: Urgent cost pressure | BA36: Interest and rent on land | CI36: Array Range to lock (Cond Grants sheet) | DG36: Parliament | DH36: Strategic Leadership and Governance | DI36: 14 | DJ36: 34 | DK36: 34 | DL36: 0 | DM36: 8 | DN36: 6610 | DO36: 9 | DP36: 5375 | DQ36: 9 | DR36: 5676 | DS36: 9 | DT36: 5959 | DU36: 9 | DV36: 6299 | DW36: Parliament|Strategic Leadership and Governance | DX36: 002 | DY36: 001 | DZ36: 002001 | EC36: 121 | ED36: 1 | EE36: 2 | EF36: Parliament | EG36: 1 | EH36: Strategic Leadership and Governance | EI36: 2 | EJ36: Office of the Chairperson | EK36: Current payments | EL36: Compensation of employees | EM36: Compensation of employees | EN36: 16642 | EO36: 27837 | EP36: 16946 | EQ36: 16946 | ER36: 16946 | ES36: 28668 | ET36: 18132 | EU36: 28724 | EV36: 0 | EW36: 0 | EX36: 0 | EY36: 18132 | EZ36: 28724 | FA36: 30591 | FB36: Parliament|Strategic Leadership and Governance | FC36: 002 | FD36: 001 | FE36: 002 | FF36: 001 | FG36: 002001 | FH36: 002001 | FI36: 1 | FJ36: 002001002001 | FL36: 002001001 | FT36: 3 | FU36: Communications | FV36: 1 | FW36: Administration | FX36: 2 | FY36: Departmental Management | GK36: InfraS 1.2 | GL36: 1 | GM36: 0 | GN36: 34
Y37: 13 | AA37: 13 | AB37: 46 | AC37: Government Communication and Information System | AF37: Rhoda Marais | AG37: (012) 315 5906 | AH37: rhoda.marais@treasury.gov.za | AI37: Deeviya Patel | AJ37: (012) 395 6562 | AK37: deeviya.patel@treasury.gov.za | AO37: datafileNAT@treasury.gov.za | AP37: 441683 | AQ37: 471442 | AR37: 500309 | AT37: 46 | AU37: Government Communication and Information System | AV37: 441683 | AW37: 471442 | AX37: 500309 | AY37: Current payments - Interest and rent on land | AZ37: Expansion of existing project | BA37: Provinces and municipalities | CH37: 1 | CI37: V57:W66,AE57:AF66,AN57:AO66,V79:W88,AE79:AF88,AN79:AO88,V101:W110,AE101:AF110,AN101:AO110 | DG37: Parliament | DH37: Strategic Leadership and Governance | DI37: 15 | DJ37: 10 | DK37: 10 | DL37: 0 | DM37: 9 | DN37: 9208 | DO37: 16 | DP37: 10338 | DQ37: 16 | DR37: 10916 | DS37: 16 | DT37: 11461 | DU37: 16 | DV37: 12114 | DW37: Parliament|Strategic Leadership and Governance | DX37: 002 | DY37: 001 | DZ37: 002001 | EC37: 1161 | ED37: 2 | EE37: 2 | EF37: Parliament | EG37: 1 | EH37: Strategic Leadership and Governance | EI37: 2 | EJ37: Office of the Chairperson | EK37: Current payments | EL37: Goods and services | EM37: Goods and services | EN37: 22202 | EO37: 8873 | EP37: 14733 | EQ37: 14733 | ER37: 14733 | ES37: 15683 | ET37: 16751 | EU37: 17672 | EV37: 0 | EW37: 0 | EX37: 0 | EY37: 16751 | EZ37: 17672 | FA37: 18644 | FB37: Parliament|Strategic Leadership and Governance | FC37: 002 | FD37: 001 | FE37: 002 | FF37: 002 | FG37: 002001 | FH37: 002002 | FI37: 2 | FJ37: 002001002002 | FL37: 002001002 | FT37: 3 | FU37: Communications | FV37: 1 | FW37: Administration | FX37: 3 | FY37: Internal Audit | GK37: ODA Summary | GL37: 1 | GM37: 0 | GN37: 35
Y38: 14 | AA38: 14 | AB38: 16 | AC38: Health | AF38: Refiloe Thokoa | AG38: (012) 395 6559 | AH38: Refiloe.Thokoa@treasury.gov.za | AI38: Shaneel Ragoo | AJ38: (012) 315 5323 | AK38: Shaneel.Ragoo@treasury.gov.za | AO38: datafileNAT@treasury.gov.za | AP38: 51453374 | AQ38: 56269329 | AR38: 60526488 | AT38: 16 | AU38: Health | AV38: 51529078 | AW38: 56763034 | AX38: 62024488 | AY38: Current Transfers and subsidies - Provinces and municipalities | BA38: Departmental agencies and accounts | BC38: Transfer Type | CH38: 2 | CI38: V123:W132,AE123:AF132,AN123:AO132,V145:W154,AE145:AF154,AN145:AO154,V167:W176,AE167:AF176,AN167:AO176 | DG38: Parliament | DH38: Strategic Leadership and Governance | DI38: 16 | DJ38: 27 | DK38: 27 | DL38: 0 | DM38: 1 | DN38: 1635 | DO38: 1 | DP38: 1611 | DQ38: 1 | DR38: 1730 | DS38: 1 | DT38: 1819 | DU38: 1 | DV38: 1969 | DW38: Parliament|Strategic Leadership and Governance | DX38: 002 | DY38: 001 | DZ38: 002001 | EC38: 1162 | ED38: 57 | EE38: 2 | EF38: Parliament | EG38: 1 | EH38: Strategic Leadership and Governance | EI38: 2 | EJ38: Office of the Chairperson | EK38: Payments for capital assets | EL38: Machinery and equipment | EM38: Other machinery and equipment | EN38: 101 | EO38: 80 | EP38: 112 | EQ38: 112 | ER38: 112 | ES38: 118 | ET38: 125 | EU38: 132 | EV38: 0 | EW38: 0 | EX38: 0 | EY38: 125 | EZ38: 132 | FA38: 139 | FB38: Parliament|Strategic Leadership and Governance | FC38: 002 | FD38: 001 | FE38: 002 | FF38: 057 | FG38: 002001 | FH38: 002057 | FI38: 57 | FJ38: 002001002057 | FL38: 002001057 | FT38: 3 | FU38: Communications | FV38: 1 | FW38: Administration | FX38: 4 | FY38: Corporate Services | GK38: Deviations | GL38: 1 | GM38: 0 | GN38: 36
Y39: 15 | AA39: 15 | AB39: 15 | AC39: Higher Education and Training | AF39: Barileng Sape | AG39: (012) 406 9069 | AH39: barileng.sape@treasury.gov.za | AI39: Walter Munyai | AJ39: (012) 315 5636 | AK39: Walter.Munyai@treasury.gov.za | AO39: datafileNAT@treasury.gov.za | AP39: 108397560 | AQ39: 119288117 | AR39: 126698336 | AT39: 15 | AU39: Higher Education and Training | AV39: 108467560 | AW39: 119288117 | AX39: 126698336 | AY39: Current Transfers and subsidies - Departmental agencies and accounts | BA39: Higher education institutions | BC39: Indirect Grant | CH39: 3 | CI39: V189:W198,AE189:AF198,AN189:AO198,V211:W220,AE211:AF220,AN211:AO220,V233:W242,AE233:AF242,AN233:AO242 | DG39: Parliament | DH39: Strategic Leadership and Governance | DI39: Other please specify | DJ39: 1 | DK39: 1 | DL39: 0 | DM39: 0 | DN39: 0 | DO39: 0 | DP39: 0 | DQ39: 0 | DR39: 0 | DS39: 0 | DT39: 0 | DU39: 0 | DV39: 0 | DW39: Parliament|Strategic Leadership and Governance | DX39: 002 | DY39: 001 | DZ39: 002001 | EC39: 211 | ED39: 1 | EE39: 2 | EF39: Parliament | EG39: 1 | EH39: Strategic Leadership and Governance | EI39: 3 | EJ39: Treasury Advise Office | EK39: Current payments | EL39: Compensation of employees | EM39: Compensation of employees | EN39: 1870 | EO39: 0 | EP39: 0 | EQ39: 0 | ER39: 0 | ES39: 0 | ET39: 0 | EU39: 0 | EV39: 0 | EW39: 0 | EX39: 0 | EY39: 0 | EZ39: 0 | FA39: 0 | FB39: Parliament|Strategic Leadership and Governance | FC39: 002 | FD39: 001 | FE39: 003 | FF39: 001 | FG39: 002001 | FH39: 002001 | FI39: 1 | FJ39: 002001003001 | FL39: 002001001 | FT39: 3 | FU39: Communications | FV39: 1 | FW39: Administration | FX39: 5 | FY39: Financial Management | GK39: Dept specific info | GL39: 1 | GM39: 0 | GN39: 37
Y40: 16 | AA40: 16 | AB40: 5 | AC40: Home Affairs | AF40: Timothy Murwa | AG40: (012) 315 5002 | AH40: Timothy.Murwa@treasury.gov.za | AI40: Isaac Mabena | AJ40: (012) 315 5582 | AK40: Isaac.Mabena@treasury.gov.za | AO40: datafileNAT@treasury.gov.za | AP40: 8308510 | AQ40: 8750844 | AR40: 9270399 | AT40: 5 | AU40: Home Affairs | AV40: 8343894 | AW40: 8747964 | AX40: 9617449 | AY40: Current Transfers and subsidies - Higher education institutions | BA40: Foreign governments and international organisations | BC40: Budgetary allocation to entities | CH40: 4 | CI40: V255:W264,AE255:AF264,AN255:AO264,V277:W286,AE277:AF286,AN277:AO286,V299:W308,AE299:AF308,AN299:AO308 | DG40: Parliament | DH40: Administration | DI40: 8 | DJ40: 2 | DK40: 2 | DL40: 0 | DM40: 3 | DN40: 857 | DO40: 1 | DP40: 246 | DQ40: 1 | DR40: 307 | DS40: 1 | DT40: 333 | DU40: 1 | DV40: 361 | DW40: Parliament|Administration | DX40: 002 | DY40: 002 | DZ40: 002002 | EC40: 211 | ED40: 2 | EE40: 2 | EF40: Parliament | EG40: 1 | EH40: Strategic Leadership and Governance | EI40: 3 | EJ40: Treasury Advise Office | EK40: Current payments | EL40: Goods and services | EM40: Goods and services | EN40: 138 | EO40: 0 | EP40: 0 | EQ40: 0 | ER40: 0 | ES40: 0 | ET40: 0 | EU40: 0 | EV40: 0 | EW40: 0 | EX40: 0 | EY40: 0 | EZ40: 0 | FA40: 0 | FB40: Parliament|Strategic Leadership and Governance | FC40: 002 | FD40: 001 | FE40: 003 | FF40: 002 | FG40: 002001 | FH40: 002002 | FI40: 2 | FJ40: 002001003002 | FL40: 002001002 | FT40: 3 | FU40: Communications | FV40: 2 | FW40: Communications Policy, Research and Development | FX40: 2 | FY40: Broadcasting Policy | GK40: Dept specific info-Own Format | GL40: 1 | GM40: 0 | GN40: 39
Y41: 17 | AA41: 17 | AB41: 38 | AC41: Human Settlements | AF41: James Archer | AG41: (012) 395 6736 | AH41: James.Archer@treasury.gov.za | AI41: Lindiwe Ngcongwane | AJ41: (012) 315 5357 | AK41: Lindiwe.Ngcongwane@treasury.gov.za | AO41: datafileNAT@treasury.gov.za | AP41: 33687905 | AQ41: 35786164 | AR41: 38411495 | AT41: 38 | AU41: Human Settlements | AV41: 33899518 | AW41: 36153764 | AX41: 38693813 | AY41: Current Transfers and subsidies - Foreign governments and international organisations | BA41: Public corporations and private enterprises | BC41: Other | CH41: 5 | CI41: V321:W330,AE321:AF330,AN321:AO330,V343:W352,AE343:AF352,AN343:AO352,V365:W374,AE365:AF374,AN365:AO374 | DG41: Parliament | DH41: Administration | DI41: 9 | DJ41: 23 | DK41: 23 | DL41: 0 | DM41: 14 | DN41: 4356 | DO41: 17 | DP41: 5134 | DQ41: 17 | DR41: 6822 | DS41: 17 | DT41: 7415 | DU41: 17 | DV41: 7045 | DW41: Parliament|Administration | DX41: 002 | DY41: 002 | DZ41: 002002 | EC41: 211 | ED41: 57 | EE41: 2 | EF41: Parliament | EG41: 1 | EH41: Strategic Leadership and Governance | EI41: 3 | EJ41: Treasury Advise Office | EK41: Payments for capital assets | EL41: Machinery and equipment | EM41: Other machinery and equipment | EN41: 49 | EO41: 0 | EP41: 0 | EQ41: 0 | ER41: 0 | ES41: 0 | ET41: 0 | EU41: 0 | EV41: 0 | EW41: 0 | EX41: 0 | EY41: 0 | EZ41: 0 | FA41: 0 | FB41: Parliament|Strategic Leadership and Governance | FC41: 002 | FD41: 001 | FE41: 003 | FF41: 057 | FG41: 002001 | FH41: 002057 | FI41: 57 | FJ41: 002001003057 | FL41: 002001057 | FT41: 3 | FU41: Communications | FV41: 2 | FW41: Communications Policy, Research and Development | FX41: 3 | FY41: Media Policy | GK41: Training | GL41: 1 | GM41: 0 | GN41: 40
Y42: 18 | AA42: 18 | AB42: 20 | AC42: Independent Police Investigative Directorate | AF42: Nompumelelo Radebe | AG42: (012) 315 5957 | AH42: Nompumelelo.Radebe@treasury.gov.za | AI42: Sithabiso Buthelezi | AJ42: (012) 406 9025 | AK42: sithabiso.buthelezi@treasury.gov.za | AO42: datafileNAT@treasury.gov.za | AP42: 336653 | AQ42: 359383 | AR42: 381615 | AT42: 20 | AU42: Independent Police Investigative Directorate | AV42: 336653 | AW42: 359383 | AX42: 381615 | AY42: Current Transfers and subsidies - Public corporations and private enterprises | BA42: Non-profit institutions | DG42: Parliament | DH42: Administration | DI42: 10 | DJ42: 44 | DK42: 44 | DL42: 0 | DM42: 36 | DN42: 15393 | DO42: 41 | DP42: 13799 | DQ42: 41 | DR42: 16796 | DS42: 41 | DT42: 18240 | DU42: 41 | DV42: 19790 | DW42: Parliament|Administration | DX42: 002 | DY42: 002 | DZ42: 002002 | EC42: 212 | ED42: 1 | EE42: 2 | EF42: Parliament | EG42: 1 | EH42: Strategic Leadership and Governance | EI42: 4 | EJ42: Parliamentary Budget Office | EK42: Current payments | EL42: Compensation of employees | EM42: Compensation of employees | EN42: 10571 | EO42: 12598 | EP42: 0 | EQ42: 0 | ER42: 0 | ES42: 0 | ET42: 0 | EU42: 0 | EV42: 0 | EW42: 0 | EX42: 0 | EY42: 0 | EZ42: 0 | FA42: 0 | FB42: Parliament|Strategic Leadership and Governance | FC42: 002 | FD42: 001 | FE42: 004 | FF42: 001 | FG42: 002001 | FH42: 002001 | FI42: 1 | FJ42: 002001004001 | FL42: 002001001 | FT42: 3 | FU42: Communications | FV42: 2 | FW42: Communications Policy, Research and Development | FX42: 4 | FY42: Technology and Engineering Services | GK42: PPP Projects | GL42: 1 | GM42: 0 | GN42: 41
Y43: 19 | AA43: 19 | AB43: 6 | AC43: International Relations and Cooperation | AF43: Timothy Murwa | AG43: (012) 315 5002 | AH43: Timothy.Murwa@treasury.gov.za | AI43: Gcobisa Magazi | AJ43: (012) 315 5320 | AK43: gcobia.magazi@treasury.gov.za | AO43: datafileNAT@treasury.gov.za | AP43: 6308515 | AQ43: 6712826 | AR43: 7118252 | AT43: 6 | AU43: International Relations and Cooperation | AV43: 6808515 | AW43: 7026126 | AX43: 7118252 | AY43: Current Transfers and subsidies - Non-profit institutions | BA43: Households | DG43: Parliament | DH43: Administration | DI43: 11 | DJ43: 15 | DK43: 15 | DL43: 0 | DM43: 19 | DN43: 8656 | DO43: 8 | DP43: 3324 | DQ43: 8 | DR43: 4985 | DS43: 8 | DT43: 5419 | DU43: 8 | DV43: 6854 | DW43: Parliament|Administration | DX43: 002 | DY43: 002 | DZ43: 002002 | EC43: 212 | ED43: 2 | EE43: 2 | EF43: Parliament | EG43: 1 | EH43: Strategic Leadership and Governance | EI43: 4 | EJ43: Parliamentary Budget Office | EK43: Current payments | EL43: Goods and services | EM43: Goods and services | EN43: 2104 | EO43: 1038 | EP43: 0 | EQ43: 0 | ER43: 0 | ES43: 0 | ET43: 0 | EU43: 0 | EV43: 0 | EW43: 0 | EX43: 0 | EY43: 0 | EZ43: 0 | FA43: 0 | FB43: Parliament|Strategic Leadership and Governance | FC43: 002 | FD43: 001 | FE43: 004 | FF43: 002 | FG43: 002001 | FH43: 002002 | FI43: 2 | FJ43: 002001004002 | FL43: 002001002 | FT43: 3 | FU43: Communications | FV43: 3 | FW43: Industry and Capacity Development | FX43: 2 | FY43: Enterprise Development | GK43: Outputs | GL43: 0 | GM43: 1 | GN43: 42
Y44: 20 | AA44: 20 | AB44: 21 | AC44: Justice and Constitutional Development | AF44: Werner Krause | AG44: (012) 315 5211 | AH44: werner.krause@treasury.gov.za | AI44: Tshegofatso Mentor | AJ44: (012) 315 5468 | AK44: tshegofatso.mentor@treasury.gov.za | AO44: datafileNAT@treasury.gov.za | AP44: 20566415 | AQ44: 21934351 | AR44: 23286373 | AT44: 21 | AU44: Justice and Constitutional Development | AV44: 21119403 | AW44: 22235776 | AX44: 23657302 | AY44: Current Transfers and subsidies - Households | BA44: Buildings and other fixed structures | DG44: Parliament | DH44: Administration | DI44: 12 | DJ44: 17 | DK44: 17 | DL44: 0 | DM44: 19 | DN44: 13258 | DO44: 17 | DP44: 11162 | DQ44: 17 | DR44: 13908 | DS44: 17 | DT44: 15118 | DU44: 17 | DV44: 16503 | DW44: Parliament|Administration | DX44: 002 | DY44: 002 | DZ44: 002002 | EC44: 212 | ED44: 57 | EE44: 2 | EF44: Parliament | EG44: 1 | EH44: Strategic Leadership and Governance | EI44: 4 | EJ44: Parliamentary Budget Office | EK44: Payments for capital assets | EL44: Machinery and equipment | EM44: Other machinery and equipment | EN44: 55 | EO44: 57 | EP44: 0 | EQ44: 0 | ER44: 0 | ES44: 0 | ET44: 0 | EU44: 0 | EV44: 0 | EW44: 0 | EX44: 0 | EY44: 0 | EZ44: 0 | FA44: 0 | FB44: Parliament|Strategic Leadership and Governance | FC44: 002 | FD44: 001 | FE44: 004 | FF44: 057 | FG44: 002001 | FH44: 002057 | FI44: 57 | FJ44: 002001004057 | FL44: 002001057 | FT44: 3 | FU44: Communications | FV44: 3 | FW44: Industry and Capacity Development | FX44: 3 | FY44: Broadcasting Digital Migration | GK44: Checks | GL44: 1 | GM44: 0 | GN44: 43
Y45: 21 | AA45: 21 | AB45: 28 | AC45: Labour | AF45: Judy Naidoo | AG45: (012) 315 5269 | AH45: Judy.Naidoo@treasury.gov.za | AI45: Kismore Mangondo | AJ45: (012) 315-5773 | AK45: Kismore.Mangondo@treasury.gov.za | AO45: datafileNAT@treasury.gov.za | AP45: 3432933 | AQ45: 3648729 | AR45: 3868968 | AT45: 28 | AU45: Labour | AV45: 3441017 | AW45: 3676779 | AX45: 3899938 | AY45: Capital Transfers and subsidies - Provinces and municipalities | BA45: Machinery and equipment | DG45: Parliament | DH45: Administration | DI45: 13 | DJ45: 23 | DK45: 23 | DL45: 0 | DM45: 8 | DN45: 7194 | DO45: 16 | DP45: 12920 | DQ45: 16 | DR45: 15983 | DS45: 16 | DT45: 17389 | DU45: 16 | DV45: 18967 | DW45: Parliament|Administration | DX45: 002 | DY45: 002 | DZ45: 002002 | EC45: 221 | ED45: 1 | EE45: 2 | EF45: Parliament | EG45: 1 | EH45: Strategic Leadership and Governance | EI45: 5 | EJ45: Office of Institutions Supporting Democracy | EK45: Current payments | EL45: Compensation of employees | EM45: Compensation of employees | EN45: 3768 | EO45: 6101 | EP45: 0 | EQ45: 0 | ER45: 0 | ES45: 0 | ET45: 0 | EU45: 0 | EV45: 0 | EW45: 0 | EX45: 0 | EY45: 0 | EZ45: 0 | FA45: 0 | FB45: Parliament|Strategic Leadership and Governance | FC45: 002 | FD45: 001 | FE45: 005 | FF45: 001 | FG45: 002001 | FH45: 002001 | FI45: 1 | FJ45: 002001005001 | FL45: 002001001 | FT45: 3 | FU45: Communications | FV45: 3 | FW45: Industry and Capacity Development | FX45: 4 | FY45: Industry Research and Analysis | GK45: Metadata | GL45: 0 | GM45: 1 | GN45: 44
Y46: 22 | AA46: 22 | AB46: 42 | AC46: Military Veterans | AF46: Mashudu Bidzha | AG46: (012) 315 5344 | AH46: mashudu.bidzha@treasury.gov.za | AI46: Lesiba Ledwaba | AJ46: (012) 315 6660 | AK46: Lesiba.Ledwaba@treasury.gov.za | AO46: datafileNAT@treasury.gov.za | AP46: 664527 | AQ46: 703606 | AR46: 743716 | AT46: 42 | AU46: Military Veterans | AV46: 662553 | AW46: 701771 | AX46: 743716 | AY46: Capital Transfers and subsidies - Departmental agencies and accounts | BA46: Heritage assets | DG46: Parliament | DH46: Administration | DI46: 14 | DJ46: 8 | DK46: 8 | DL46: 0 | DM46: 7 | DN46: 6479 | DO46: 6 | DP46: 5021 | DQ46: 6 | DR46: 6475 | DS46: 6 | DT46: 7038 | DU46: 6 | DV46: 7736 | DW46: Parliament|Administration | DX46: 002 | DY46: 002 | DZ46: 002002 | EC46: 221 | ED46: 2 | EE46: 2 | EF46: Parliament | EG46: 1 | EH46: Strategic Leadership and Governance | EI46: 5 | EJ46: Office of Institutions Supporting Democracy | EK46: Current payments | EL46: Goods and services | EM46: Goods and services | EN46: 250 | EO46: 321 | EP46: 0 | EQ46: 0 | ER46: 0 | ES46: 0 | ET46: 0 | EU46: 0 | EV46: 0 | EW46: 0 | EX46: 0 | EY46: 0 | EZ46: 0 | FA46: 0 | FB46: Parliament|Strategic Leadership and Governance | FC46: 002 | FD46: 001 | FE46: 005 | FF46: 002 | FG46: 002001 | FH46: 002002 | FI46: 2 | FJ46: 002001005002 | FL46: 002001002 | FT46: 3 | FU46: Communications | FV46: 4 | FW46: Entity Oversight | FX46: 1 | FY46: Programme Management for Entity Oversight | GL46: 0 | GM46: 0 | GN46: 45
Y47: 23 | AA47: 23 | AB47: 29 | AC47: Mineral Resources | AF47: Bothwell Deka | AG47: (012) 395 6784 | AH47: Bothwell.Deka@treasury.gov.za | AI47: Nico Likhethe | AJ47: (012) 315 5558 | AK47: Nico.Likhethe@treasury.gov.za | AO47: datafileNAT@treasury.gov.za | AP47: 2015977 | AQ47: 2139723 | AR47: 2055969 | AT47: 29 | AU47: Mineral Resources | AV47: 2017503 | AW47: 2136331 | AX47: 2057665 | AY47: Capital Transfers and subsidies - Higher education institutions | BA47: Specialised military assets | DG47: Parliament | DH47: Administration | DI47: 15 | DJ47: 9 | DK47: 9 | DL47: 0 | DM47: 4 | DN47: 4241 | DO47: 7 | DP47: 6757 | DQ47: 7 | DR47: 8475 | DS47: 7 | DT47: 9154 | DU47: 7 | DV47: 9833 | DW47: Parliament|Administration | DX47: 002 | DY47: 002 | DZ47: 002002 | EC47: 221 | ED47: 57 | EE47: 2 | EF47: Parliament | EG47: 1 | EH47: Strategic Leadership and Governance | EI47: 5 | EJ47: Office of Institutions Supporting Democracy | EK47: Payments for capital assets | EL47: Machinery and equipment | EM47: Other machinery and equipment | EN47: 231 | EO47: 21 | EP47: 0 | EQ47: 0 | ER47: 0 | ES47: 0 | ET47: 0 | EU47: 0 | EV47: 0 | EW47: 0 | EX47: 0 | EY47: 0 | EZ47: 0 | FA47: 0 | FB47: Parliament|Strategic Leadership and Governance | FC47: 002 | FD47: 001 | FE47: 005 | FF47: 057 | FG47: 002001 | FH47: 002057 | FI47: 57 | FJ47: 002001005057 | FL47: 002001057 | FT47: 3 | FU47: Communications | FV47: 4 | FW47: Entity Oversight | FX47: 2 | FY47: Broadcasting and Community Media | GL47: 0 | GM47: 0 | GN47: 46
Y48: 24 | AA48: 24 | AB48: 44 | AC48: National School of Government | AF48: George Tembo | AG48: (012) 315 5514 | AH48: George.Tembo@treasury.gov.za | AI48: Mokgatla Tema | AJ48: (012) 315 5948 | AK48: Mokgatla.Tema@treasury.gov.za | AO48: datafileNAT@treasury.gov.za | AP48: 179293 | AQ48: 190322 | AR48: 201419 | AT48: 44 | AU48: National School of Government | AV48: 179293 | AW48: 190322 | AX48: 201419 | AY48: Capital Transfers and subsidies - Foreign governments and international organisations | BA48: Biological assets | DG48: Parliament | DH48: Administration | DI48: 16 | DJ48: 1 | DK48: 1 | DL48: 0 | DM48: 1 | DN48: 2482 | DO48: 1 | DP48: 2300 | DQ48: 1 | DR48: 2785 | DS48: 1 | DT48: 3027 | DU48: 1 | DV48: 3184 | DW48: Parliament|Administration | DX48: 002 | DY48: 002 | DZ48: 002002 | EC48: 222 | ED48: 1 | EE48: 2 | EF48: Parliament | EG48: 2 | EH48: Administration | EI48: 1 | EJ48: Secretary's Office | EK48: Current payments | EL48: Compensation of employees | EM48: Compensation of employees | EN48: 9448 | EO48: 12085 | EP48: 10418 | EQ48: 10418 | ER48: 10418 | ES48: 17199 | ET48: 11486 | EU48: 18647 | EV48: 0 | EW48: 0 | EX48: 0 | EY48: 11486 | EZ48: 18647 | FA48: 19859 | FB48: Parliament|Administration | FC48: 002 | FD48: 002 | FE48: 001 | FF48: 001 | FG48: 002002 | FH48: 002001 | FI48: 1 | FJ48: 002002001001 | FL48: 002002001 | FT48: 3 | FU48: Communications | FV48: 4 | FW48: Entity Oversight | FX48: 3 | FY48: Communication and Branding | GL48: 0 | GM48: 0 | GN48: 47
Y49: 25 | AA49: 25 | AB49: 7 | AC49: National Treasury | AF49: Rhoda Marais | AG49: (012) 315 5906 | AH49: rhoda.marais@treasury.gov.za | AI49: Deeviya Patel | AJ49: (012) 395 6562 | AK49: deeviya.patel@treasury.gov.za | AO49: datafileNAT@treasury.gov.za | AP49: 746443661 | AQ49: 803199290 | AR49: 859443176 | AT49: 7 | AU49: National Treasury | AV49: 752025911 | AW49: 811067709 | AX49: 875275479 | AY49: Capital Transfers and subsidies - Public corporations and private enterprises | BA49: Land and sub-soil assets | DG49: Parliament | DH49: Core Business | DI49: 7 | DJ49: 9 | DK49: 9 | DL49: 0 | DM49: 18 | DN49: 4967 | DO49: 5 | DP49: 1067 | DQ49: 5 | DR49: 1099 | DS49: 5 | DT49: 1291 | DU49: 5 | DV49: 1389 | DW49: Parliament|Core Business | DX49: 002 | DY49: 003 | DZ49: 002003 | EC49: 222 | ED49: 2 | EE49: 2 | EF49: Parliament | EG49: 2 | EH49: Administration | EI49: 1 | EJ49: Secretary's Office | EK49: Current payments | EL49: Goods and services | EM49: Goods and services | EN49: 7433 | EO49: 15969 | EP49: 18746 | EQ49: 18746 | ER49: 18746 | ES49: 19413 | ET49: 20529 | EU49: 21308 | EV49: 0 | EW49: 0 | EX49: 0 | EY49: 20529 | EZ49: 21308 | FA49: 22480 | FB49: Parliament|Administration | FC49: 002 | FD49: 002 | FE49: 001 | FF49: 002 | FG49: 002002 | FH49: 002002 | FI49: 2 | FJ49: 002002001002 | FL49: 002002002 | FT49: 3 | FU49: Communications | FV49: 4 | FW49: Entity Oversight | FX49: 4 | FY49: Regulatory Institutions | GL49: 0 | GM49: 0 | GN49: 48
Y50: 26 | AA50: 26 | AB50: 22 | AC50: Office of the Chief Justice and Judicial Administration | AF50: Elvis Ramafamba | AG50: (012) 315 5204 | AH50: elvis.ramafamba@treasury.gov.za | AI50: Keabetswe Matlwa | AJ50: (012) 315 6657 | AK50: Keabetswe.Matlwa@treasury.gov.za | AO50: datafileNAT@treasury.gov.za | AP50: 2296238 | AQ50: 2462807 | AR50: 2616828 | AT50: 22 | AU50: Office of the Chief Justice and Judicial Administration | AV50: 2296238 | AW50: 2462807 | AX50: 2616828 | AY50: Capital Transfers and subsidies - Non-profit institutions | BA50: Software and other intangible assets | DG50: Parliament | DH50: Core Business | DI50: 8 | DJ50: 31 | DK50: 31 | DL50: 0 | DM50: 46 | DN50: 15234 | DO50: 17 | DP50: 4386 | DQ50: 17 | DR50: 4518 | DS50: 17 | DT50: 5308 | DU50: 17 | DV50: 5711 | DW50: Parliament|Core Business | DX50: 002 | DY50: 003 | DZ50: 002003 | EC50: 222 | ED50: 3 | EE50: 2 | EF50: Parliament | EG50: 2 | EH50: Administration | EI50: 1 | EJ50: Secretary's Office | EK50: Current payments | EL50: Interest and rent on land | EM50: Interest and rent on land | EN50: 0 | EO50: 59 | EP50: 0 | EQ50: 0 | ER50: 0 | ES50: 0 | ET50: 0 | EU50: 0 | EV50: 0 | EW50: 0 | EX50: 0 | EY50: 0 | EZ50: 0 | FA50: 0 | FB50: Parliament|Administration | FC50: 002 | FD50: 002 | FE50: 001 | FF50: 003 | FG50: 002002 | FH50: 002003 | FI50: 3 | FJ50: 002002001003 | FL50: 002002003 | FT50: 4 | FU50: Cooperative Governance And Traditional Affairs | FV50: 1 | FW50: Administration | FX50: 1 | FY50: Ministry | GL50: 0 | GM50: 0 | GN50: 49
Y51: 27 | AA51: 27 | AB51: 2 | AC51: Parliament | AF51: Timothy Murwa | AG51: (012) 315 5002 | AH51: Timothy.Murwa@treasury.gov.za | AI51: Isaac Mabena | AJ51: (012) 315 5582 | AK51: Isaac.Mabena@treasury.gov.za | AO51: datafileNAT@treasury.gov.za | AP51: 2525460 | AQ51: 2694159 | AR51: 2868176 | AT51: 2 | AU51: Parliament | AV51: 2626743 | AW51: 2813438 | AX51: 3005640 | AY51: Capital Transfers and subsidies - Households | BA51: Capitalised compensation of employees | DG51: Parliament | DH51: Core Business | DI51: 9 | DJ51: 100 | DK51: 100 | DL51: 0 | DM51: 158 | DN51: 65099 | DO51: 86 | DP51: 28029 | DQ51: 86 | DR51: 28869 | DS51: 86 | DT51: 33921 | DU51: 86 | DV51: 36499 | DW51: Parliament|Core Business | DX51: 002 | DY51: 003 | DZ51: 002003 | EC51: 223 | ED51: 57 | EE51: 2 | EF51: Parliament | EG51: 2 | EH51: Administration | EI51: 1 | EJ51: Secretary's Office | EK51: Payments for capital assets | EL51: Machinery and equipment | EM51: Other machinery and equipment | EN51: 8 | EO51: 249 | EP51: 420 | EQ51: 420 | ER51: 420 | ES51: 481 | ET51: 508 | EU51: 538 | EV51: 0 | EW51: 0 | EX51: 0 | EY51: 508 | EZ51: 538 | FA51: 568 | FB51: Parliament|Administration | FC51: 002 | FD51: 002 | FE51: 001 | FF51: 057 | FG51: 002002 | FH51: 002057 | FI51: 57 | FJ51: 002002001057 | FL51: 002002057 | FT51: 4 | FU51: Cooperative Governance And Traditional Affairs | FV51: 1 | FW51: Administration | FX51: 2 | FY51: Management | GL51: 0 | GM51: 0 | GN51: 50
Y52: 28 | AA52: 28 | AB52: 8 | AC52: Planning, Monitoring and Evaluation | AF52: Timothy Murwa | AG52: (012) 315 5002 | AH52: Timothy.Murwa@treasury.gov.za | AI52: Gcobisa Magazi | AJ52: (012) 315 5320 | AK52: gcobia.magazi@treasury.gov.za | AO52: datafileNAT@treasury.gov.za | AP52: 972200 | AQ52: 1032300 | AR52: 1088604 | AT52: 8 | AU52: Planning, Monitoring and Evaluation | AV52: 961200 | AW52: 1019800 | AX52: 1075104 | AY52: Payments for capital assets - Buildings and other fixed structures | BA52: Capitalised goods and services | DG52: Parliament | DH52: Core Business | DI52: 10 | DJ52: 313 | DK52: 313 | DL52: 0 | DM52: 262 | DN52: 130828 | DO52: 286 | DP52: 110072 | DQ52: 286 | DR52: 121080 | DS52: 286 | DT52: 142269 | DU52: 286 | DV52: 153081 | DW52: Parliament|Core Business | DX52: 002 | DY52: 003 | DZ52: 002003 | EC52: 223 | ED52: 1 | EE52: 2 | EF52: Parliament | EG52: 2 | EH52: Administration | EI52: 2 | EJ52: Finance Management Office | EK52: Current payments | EL52: Compensation of employees | EM52: Compensation of employees | EN52: 35252 | EO52: 37918 | EP52: 36774 | EQ52: 36774 | ER52: 36774 | ES52: 44071 | ET52: 40400 | EU52: 49735 | EV52: 0 | EW52: 0 | EX52: 0 | EY52: 40400 | EZ52: 49735 | FA52: 52968 | FB52: Parliament|Administration | FC52: 002 | FD52: 002 | FE52: 002 | FF52: 001 | FG52: 002002 | FH52: 002001 | FI52: 1 | FJ52: 002002002001 | FL52: 002002001 | FT52: 4 | FU52: Cooperative Governance And Traditional Affairs | FV52: 1 | FW52: Administration | FX52: 3 | FY52: Corporate Services | GL52: 0 | GM52: 0 | GN52: 51
Y53: 29 | AA53: 29 | AB53: 23 | AC53: Police | AF53: Nompumelelo Radebe | AG53: (012) 315 5957 | AH53: Nompumelelo.Radebe@treasury.gov.za | AI53: Sithabiso Buthelezi | AJ53: (012) 406 9025 | AK53: sithabiso.buthelezi@treasury.gov.za | AO53: datafileNAT@treasury.gov.za | AP53: 98169986 | AQ53: 104901908 | AR53: 111509922 | AT53: 23 | AU53: Police | AV53: 97595308 | AW53: 104323255 | AX53: 111180229 | AY53: Payments for capital assets - Machinery and equipment | BA53: Payments for financial assets | DG53: Parliament | DH53: Core Business | DI53: 11 | DJ53: 173 | DK53: 173 | DL53: 0 | DM53: 66 | DN53: 57897 | DO53: 154 | DP53: 90375 | DQ53: 154 | DR53: 93086 | DS53: 154 | DT53: 109668 | DU53: 154 | DV53: 118003 | DW53: Parliament|Core Business | DX53: 002 | DY53: 003 | DZ53: 002003 | EC53: 223 | ED53: 2 | EE53: 2 | EF53: Parliament | EG53: 2 | EH53: Administration | EI53: 2 | EJ53: Finance Management Office | EK53: Current payments | EL53: Goods and services | EM53: Goods and services | EN53: 7576 | EO53: 8846 | EP53: 7483 | EQ53: 7483 | ER53: 7483 | ES53: 5306 | ET53: 5494 | EU53: 5797 | EV53: 0 | EW53: 0 | EX53: 0 | EY53: 5494 | EZ53: 5797 | FA53: 6116 | FB53: Parliament|Administration | FC53: 002 | FD53: 002 | FE53: 002 | FF53: 002 | FG53: 002002 | FH53: 002002 | FI53: 2 | FJ53: 002002002002 | FL53: 002002002 | FT53: 4 | FU53: Cooperative Governance And Traditional Affairs | FV53: 1 | FW53: Administration | FX53: 4 | FY53: Financial Services | GL53: 0 | GM53: 0 | GN53: 52
Y54: 30 | AA54: 30 | AB54: 9 | AC54: Public Enterprises | AF54: Isaac Kurasha | AG54: (012) 315 5213 | AH54: isaac.kurasha@treasury.gov.za | AI54: Millicent Movare | AJ54: (012) 315 5279 | AK54: millicent.movare@treasury.gov.za | AO54: datafileNAT@treasury.gov.za | AP54: 293030 | AQ54: 312835 | AR54: 332024 | AT54: 9 | AU54: Public Enterprises | AV54: 293030 | AW54: 312835 | AX54: 332024 | AY54: Payments for capital assets - Heritage assets | DG54: Parliament | DH54: Core Business | DI54: 12 | DJ54: 9 | DK54: 9 | DL54: 0 | DM54: 67 | DN54: 75694 | DO54: 8 | DP54: 6682 | DQ54: 8 | DR54: 6882 | DS54: 8 | DT54: 8086 | DU54: 8 | DV54: 8701 | DW54: Parliament|Core Business | DX54: 002 | DY54: 003 | DZ54: 002003 | EC54: 224 | ED54: 57 | EE54: 2 | EF54: Parliament | EG54: 2 | EH54: Administration | EI54: 2 | EJ54: Finance Management Office | EK54: Payments for capital assets | EL54: Machinery and equipment | EM54: Other machinery and equipment | EN54: 123 | EO54: 1407 | EP54: 700 | EQ54: 700 | ER54: 700 | ES54: 254 | ET54: 261 | EU54: 275 | EV54: 0 | EW54: 0 | EX54: 0 | EY54: 261 | EZ54: 275 | FA54: 290 | FB54: Parliament|Administration | FC54: 002 | FD54: 002 | FE54: 002 | FF54: 057 | FG54: 002002 | FH54: 002057 | FI54: 57 | FJ54: 002002002057 | FL54: 002002057 | FT54: 4 | FU54: Cooperative Governance And Traditional Affairs | FV54: 1 | FW54: Administration | FX54: 5 | FY54: Internal Audit and Risk Management | GL54: 0 | GM54: 0 | GN54: 53
Y55: 31 | AA55: 31 | AB55: 10 | AC55: Public Service and Administration | AF55: George Tembo | AG55: (012) 315 5514 | AH55: George.Tembo@treasury.gov.za | AI55: Mokgatla Tema | AJ55: (012) 315 5948 | AK55: Mokgatla.Tema@treasury.gov.za | AO55: datafileNAT@treasury.gov.za | AP55: 1006967 | AQ55: 1076238 | AR55: 1141949 | AT55: 10 | AU55: Public Service and Administration | AV55: 1003531 | AW55: 1082770 | AX55: 1163566 | AY55: Payments for capital assets - Specialised military assets | DG55: Parliament | DH55: Core Business | DI55: 13 | DJ55: 111 | DK55: 111 | DL55: 0 | DM55: 31 | DN55: 65066 | DO55: 84 | DP55: 79035 | DQ55: 84 | DR55: 81406 | DS55: 84 | DT55: 95652 | DU55: 84 | DV55: 102560 | DW55: Parliament|Core Business | DX55: 002 | DY55: 003 | DZ55: 002003 | EC55: 224 | ED55: 1 | EE55: 2 | EF55: Parliament | EG55: 2 | EH55: Administration | EI55: 3 | EJ55: Internal Audit | EK55: Current payments | EL55: Compensation of employees | EM55: Compensation of employees | EN55: 6456 | EO55: 7335 | EP55: 6671 | EQ55: 6671 | ER55: 6671 | ES55: 8699 | ET55: 7208 | EU55: 10249 | EV55: 0 | EW55: 0 | EX55: 0 | EY55: 7208 | EZ55: 10249 | FA55: 10915 | FB55: Parliament|Administration | FC55: 002 | FD55: 002 | FE55: 003 | FF55: 001 | FG55: 002002 | FH55: 002001 | FI55: 1 | FJ55: 002002003001 | FL55: 002002001 | FT55: 4 | FU55: Cooperative Governance And Traditional Affairs | FV55: 1 | FW55: Administration | FX55: 6 | FY55: Office Accommodation
Y56: 32 | AA56: 32 | AB56: 45 | AC56: Public Service Commission | AF56: George Tembo | AG56: (012) 315 5514 | AH56: George.Tembo@treasury.gov.za | AI56: Viwe Sobudula | AJ56: (0)12 315 5015 | AK56: Viwe.Sobudula@treasury.gov.za | AO56: datafileNAT@treasury.gov.za | AP56: 278229 | AQ56: 297627 | AR56: 316330 | AT56: 45 | AU56: Public Service Commission | AV56: 278229 | AW56: 297627 | AX56: 316330 | AY56: Payments for capital assets - Biological assets | DG56: Parliament | DH56: Core Business | DI56: 14 | DJ56: 32 | DK56: 32 | DL56: 0 | DM56: 17 | DN56: 42949 | DO56: 26 | DP56: 28120 | DQ56: 26 | DR56: 28963 | DS56: 26 | DT56: 34032 | DU56: 26 | DV56: 36993 | DW56: Parliament|Core Business | DX56: 002 | DY56: 003 | DZ56: 002003 | EC56: 224 | ED56: 2 | EE56: 2 | EF56: Parliament | EG56: 2 | EH56: Administration | EI56: 3 | EJ56: Internal Audit | EK56: Current payments | EL56: Goods and services | EM56: Goods and services | EN56: 4526 | EO56: 4608 | EP56: 7085 | EQ56: 7085 | ER56: 7085 | ES56: 7425 | ET56: 7841 | EU56: 8272 | EV56: 0 | EW56: 0 | EX56: 0 | EY56: 7841 | EZ56: 8272 | FA56: 8727 | FB56: Parliament|Administration | FC56: 002 | FD56: 002 | FE56: 003 | FF56: 002 | FG56: 002002 | FH56: 002002 | FI56: 2 | FJ56: 002002003002 | FL56: 002002002 | FT56: 4 | FU56: Cooperative Governance And Traditional Affairs | FV56: 2 | FW56: Regional and Urban Development and Legislative Support | FX56: 1 | FY56: Management: Regional and Urban Development and Legislative Support
Y57: 33 | AA57: 33 | AB57: 11 | AC57: Public Works | AF57: George Tembo | AG57: (012) 315 5514 | AH57: George.Tembo@treasury.gov.za | AI57: Mercy Mhlophe | AJ57: (012) 315 5598 | AK57: mercy.mhlope@treasury.gov.za | AO57: datafileNAT@treasury.gov.za | AP57: 7898974 | AQ57: 8346418 | AR57: 8827596 | AT57: 11 | AU57: Public Works | AV57: 7877876 | AW57: 8310190 | AX57: 9006712 | AY57: Payments for capital assets - Land and sub-soil assets | DG57: Parliament | DH57: Core Business | DI57: 15 | DJ57: 11 | DK57: 11 | DL57: 0 | DM57: 6 | DN57: 16351 | DO57: 9 | DP57: 12152 | DQ57: 9 | DR57: 12516 | DS57: 9 | DT57: 14706 | DU57: 9 | DV57: 15986 | DW57: Parliament|Core Business | DX57: 002 | DY57: 003 | DZ57: 002003 | EC57: 224 | ED57: 57 | EE57: 2 | EF57: Parliament | EG57: 2 | EH57: Administration | EI57: 3 | EJ57: Internal Audit | EK57: Payments for capital assets | EL57: Machinery and equipment | EM57: Other machinery and equipment | EN57: 0 | EO57: 3 | EP57: 192 | EQ57: 192 | ER57: 192 | ES57: 201 | ET57: 212 | EU57: 224 | EV57: 0 | EW57: 0 | EX57: 0 | EY57: 212 | EZ57: 224 | FA57: 236 | FB57: Parliament|Administration | FC57: 002 | FD57: 002 | FE57: 003 | FF57: 057 | FG57: 002002 | FH57: 002057 | FI57: 57 | FJ57: 002002003057 | FL57: 002002057 | FT57: 4 | FU57: Cooperative Governance And Traditional Affairs | FV57: 2 | FW57: Regional and Urban Development and Legislative Support | FX57: 2 | FY57: Local Government Legislative Support and Institutional Establishment
Y58: 34 | AA58: 34 | AB58: 39 | AC58: Rural Development and Land Reform | AF58: Bothwell Deka | AG58: (012) 395 6784 | AH58: Bothwell.Deka@treasury.gov.za | AI58: Nico Likhethe | AJ58: (012) 315 5558 | AK58: Nico.Likhethe@treasury.gov.za | AO58: datafileNAT@treasury.gov.za | AP58: 11049810 | AQ58: 11705701 | AR58: 12376508 | AT58: 39 | AU58: Rural Development and Land Reform | AV58: 10946958 | AW58: 11670701 | AX58: 12356508 | AY58: Payments for capital assets - Software and other intangible assets | DG58: Parliament | DH58: Core Business | DI58: 16 | DJ58: 2 | DK58: 2 | DL58: 0 | DM58: 0 | DN58: 0 | DO58: 1 | DP58: 1399 | DQ58: 1 | DR58: 1785 | DS58: 1 | DT58: 2097 | DU58: 1 | DV58: 2278 | DW58: Parliament|Core Business | DX58: 002 | DY58: 003 | DZ58: 002003 | EC58: 231 | ED58: 1 | EE58: 2 | EF58: Parliament | EG58: 2 | EH58: Administration | EI58: 4 | EJ58: Strategic Management and Governance | EK58: Current payments | EL58: Compensation of employees | EM58: Compensation of employees | EN58: 11089 | EO58: 12415 | EP58: 22550 | EQ58: 22550 | ER58: 22550 | ES58: 24855 | ET58: 24591 | EU58: 28935 | EV58: 0 | EW58: 0 | EX58: 0 | EY58: 24591 | EZ58: 28935 | FA58: 30816 | FB58: Parliament|Administration | FC58: 002 | FD58: 002 | FE58: 004 | FF58: 001 | FG58: 002002 | FH58: 002001 | FI58: 1 | FJ58: 002002004001 | FL58: 002002001 | FT58: 4 | FU58: Cooperative Governance And Traditional Affairs | FV58: 2 | FW58: Regional and Urban Development and Legislative Support | FX58: 3 | FY58: Urban Development Planning
Y59: 35 | AA59: 35 | AB59: 30 | AC59: Science and Technology | AF59: Ashley Ramasimu | AG59: (012) 315 5166 | AH59: Ashley.Ramasimu@treasury.gov.za | AI59: Thabiso Molewa | AJ59: (012) 395 6780 | AK59: Thabiso.Molewa@treasury.gov.za | AO59: datafileNAT@treasury.gov.za | AP59: 8248400 | AQ59: 8709152 | AR59: 8984666 | AT59: 30 | AU59: Science and Technology | AV59: 8221280 | AW59: 8696865 | AX59: 8982414 | AY59: Payments for financial assets | DG59: Parliament | DH59: Support Services | DI59: 7 | DJ59: 24 | DK59: 24 | DL59: 0 | DM59: 27 | DN59: 7246 | DO59: 0 | DP59: 0 | DQ59: 0 | DR59: 0 | DS59: 0 | DT59: 0 | DU59: 0 | DV59: 0 | DW59: Parliament|Support Services | DX59: 002 | DY59: 004 | DZ59: 002004 | EC59: 231 | ED59: 2 | EE59: 2 | EF59: Parliament | EG59: 2 | EH59: Administration | EI59: 4 | EJ59: Strategic Management and Governance | EK59: Current payments | EL59: Goods and services | EM59: Goods and services | EN59: 802 | EO59: 706 | EP59: 4904 | EQ59: 4904 | ER59: 4904 | ES59: 5139 | ET59: 5427 | EU59: 5726 | EV59: 0 | EW59: 0 | EX59: 0 | EY59: 5427 | EZ59: 5726 | FA59: 6041 | FB59: Parliament|Administration | FC59: 002 | FD59: 002 | FE59: 004 | FF59: 002 | FG59: 002002 | FH59: 002002 | FI59: 2 | FJ59: 002002004002 | FL59: 002002002 | FT59: 4 | FU59: Cooperative Governance And Traditional Affairs | FV59: 2 | FW59: Regional and Urban Development and Legislative Support | FX59: 4 | FY59: Spatial Planning: Districts and Regions
Y60: 36 | AA60: 36 | AB60: 31 | AC60: Small Business Development | AF60: Isaac Kurasha | AG60: (012) 315 5213 | AH60: isaac.kurasha@treasury.gov.za | AI60: Rudzani Sikhwari | AJ60: (012) 315 5823 | AK60: rudzani.sikhwari@treasury.gov.za | AO60: datafileNAT@treasury.gov.za | AP60: 2574452 | AQ60: 2719451 | AR60: 2870654 | AT60: 31 | AU60: Small Business Development | AV60: 2574452 | AW60: 2719451 | AX60: 2870654 | DG60: Parliament | DH60: Support Services | DI60: 8 | DJ60: 209 | DK60: 209 | DL60: 0 | DM60: 180 | DN60: 49088 | DO60: 184 | DP60: 42155 | DQ60: 184 | DR60: 46032 | DS60: 184 | DT60: 49489 | DU60: 184 | DV60: 52996 | DW60: Parliament|Support Services | DX60: 002 | DY60: 004 | DZ60: 002004 | EC60: 232 | ED60: 57 | EE60: 2 | EF60: Parliament | EG60: 2 | EH60: Administration | EI60: 4 | EJ60: Strategic Management and Governance | EK60: Payments for capital assets | EL60: Machinery and equipment | EM60: Other machinery and equipment | EN60: 7 | EO60: 149 | EP60: 249 | EQ60: 249 | ER60: 249 | ES60: 261 | ET60: 276 | EU60: 291 | EV60: 0 | EW60: 0 | EX60: 0 | EY60: 276 | EZ60: 291 | FA60: 307 | FB60: Parliament|Administration | FC60: 002 | FD60: 002 | FE60: 004 | FF60: 057 | FG60: 002002 | FH60: 002057 | FI60: 57 | FJ60: 002002004057 | FL60: 002002057 | FT60: 4 | FU60: Cooperative Governance And Traditional Affairs | FV60: 2 | FW60: Regional and Urban Development and Legislative Support | FX60: 5 | FY60: Intergovernmental Policy and Practice
Y61: 37 | AA61: 37 | AB61: 17 | AC61: Social Development | AF61: Pebetse Maleka | AG61: (012) 315 5566 | AH61: pebetse.maleka@treasury.gov.za | AI61: Lindi Mzankomo | AJ61: (012) 315 5256 | AK61: Lindi.Mzankomo@treasury.gov.za | AO61: datafileNAT@treasury.gov.za | AP61: 186162566 | AQ61: 200875233 | AR61: 214589330 | AT61: 17 | AU61: Social Development | AV61: 184794099 | AW61: 199473810 | AX61: 213695516 | DG61: Parliament | DH61: Support Services | DI61: 9 | DJ61: 91 | DK61: 91 | DL61: 0 | DM61: 70 | DN61: 21817 | DO61: 78 | DP61: 22713 | DQ61: 78 | DR61: 24741 | DS61: 78 | DT61: 26506 | DU61: 78 | DV61: 28509 | DW61: Parliament|Support Services | DX61: 002 | DY61: 004 | DZ61: 002004 | EC61: 232 | ED61: 1 | EE61: 2 | EF61: Parliament | EG61: 2 | EH61: Administration | EI61: 5 | EJ61: Legislative Sector Support | EK61: Current payments | EL61: Compensation of employees | EM61: Compensation of employees | EN61: 12625 | EO61: 13215 | EP61: 0 | EQ61: 0 | ER61: 0 | ES61: 0 | ET61: 0 | EU61: 0 | EV61: 0 | EW61: 0 | EX61: 0 | EY61: 0 | EZ61: 0 | FA61: 0 | FB61: Parliament|Administration | FC61: 002 | FD61: 002 | FE61: 005 | FF61: 001 | FG61: 002002 | FH61: 002001 | FI61: 1 | FJ61: 002002005001 | FL61: 002002001 | FT61: 4 | FU61: Cooperative Governance And Traditional Affairs | FV61: 2 | FW61: Regional and Urban Development and Legislative Support | FX61: 6 | FY61: Municipal Demarcation Transition Grant
Y62: 38 | AA62: 38 | AB62: 40 | AC62: Sport and Recreation South Africa | AF62: Spencer Janari | AG62: (012) 315 5436 | AH62: Spencer.Janari@treasury.gov.za | AI62: Mabele Mdhluli | AJ62: (012) 395 6775 | AK62: Mabele.Mdhluli@treasury.gov.za | AO62: datafileNAT@treasury.gov.za | AP62: 1153845 | AQ62: 1219526 | AR62: 1291885 | AT62: 40 | AU62: Sport and Recreation South Africa | AV62: 1153845 | AW62: 1219526 | AX62: 1291885 | DG62: Parliament | DH62: Support Services | DI62: 10 | DJ62: 98 | DK62: 98 | DL62: 0 | DM62: 61 | DN62: 32161 | DO62: 91 | DP62: 31097 | DQ62: 91 | DR62: 34020 | DS62: 91 | DT62: 36470 | DU62: 91 | DV62: 39278 | DW62: Parliament|Support Services | DX62: 002 | DY62: 004 | DZ62: 002004 | EC62: 232 | ED62: 2 | EE62: 2 | EF62: Parliament | EG62: 2 | EH62: Administration | EI62: 5 | EJ62: Legislative Sector Support | EK62: Current payments | EL62: Goods and services | EM62: Goods and services | EN62: 10994 | EO62: 5793 | EP62: 0 | EQ62: 0 | ER62: 0 | ES62: 0 | ET62: 0 | EU62: 0 | EV62: 0 | EW62: 0 | EX62: 0 | EY62: 0 | EZ62: 0 | FA62: 0 | FB62: Parliament|Administration | FC62: 002 | FD62: 002 | FE62: 005 | FF62: 002 | FG62: 002002 | FH62: 002002 | FI62: 2 | FJ62: 002002005002 | FL62: 002002002 | FT62: 4 | FU62: Cooperative Governance And Traditional Affairs | FV62: 3 | FW62: Institutional Development | FX62: 1 | FY62: Management: Institutional Development
Y63: 39 | AA63: 39 | AB63: 12 | AC63: Statistics South Africa | AF63: Rhoda Marais | AG63: (012) 315 5906 | AH63: rhoda.marais@treasury.gov.za | AI63: Deeviya Patel | AJ63: (012) 395 6562 | AK63: deeviya.patel@treasury.gov.za | AO63: datafileNAT@treasury.gov.za | AP63: 2439368 | AQ63: 3304131 | AR63: 3507024 | AT63: 12 | AU63: Statistics South Africa | AV63: 2439368 | AW63: 3304131 | AX63: 3612824 | DG63: Parliament | DH63: Support Services | DI63: 11 | DJ63: 36 | DK63: 36 | DL63: 0 | DM63: 54 | DN63: 36740 | DO63: 29 | DP63: 14541 | DQ63: 29 | DR63: 15836 | DS63: 29 | DT63: 16974 | DU63: 29 | DV63: 18238 | DW63: Parliament|Support Services | DX63: 002 | DY63: 004 | DZ63: 002004 | EC63: 233 | ED63: 57 | EE63: 2 | EF63: Parliament | EG63: 2 | EH63: Administration | EI63: 5 | EJ63: Legislative Sector Support | EK63: Payments for capital assets | EL63: Machinery and equipment | EM63: Other machinery and equipment | EN63: 221 | EO63: 295 | EP63: 0 | EQ63: 0 | ER63: 0 | ES63: 0 | ET63: 0 | EU63: 0 | EV63: 0 | EW63: 0 | EX63: 0 | EY63: 0 | EZ63: 0 | FA63: 0 | FB63: Parliament|Administration | FC63: 002 | FD63: 002 | FE63: 005 | FF63: 057 | FG63: 002002 | FH63: 002057 | FI63: 57 | FJ63: 002002005057 | FL63: 002002057 | FT63: 4 | FU63: Cooperative Governance And Traditional Affairs | FV63: 3 | FW63: Institutional Development | FX63: 2 | FY63: Human Resources Management Systems
Y64: 40 | AA64: 40 | AB64: 32 | AC64: Telecommunications and Postal Services | AF64: Rezah Atcha | AG64: (012) 315 5287 | AH64: Rezah.Atcha@treasury.gov.za | AI64: Keitumetse Motshegwe | AJ64: (012) 395 6750 | AK64: keitumetse.motshegwe@treasury.gov.za | AO64: datafileNAT@treasury.gov.za | AP64: 1024419 | AQ64: 1085592 | AR64: 1147894 | AT64: 32 | AU64: Telecommunications and Postal Services | AV64: 1691540 | AW64: 1790367 | AX64: 1676170 | DG64: Parliament | DH64: Support Services | DI64: 12 | DJ64: 70 | DK64: 70 | DL64: 0 | DM64: 18 | DN64: 19093 | DO64: 58 | DP64: 41180 | DQ64: 58 | DR64: 45886 | DS64: 58 | DT64: 49181 | DU64: 58 | DV64: 52873 | DW64: Parliament|Support Services | DX64: 002 | DY64: 004 | DZ64: 002004 | EC64: 233 | ED64: 1 | EE64: 2 | EF64: Parliament | EG64: 2 | EH64: Administration | EI64: 6 | EJ64: Registrar of Member's Interest | EK64: Current payments | EL64: Compensation of employees | EM64: Compensation of employees | EN64: 2631 | EO64: 2119 | EP64: 0 | EQ64: 0 | ER64: 0 | ES64: 2658 | ET64: 0 | EU64: 2950 | EV64: 0 | EW64: 0 | EX64: 0 | EY64: 0 | EZ64: 2950 | FA64: 3142 | FB64: Parliament|Administration | FC64: 002 | FD64: 002 | FE64: 006 | FF64: 001 | FG64: 002002 | FH64: 002001 | FI64: 1 | FJ64: 002002006001 | FL64: 002002001 | FT64: 4 | FU64: Cooperative Governance And Traditional Affairs | FV64: 3 | FW64: Institutional Development | FX64: 3 | FY64: Municipal Finance
Y65: 41 | AA65: 41 | AB65: 1 | AC65: The Presidency | AF65: Timothy Murwa | AG65: (012) 315 5002 | AH65: Timothy.Murwa@treasury.gov.za | AI65: Gcobisa Magazi | AJ65: (012) 315 5320 | AK65: gcobia.magazi@treasury.gov.za | AO65: datafileNAT@treasury.gov.za | AP65: 547232 | AQ65: 584410 | AR65: 620357 | AT65: 1 | AU65: The Presidency | AV65: 698608 | AW65: 618096 | AX65: 655598 | DG65: Parliament | DH65: Support Services | DI65: 13 | DJ65: 17 | DK65: 17 | DL65: 0 | DM65: 27 | DN65: 34494 | DO65: 13 | DP65: 10604 | DQ65: 13 | DR65: 11601 | DS65: 13 | DT65: 12436 | DU65: 13 | DV65: 13394 | DW65: Parliament|Support Services | DX65: 002 | DY65: 004 | DZ65: 002004 | EC65: 233 | ED65: 2 | EE65: 2 | EF65: Parliament | EG65: 2 | EH65: Administration | EI65: 6 | EJ65: Registrar of Member's Interest | EK65: Current payments | EL65: Goods and services | EM65: Goods and services | EN65: 815 | EO65: 213 | EP65: 0 | EQ65: 0 | ER65: 0 | ES65: 342 | ET65: 0 | EU65: 350 | EV65: 0 | EW65: 0 | EX65: 0 | EY65: 0 | EZ65: 350 | FA65: 369 | FB65: Parliament|Administration | FC65: 002 | FD65: 002 | FE65: 006 | FF65: 002 | FG65: 002002 | FH65: 002002 | FI65: 2 | FJ65: 002002006002 | FL65: 002002002 | FT65: 4 | FU65: Cooperative Governance And Traditional Affairs | FV65: 3 | FW65: Institutional Development | FX65: 4 | FY65: Citizen Engagement
Y66: 42 | AA66: 42 | AB66: 33 | AC66: Tourism | AF66: Ashley Ramasimu | AG66: (012) 315 5166 | AH66: Ashley.Ramasimu@treasury.gov.za | AI66: Thabiso Molewa | AJ66: (012) 395 6780 | AK66: Thabiso.Molewa@treasury.gov.za | AO66: datafileNAT@treasury.gov.za | AP66: 2404291 | AQ66: 2542612 | AR66: 2651525 | AT66: 33 | AU66: Tourism | AV66: 2410048 | AW66: 2553329 | AX66: 2668725 | DG66: Parliament | DH66: Support Services | DI66: 14 | DJ66: 18 | DK66: 18 | DL66: 0 | DM66: 9 | DN66: 21494 | DO66: 18 | DP66: 18926 | DQ66: 18 | DR66: 20902 | DS66: 18 | DT66: 22335 | DU66: 18 | DV66: 23478 | DW66: Parliament|Support Services | DX66: 002 | DY66: 004 | DZ66: 002004 | EC66: 234 | ED66: 57 | EE66: 2 | EF66: Parliament | EG66: 2 | EH66: Administration | EI66: 6 | EJ66: Registrar of Member's Interest | EK66: Payments for capital assets | EL66: Machinery and equipment | EM66: Other machinery and equipment | EN66: 17 | EO66: 5 | EP66: 0 | EQ66: 0 | ER66: 0 | ES66: 0 | ET66: 0 | EU66: 0 | EV66: 0 | EW66: 0 | EX66: 0 | EY66: 0 | EZ66: 0 | FA66: 0 | FB66: Parliament|Administration | FC66: 002 | FD66: 002 | FE66: 006 | FF66: 057 | FG66: 002002 | FH66: 002057 | FI66: 57 | FJ66: 002002006057 | FL66: 002002057 | FT66: 4 | FU66: Cooperative Governance And Traditional Affairs | FV66: 3 | FW66: Institutional Development | FX66: 5 | FY66: Anti-Corruption and Good Governance
Y67: 43 | AA67: 43 | AB67: 34 | AC67: Trade and Industry | AF67: Isaac Kurasha | AG67: (012) 315 5213 | AH67: isaac.kurasha@treasury.gov.za | AI67: Ntandokazi Makaula | AJ67: (012) 395 6667 | AK67: Ntandokazi.Makaula@treasury.gov.za | AO67: datafileNAT@treasury.gov.za | AP67: 10093129 | AQ67: 10667735 | AR67: 9510496 | AT67: 34 | AU67: Trade and Industry | AV67: 10063129 | AW67: 10632274 | AX67: 9510496 | CY67: =+CQ67&CR67&CS67&CT67&CU67 ->  | DG67: Parliament | DH67: Support Services | DI67: 15 | DJ67: 14 | DK67: 14 | DL67: 0 | DM67: 2 | DN67: 5191 | DO67: 11 | DP67: 14256 | DQ67: 11 | DR67: 14771 | DS67: 11 | DT67: 15789 | DU67: 11 | DV67: 17603 | DW67: Parliament|Support Services | DX67: 002 | DY67: 004 | DZ67: 002004 | EC67: 234 | ED67: 1 | EE67: 2 | EF67: Parliament | EG67: 2 | EH67: Administration | EI67: 7 | EJ67: Projects | EK67: Current payments | EL67: Compensation of employees | EM67: Compensation of employees | EN67: 8551 | EO67: 8962 | EP67: 0 | EQ67: 0 | ER67: 0 | ES67: 0 | ET67: 0 | EU67: 0 | EV67: 0 | EW67: 0 | EX67: 0 | EY67: 0 | EZ67: 0 | FA67: 0 | FB67: Parliament|Administration | FC67: 002 | FD67: 002 | FE67: 007 | FF67: 001 | FG67: 002002 | FH67: 002001 | FI67: 1 | FJ67: 002002007001 | FL67: 002002001 | FT67: 4 | FU67: Cooperative Governance And Traditional Affairs | FV67: 3 | FW67: Institutional Development | FX67: 6 | FY67: Municipal Property Rates
Y68: 44 | AA68: 44 | AB68: 43 | AC68: Traditional Affairs | AF68: Misaveni Ngobeni | AG68: (012) 315 5305 | AH68: misaveni.ngobeni@treasury.gov.za | AI68: Millicent Mulaudzi | AJ68: (012) 395 6576 | AK68: Millicent.Mulaudzi@treasury.gov.za | AO68: datafileNAT@treasury.gov.za | AP68: 163351 | AQ68: 173912 | AR68: 185286 | AT68: 43 | AU68: Traditional Affairs | AV68: 163351 | AW68: 173912 | AX68: 185286 | CZ68: =+CQ68&CR68&CS68 ->  | DA68: =+CQ68&CR68&CS68&CU68 ->  | DG68: Parliament | DH68: Support Services | DI68: 16 | DJ68: 5 | DK68: 5 | DL68: 0 | DM68: 1 | DN68: 2611 | DO68: 1 | DP68: 1366 | DQ68: 1 | DR68: 1466 | DS68: 1 | DT68: 1716 | DU68: 1 | DV68: 2003 | DW68: Parliament|Support Services | DX68: 002 | DY68: 004 | DZ68: 002004 | EC68: 234 | ED68: 2 | EE68: 2 | EF68: Parliament | EG68: 2 | EH68: Administration | EI68: 7 | EJ68: Projects | EK68: Current payments | EL68: Goods and services | EM68: Goods and services | EN68: 11566 | EO68: 20935 | EP68: 0 | EQ68: 0 | ER68: 0 | ES68: 0 | ET68: 0 | EU68: 0 | EV68: 0 | EW68: 0 | EX68: 0 | EY68: 0 | EZ68: 0 | FA68: 0 | FB68: Parliament|Administration | FC68: 002 | FD68: 002 | FE68: 007 | FF68: 002 | FG68: 002002 | FH68: 002002 | FI68: 2 | FJ68: 002002007002 | FL68: 002002002 | FT68: 4 | FU68: Cooperative Governance And Traditional Affairs | FV68: 3 | FW68: Institutional Development | FX68: 7 | FY68: Local Government Equitable Share
Y69: 45 | AA69: 45 | AB69: 35 | AC69: Transport | AF69: James Archer | AG69: (012) 395 6736 | AH69: James.Archer@treasury.gov.za | AI69: Luyolo Ntlangula | AJ69: (012) 315-5571 | AK69: luyolo.ntangula@treasury.gov.za | AO69: datafileNAT@treasury.gov.za | AP69: 65867550 | AQ69: 69571447 | AR69: 74324695 | AT69: 35 | AU69: Transport | AV69: 65951976 | AW69: 69159738 | AX69: 74820320 | DG69: Parliament | DH69: Associated Services | DI69: 8 | DJ69: 2 | DK69: 2 | DL69: 0 | DM69: 1 | DN69: 285 | DO69: 1 | DP69: 278 | DQ69: 1 | DR69: 289 | DS69: 1 | DT69: 304 | DU69: 1 | DV69: 323 | DW69: Parliament|Associated Services | DX69: 002 | DY69: 005 | DZ69: 002005 | EC69: 235 | ED69: =+INDEX(($FS$4:$FS$27),MATCH(EM69,$GB$4:$GB$27,0)) -> 57 | EE69: 2 | EF69: Parliament | EG69: 2 | EH69: Administration | EI69: 7 | EJ69: Projects | EK69: Payments for capital assets | EL69: Machinery and equipment | EM69: Other machinery and equipment | EN69: 4041 | EO69: 5523 | EP69: 0 | EQ69: 0 | ER69: 0 | ES69: 0 | ET69: 0 | EU69: 0 | EV69: 0 | EW69: 0 | EX69: 0 | EY69: =+ET69+EW69 -> 0 | EZ69: =+EU69+EX69 -> 0 | FA69: 0 | FB69: =+EF69&"|"&EH69 -> Parliament|Administration | FC69: =REPT("0",3-LEN(EE69))&EE69 -> 002 | FD69: =REPT("0",3-LEN(EG69))&EG69 -> 002 | FE69: =REPT("0",3-LEN(EI69))&EI69 -> 007 | FF69: =REPT("0",3-LEN(ED69))&ED69 -> 057 | FG69: =+FC69&FD69 -> 002002 | FH69: =+FC69&FF69 -> 002057 | FI69: =+FF69*1 -> 57 | FJ69: =FG69&FE69&REPT("0",3-LEN(FI69))&FI69 -> 002002007057 | FL69: =LEFT(FJ69,6)&FF69 -> 002002057 | FT69: 4 | FU69: Cooperative Governance And Traditional Affairs | FV69: 3 | FW69: Institutional Development | FX69: 8 | FY69: Municipal Infrastructure Grant
Y70: 46 | AA70: 46 | AB70: 36 | AC70: Water and Sanitation | AF70: Misaveni Ngobeni | AG70: (012) 315 5305 | AH70: misaveni.ngobeni@treasury.gov.za | AI70: Iqbal Mahomed Alli | AJ70: (012) 315 5809 | AK70: Iqbal.Mahomed-Alli@treasury.gov.za | AO70: datafileNAT@treasury.gov.za | AP70: 16466579 | AQ70: 17408984 | AR70: 18585825 | AT70: 36 | AU70: Water and Sanitation | AV70: 16466579 | AW70: 17408984 | AX70: 18585825 | DG70: Parliament | DH70: Associated Services | DI70: 9 | DJ70: 6 | DK70: 6 | DL70: 0 | DM70: 8 | DN70: 4584 | DO70: 6 | DP70: 2035 | DQ70: 6 | DR70: 2112 | DS70: 6 | DT70: 2229 | DU70: 6 | DV70: 2367 | DW70: Parliament|Associated Services | DX70: 002 | DY70: 005 | DZ70: 002005 | EC70: 235 | ED70: 2 | EE70: 2 | EF70: Parliament | EG70: 2 | EH70: Administration | EI70: 8 | EJ70: State of the Nation Address | EK70: Current payments | EL70: Goods and services | EM70: Goods and services | EN70: 5197 | EO70: 2196 | EP70: 0 | EQ70: 0 | ER70: 0 | ES70: 0 | ET70: 0 | EU70: 0 | EV70: 0 | EW70: 0 | EX70: 0 | EY70: 0 | EZ70: 0 | FA70: 0 | FB70: Parliament|Administration | FC70: 002 | FD70: 002 | FE70: 008 | FF70: 002 | FG70: 002002 | FH70: 002002 | FI70: 2 | FJ70: 002002008002 | FL70: 002002002 | FT70: 4 | FU70: Cooperative Governance And Traditional Affairs | FV70: 3 | FW70: Institutional Development | FX70: 9 | FY70: Municipal Systems Improvement Grant
Y71: 47 | AA71: 47 | AB71: 13 | AC71: Women | AF71: George Tembo | AG71: (012) 315 5514 | AH71: George.Tembo@treasury.gov.za | AI71: Viwe Sobudula | AJ71: (012) 315 5015 | AK71: Viwe.Sobudula@treasury.gov.za | AO71: datafileNAT@treasury.gov.za | AP71: 244477 | AQ71: 259751 | AR71: 275020 | AT71: 13 | AU71: Women | AV71: 244477 | AW71: 259751 | AX71: 275020 | DG71: Parliament | DH71: Associated Services | DI71: 10 | DJ71: 4 | DK71: 4 | DL71: 0 | DM71: 2 | DN71: 2042 | DO71: 4 | DP71: 1541 | DQ71: 4 | DR71: 1600 | DS71: 4 | DT71: 1688 | DU71: 4 | DV71: 1792 | DW71: Parliament|Associated Services | DX71: 002 | DY71: 005 | DZ71: 002005 | EC71: 235 | ED71: 1 | EE71: 2 | EF71: Parliament | EG71: 3 | EH71: Core Business | EI71: 1 | EJ71: Office of the Deputy Secretary | EK71: Current payments | EL71: Compensation of employees | EM71: Compensation of employees | EN71: 74 | EO71: 0 | EP71: 3491 | EQ71: 3491 | ER71: 3491 | ES71: 3589 | ET71: 3863 | EU71: 4153 | EV71: 0 | EW71: 0 | EX71: 0 | EY71: 3863 | EZ71: 4153 | FA71: 4423 | FB71: Parliament|Core Business | FC71: 002 | FD71: 003 | FE71: 001 | FF71: 001 | FG71: 002003 | FH71: 002001 | FI71: 1 | FJ71: 002003001001 | FL71: 002003001 | FT71: 4 | FU71: Cooperative Governance And Traditional Affairs | FV71: 3 | FW71: Institutional Development | FX71: 10 | FY71: Department of Traditional Affairs
AP72: =SUM(AP25:AP71) -> 1624627735 | AQ72: =SUM(AQ25:AQ71) -> 1747973393 | AR72: =SUM(AR25:AR71) -> 1865243536 | AT72: Grand Total | AV72: =SUM(AV25:AV71) -> 1631286608 | AW72: =SUM(AW25:AW71) -> 1756270522 | AX72: 1885190349 | DG72: Parliament | DH72: Associated Services | DI72: 11 | DJ72: 3 | DK72: 3 | DL72: 0 | DM72: 2 | DN72: 2972 | DO72: 3 | DP72: 1916 | DQ72: 3 | DR72: 1989 | DS72: 3 | DT72: 2098 | DU72: 3 | DV72: 2228 | DW72: Parliament|Associated Services | DX72: 002 | DY72: 005 | DZ72: 002005 | EC72: 236 | ED72: 2 | EE72: 2 | EF72: Parliament | EG72: 3 | EH72: Core Business | EI72: 1 | EJ72: Office of the Deputy Secretary | EK72: Current payments | EL72: Goods and services | EM72: Goods and services | EN72: 83 | EO72: 89 | EP72: 1860 | EQ72: 1860 | ER72: 1860 | ES72: 1805 | ET72: 1905 | EU72: 2010 | EV72: 0 | EW72: 0 | EX72: 0 | EY72: 1905 | EZ72: 2010 | FA72: 2121 | FB72: Parliament|Core Business | FC72: 002 | FD72: 003 | FE72: 001 | FF72: 002 | FG72: 002003 | FH72: 002002 | FI72: 2 | FJ72: 002003001002 | FL72: 002003002 | FT72: 4 | FU72: Cooperative Governance And Traditional Affairs | FV72: 3 | FW72: Institutional Development | FX72: 11 | FY72: Municipal Infrastructure Support Agency
DG73: Parliament | DH73: Associated Services | DI73: 12 | DJ73: 1 | DK73: 1 | DL73: 0 | DM73: 0 | DN73: 0 | DO73: 1 | DP73: 699 | DQ73: 1 | DR73: 726 | DS73: 1 | DT73: 765 | DU73: 1 | DV73: 813 | DW73: Parliament|Associated Services | DX73: 002 | DY73: 005 | DZ73: 002005 | EC73: 236 | ED73: 1 | EE73: 2 | EF73: Parliament | EG73: 3 | EH73: Core Business | EI73: 2 | EJ73: National Assembly | EK73: Current payments | EL73: Compensation of employees | EM73: Compensation of employees | EN73: 25267 | EO73: 30253 | EP73: 19187 | EQ73: 19187 | ER73: 19187 | ES73: 21206 | ET73: 20769 | EU73: 22327 | EV73: 0 | EW73: 0 | EX73: 0 | EY73: 20769 | EZ73: 22327 | FA73: 23778 | FB73: Parliament|Core Business | FC73: 002 | FD73: 003 | FE73: 002 | FF73: 001 | FG73: 002003 | FH73: 002001 | FI73: 1 | FJ73: 002003002001 | FL73: 002003001 | FT73: 4 | FU73: Cooperative Governance And Traditional Affairs | FV73: 4 | FW73: National Disaster Management Centre | FX73: 1 | FY73: Management: National Disaster Management Centre
DG74: Parliament | DH74: Associated Services | DI74: 13 | DJ74: 0 | DK74: 0 | DL74: 0 | DM74: 1 | DN74: 1434 | DO74: 0 | DP74: 0 | DQ74: 0 | DR74: 0 | DS74: 0 | DT74: 0 | DU74: 0 | DV74: 0 | DW74: Parliament|Associated Services | DX74: 002 | DY74: 005 | DZ74: 002005 | EC74: 236 | ED74: 2 | EE74: 2 | EF74: Parliament | EG74: 3 | EH74: Core Business | EI74: 2 | EJ74: National Assembly | EK74: Current payments | EL74: Goods and services | EM74: Goods and services | EN74: 8432 | EO74: 2558 | EP74: 7904 | EQ74: 7904 | ER74: 7904 | ES74: 7863 | ET74: 8305 | EU74: 8762 | EV74: 0 | EW74: 0 | EX74: 0 | EY74: 8305 | EZ74: 8762 | FA74: 9244 | FB74: Parliament|Core Business | FC74: 002 | FD74: 003 | FE74: 002 | FF74: 002 | FG74: 002003 | FH74: 002002 | FI74: 2 | FJ74: 002003002002 | FL74: 002003002 | FT74: 4 | FU74: Cooperative Governance And Traditional Affairs | FV74: 4 | FW74: National Disaster Management Centre | FX74: 2 | FY74: Disaster Risk Reduction, Capacity Building and Intervention
DG75: Parliament | DH75: Associated Services | DI75: 14 | DJ75: 1 | DK75: 1 | DL75: 0 | DM75: 1 | DN75: 1509 | DO75: 1 | DP75: 1129 | DQ75: 1 | DR75: 1172 | DS75: 1 | DT75: 1236 | DU75: 1 | DV75: 1313 | DW75: Parliament|Associated Services | DX75: 002 | DY75: 005 | DZ75: 002005 | EC75: 241 | ED75: 57 | EE75: 2 | EF75: Parliament | EG75: 3 | EH75: Core Business | EI75: 2 | EJ75: National Assembly | EK75: Payments for capital assets | EL75: Machinery and equipment | EM75: Other machinery and equipment | EN75: 0 | EO75: 252 | EP75: 0 | EQ75: 0 | ER75: 0 | ES75: 0 | ET75: 0 | EU75: 0 | EV75: 0 | EW75: 0 | EX75: 0 | EY75: 0 | EZ75: 0 | FA75: 0 | FB75: Parliament|Core Business | FC75: 002 | FD75: 003 | FE75: 002 | FF75: 057 | FG75: 002003 | FH75: 002057 | FI75: 57 | FJ75: 002003002057 | FL75: 002003057 | FT75: 4 | FU75: Cooperative Governance And Traditional Affairs | FV75: 4 | FW75: National Disaster Management Centre | FX75: 3 | FY75: Legislation and Policy Management
DG76: Parliament | DH76: Associated Services | DI76: 15 | DJ76: 2 | DK76: 2 | DL76: 0 | DM76: 0 | DN76: 0 | DO76: 1 | DP76: 1318 | DQ76: 1 | DR76: 1368 | DS76: 1 | DT76: 1443 | DU76: 1 | DV76: 1533 | DW76: Parliament|Associated Services | DX76: 002 | DY76: 005 | DZ76: 002005 | EC76: 241 | ED76: 1 | EE76: 2 | EF76: Parliament | EG76: 3 | EH76: Core Business | EI76: 3 | EJ76: National Council of Provinces | EK76: Current payments | EL76: Compensation of employees | EM76: Compensation of employees | EN76: 21397 | EO76: 26228 | EP76: 22699 | EQ76: 22699 | ER76: 22699 | ES76: 24302 | ET76: 24105 | EU76: 25913 | EV76: 0 | EW76: 0 | EX76: 0 | EY76: 24105 | EZ76: 25913 | FA76: 27597 | FB76: Parliament|Core Business | FC76: 002 | FD76: 003 | FE76: 003 | FF76: 001 | FG76: 002003 | FH76: 002001 | FI76: 1 | FJ76: 002003003001 | FL76: 002003001 | FT76: 4 | FU76: Cooperative Governance And Traditional Affairs | FV76: 4 | FW76: National Disaster Management Centre | FX76: 4 | FY76: Integrated Provincial Disaster Management Support, Monitoring and Evaluation Systems
DG77: Parliament | DH77: Associated Services | DI77: Other please specify | DJ77: 0 | DK77: 0 | DL77: 0 | DM77: 0 | DN77: 0 | DO77: 0 | DP77: 0 | DQ77: 0 | DR77: 50955 | DS77: 0 | DT77: 0 | DU77: 0 | DV77: 0 | DW77: Parliament|Associated Services | DX77: 002 | DY77: 005 | DZ77: 002005 | EC77: 241 | ED77: 2 | EE77: 2 | EF77: Parliament | EG77: 3 | EH77: Core Business | EI77: 3 | EJ77: National Council of Provinces | EK77: Current payments | EL77: Goods and services | EM77: Goods and services | EN77: 22629 | EO77: 21111 | EP77: 14092 | EQ77: 14092 | ER77: 14092 | ES77: 14310 | ET77: 15112 | EU77: 15943 | EV77: 0 | EW77: 0 | EX77: 0 | EY77: 15112 | EZ77: 15943 | FA77: 16823 | FB77: Parliament|Core Business | FC77: 002 | FD77: 003 | FE77: 003 | FF77: 002 | FG77: 002003 | FH77: 002002 | FI77: 2 | FJ77: 002003003002 | FL77: 002003002 | FT77: 4 | FU77: Cooperative Governance And Traditional Affairs | FV77: 4 | FW77: National Disaster Management Centre | FX77: 5 | FY77: Fire Services
DG78: Parliament | DH78: Associated Services | DI78: Parmed Medical Aid | DJ78: 0 | DK78: 0 | DL78: 0 | DM78: 0 | DN78: 47284 | DO78: 0 | DP78: 49089 | DQ78: 0 | DR78: 0 | DS78: 0 | DT78: 53761 | DU78: 0 | DV78: 57101 | DW78: Parliament|Associated Services | DX78: 002 | DY78: 005 | DZ78: 002005 | EC78: 242 | ED78: 56 | EE78: 2 | EF78: Parliament | EG78: 3 | EH78: Core Business | EI78: 3 | EJ78: National Council of Provinces | EK78: Payments for capital assets | EL78: Machinery and equipment | EM78: Transport equipment | EN78: 163 | EO78: 0 | EP78: 0 | EQ78: 0 | ER78: 0 | ES78: 0 | ET78: 0 | EU78: 0 | EV78: 0 | EW78: 0 | EX78: 0 | EY78: 0 | EZ78: 0 | FA78: 0 | FB78: Parliament|Core Business | FC78: 002 | FD78: 003 | FE78: 003 | FF78: 056 | FG78: 002003 | FH78: 002056 | FI78: 56 | FJ78: 002003003056 | FL78: 002003056 | FT78: 4 | FU78: Cooperative Governance And Traditional Affairs | FV78: 4 | FW78: National Disaster Management Centre | FX78: 6 | FY78: Information Technology, Intelligence and Information Management Systems
DG79: Communications | DH79: Administration | DI79: 3 | DJ79: 2 | DK79: 2 | DL79: 0 | DM79: 0 | DN79: 0 | DO79: 0 | DP79: 0 | DQ79: 0 | DR79: 0 | DS79: 0 | DT79: 0 | DU79: 2 | DV79: 134 | DW79: Communications|Administration | DX79: 003 | DY79: 001 | DZ79: 003001 | EC79: 242 | ED79: 1 | EE79: 2 | EF79: Parliament | EG79: 3 | EH79: Core Business | EI79: 4 | EJ79: Core Business Support | EK79: Current payments | EL79: Compensation of employees | EM79: Compensation of employees | EN79: 174424 | EO79: 189780 | EP79: 181706 | EQ79: 181706 | ER79: 181706 | ES79: 186434 | ET79: 198940 | EU79: 213861 | EV79: 0 | EW79: 0 | EX79: 0 | EY79: 198940 | EZ79: 213861 | FA79: 227762 | FB79: Parliament|Core Business | FC79: 002 | FD79: 003 | FE79: 004 | FF79: 001 | FG79: 002003 | FH79: 002001 | FI79: 1 | FJ79: 002003004001 | FL79: 002003001 | FT79: 4 | FU79: Cooperative Governance And Traditional Affairs | FV79: 4 | FW79: National Disaster Management Centre | FX79: 7 | FY79: Disaster Relief Grant
DG80: Communications | DH80: Administration | DI80: 4 | DJ80: 0 | DK80: 1 | DL80: 1 | DM80: 0 | DN80: 0 | DO80: 6 | DP80: 704 | DQ80: 0 | DR80: 0 | DS80: 0 | DT80: 0 | DU80: 2 | DV80: 186 | DW80: Communications|Administration | DX80: 003 | DY80: 001 | DZ80: 003001 | EC80: 243 | ED80: 2 | EE80: 2 | EF80: Parliament | EG80: 3 | EH80: Core Business | EI80: 4 | EJ80: Core Business Support | EK80: Current payments | EL80: Goods and services | EM80: Goods and services | EN80: 83916 | EO80: 53792 | EP80: 76759 | EQ80: 76759 | ER80: 76759 | ES80: 86011 | ET80: 90496 | EU80: 95474 | EV80: 0 | EW80: 0 | EX80: 0 | EY80: 90496 | EZ80: 95474 | FA80: 100725 | FB80: Parliament|Core Business | FC80: 002 | FD80: 003 | FE80: 004 | FF80: 002 | FG80: 002003 | FH80: 002002 | FI80: 2 | FJ80: 002003004002 | FL80: 002003002 | FT80: 4 | FU80: Cooperative Governance And Traditional Affairs | FV80: 4 | FW80: National Disaster Management Centre | FX80: 8 | FY80: Municipal Disaster Recovery Grant
DG81: Communications | DH81: Administration | DI81: 5 | DJ81: 3 | DK81: 3 | DL81: 0 | DM81: 2 | DN81: 442 | DO81: 2 | DP81: 760 | DQ81: 7 | DR81: 2450 | DS81: 10 | DT81: 3671 | DU81: 9 | DV81: 3000 | DW81: Communications|Administration | DX81: 003 | DY81: 001 | DZ81: 003001 | EC81: 243 | ED81: 57 | EE81: 2 | EF81: Parliament | EG81: 3 | EH81: Core Business | EI81: 4 | EJ81: Core Business Support | EK81: Payments for capital assets | EL81: Machinery and equipment | EM81: Other machinery and equipment | EN81: 968 | EO81: 255 | EP81: 318 | EQ81: 318 | ER81: 318 | ES81: 955 | ET81: 1008 | EU81: 1063 | EV81: 0 | EW81: 0 | EX81: 0 | EY81: 1008 | EZ81: 1063 | FA81: 1121 | FB81: Parliament|Core Business | FC81: 002 | FD81: 003 | FE81: 004 | FF81: 057 | FG81: 002003 | FH81: 002057 | FI81: 57 | FJ81: 002003004057 | FL81: 002003057 | FT81: 4 | FU81: Cooperative Governance And Traditional Affairs | FV81: 5 | FW81: Local Government Support and Intervention Management | FX81: 1 | FY81: Management: Local Government Support and Interventions
DG82: Communications | DH82: Administration | DI82: 6 | DJ82: 9 | DK82: 9 | DL82: 0 | DM82: 2 | DN82: 508 | DO82: 2 | DP82: 830 | DQ82: 6 | DR82: 2243 | DS82: 9 | DT82: 3523 | DU82: 6 | DV82: 2963 | DW82: Communications|Administration | DX82: 003 | DY82: 001 | DZ82: 003001 | EC82: 243 | ED82: 1 | EE82: 2 | EF82: Parliament | EG82: 3 | EH82: Core Business | EI82: 5 | EJ82: Knowledge and Information Services | EK82: Current payments | EL82: Compensation of employees | EM82: Compensation of employees | EN82: 144003 | EO82: 147388 | EP82: 154831 | EQ82: 154831 | ER82: 154831 | ES82: 153903 | ET82: 163937 | EU82: 176232 | EV82: 0 | EW82: 0 | EX82: 0 | EY82: 163937 | EZ82: 176232 | FA82: 187687 | FB82: Parliament|Core Business | FC82: 002 | FD82: 003 | FE82: 005 | FF82: 001 | FG82: 002003 | FH82: 002001 | FI82: 1 | FJ82: 002003005001 | FL82: 002003001 | FT82: 4 | FU82: Cooperative Governance And Traditional Affairs | FV82: 5 | FW82: Local Government Support and Intervention Management | FX82: 2 | FY82: Municipal Performance Monitoring
DG83: Communications | DH83: Administration | DI83: 7 | DJ83: 2 | DK83: 2 | DL83: 0 | DM83: 0 | DN83: 0 | DO83: 0 | DP83: 0 | DQ83: 2 | DR83: 875 | DS83: 3 | DT83: 1620 | DU83: 4 | DV83: 2237 | DW83: Communications|Administration | DX83: 003 | DY83: 001 | DZ83: 003001 | EC83: 244 | ED83: 2 | EE83: 2 | EF83: Parliament | EG83: 3 | EH83: Core Business | EI83: 5 | EJ83: Knowledge and Information Services | EK83: Current payments | EL83: Goods and services | EM83: Goods and services | EN83: 12654 | EO83: 10485 | EP83: 13641 | EQ83: 13641 | ER83: 13641 | ES83: 21404 | ET83: 22515 | EU83: 23753 | EV83: 0 | EW83: 0 | EX83: 0 | EY83: 22515 | EZ83: 23753 | FA83: 25059 | FB83: Parliament|Core Business | FC83: 002 | FD83: 003 | FE83: 005 | FF83: 002 | FG83: 002003 | FH83: 002002 | FI83: 2 | FJ83: 002003005002 | FL83: 002003002 | FT83: 4 | FU83: Cooperative Governance And Traditional Affairs | FV83: 5 | FW83: Local Government Support and Intervention Management | FX83: 3 | FY83: Local Government Improvement Programme
DG84: Communications | DH84: Administration | DI84: 8 | DJ84: 7 | DK84: 7 | DL84: 0 | DM84: 2 | DN84: 706 | DO84: 3 | DP84: 1670 | DQ84: 0 | DR84: 0 | DS84: 4 | DT84: 0 | DU84: 6 | DV84: 0 | DW84: Communications|Administration | DX84: 003 | DY84: 001 | DZ84: 003001 | EC84: 244 | ED84: 57 | EE84: 2 | EF84: Parliament | EG84: 3 | EH84: Core Business | EI84: 5 | EJ84: Knowledge and Information Services | EK84: Payments for capital assets | EL84: Machinery and equipment | EM84: Other machinery and equipment | EN84: 5 | EO84: 255 | EP84: 268 | EQ84: 268 | ER84: 268 | ES84: 377 | ET84: 398 | EU84: 420 | EV84: 0 | EW84: 0 | EX84: 0 | EY84: 398 | EZ84: 420 | FA84: 443 | FB84: Parliament|Core Business | FC84: 002 | FD84: 003 | FE84: 005 | FF84: 057 | FG84: 002003 | FH84: 002057 | FI84: 57 | FJ84: 002003005057 | FL84: 002003057 | FT84: 4 | FU84: Cooperative Governance And Traditional Affairs | FV84: 5 | FW84: Local Government Support and Intervention Management | FX84: 4 | FY84: Litigations and Interventions
DG85: Communications | DH85: Administration | DI85: 9 | DJ85: 6 | DK85: 6 | DL85: 0 | DM85: 9 | DN85: 2790 | DO85: 7 | DP85: 3640 | DQ85: 10 | DR85: 4502 | DS85: 11 | DT85: 6005 | DU85: 13 | DV85: 8150 | DW85: Communications|Administration | DX85: 003 | DY85: 001 | DZ85: 003001 | EC85: 244 | ED85: 1 | EE85: 2 | EF85: Parliament | EG85: 3 | EH85: Core Business | EI85: 6 | EJ85: International Relations and Protocol | EK85: Current payments | EL85: Compensation of employees | EM85: Compensation of employees | EN85: 21144 | EO85: 21142 | EP85: 15928 | EQ85: 15928 | ER85: 15928 | ES85: 29115 | ET85: 29285 | EU85: 31481 | EV85: 0 | EW85: 0 | EX85: 0 | EY85: 29285 | EZ85: 31481 | FA85: 33527 | FB85: Parliament|Core Business | FC85: 002 | FD85: 003 | FE85: 006 | FF85: 001 | FG85: 002003 | FH85: 002001 | FI85: 1 | FJ85: 002003006001 | FL85: 002003001 | FT85: 4 | FU85: Cooperative Governance And Traditional Affairs | FV85: 5 | FW85: Local Government Support and Intervention Management | FX85: 5 | FY85: Municipal Infrastructure Grant Management
DG86: Communications | DH86: Administration | DI86: 10 | DJ86: 0 | DK86: 1 | DL86: 1 | DM86: 1 | DN86: 350 | DO86: 2 | DP86: 1325 | DQ86: 3 | DR86: 1576 | DS86: 3 | DT86: 1860 | DU86: 4 | DV86: 3006 | DW86: Communications|Administration | DX86: 003 | DY86: 001 | DZ86: 003001 | EC86: 245 | ED86: 2 | EE86: 2 | EF86: Parliament | EG86: 3 | EH86: Core Business | EI86: 6 | EJ86: International Relations and Protocol | EK86: Current payments | EL86: Goods and services | EM86: Goods and services | EN86: 18830 | EO86: 14264 | EP86: 36482 | EQ86: 36482 | ER86: 36482 | ES86: 28190 | ET86: 29768 | EU86: 31405 | EV86: 0 | EW86: 0 | EX86: 0 | EY86: 29768 | EZ86: 31405 | FA86: 33132 | FB86: Parliament|Core Business | FC86: 002 | FD86: 003 | FE86: 006 | FF86: 002 | FG86: 002003 | FH86: 002002 | FI86: 2 | FJ86: 002003006002 | FL86: 002003002 | FT86: 4 | FU86: Cooperative Governance And Traditional Affairs | FV86: 5 | FW86: Local Government Support and Intervention Management | FX86: 6 | FY86: South African Local Government Association
DG87: Communications | DH87: Administration | DI87: 11 | DJ87: 11 | DK87: 12 | DL87: 1 | DM87: 2 | DN87: 1100 | DO87: 6 | DP87: 3603 | DQ87: 9 | DR87: 4994 | DS87: 8 | DT87: 6230 | DU87: 7 | DV87: 5994 | DW87: Communications|Administration | DX87: 003 | DY87: 001 | DZ87: 003001 | EC87: 245 | ED87: 57 | EE87: 2 | EF87: Parliament | EG87: 3 | EH87: Core Business | EI87: 6 | EJ87: International Relations and Protocol | EK87: Payments for capital assets | EL87: Machinery and equipment | EM87: Other machinery and equipment | EN87: 140 | EO87: 9 | EP87: 0 | EQ87: 0 | ER87: 0 | ES87: 0 | ET87: 0 | EU87: 0 | EV87: 0 | EW87: 0 | EX87: 0 | EY87: 0 | EZ87: 0 | FA87: 0 | FB87: Parliament|Core Business | FC87: 002 | FD87: 003 | FE87: 006 | FF87: 057 | FG87: 002003 | FH87: 002057 | FI87: 57 | FJ87: 002003006057 | FL87: 002003057 | FT87: 4 | FU87: Cooperative Governance And Traditional Affairs | FV87: 5 | FW87: Local Government Support and Intervention Management | FX87: 7 | FY87: Municipal Demarcation Board
DG88: Communications | DH88: Administration | DI88: 12 | DJ88: 4 | DK88: 4 | DL88: 0 | DM88: 3 | DN88: 1890 | DO88: 5 | DP88: 3523 | DQ88: 4 | DR88: 2560 | DS88: 4 | DT88: 3500 | DU88: 3 | DV88: 2920 | DW88: Communications|Administration | DX88: 003 | DY88: 001 | DZ88: 003001 | EC88: 245 | ED88: 2 | EE88: 2 | EF88: Parliament | EG88: 3 | EH88: Core Business | EI88: 7 | EJ88: Youth Parliament | EK88: Current payments | EL88: Goods and services | EM88: Goods and services | EN88: 0 | EO88: 2426 | EP88: 0 | EQ88: 0 | ER88: 0 | ES88: 0 | ET88: 0 | EU88: 0 | EV88: 0 | EW88: 0 | EX88: 0 | EY88: 0 | EZ88: 0 | FA88: 0 | FB88: Parliament|Core Business | FC88: 002 | FD88: 003 | FE88: 007 | FF88: 002 | FG88: 002003 | FH88: 002002 | FI88: 2 | FJ88: 002003007002 | FL88: 002003002 | FT88: 4 | FU88: Cooperative Governance And Traditional Affairs | FV88: 5 | FW88: Local Government Support and Intervention Management | FX88: 8 | FY88: South African Cities Network
DG89: Communications | DH89: Administration | DI89: 13 | DJ89: 13 | DK89: 15 | DL89: 2 | DM89: 4 | DN89: 3900 | DO89: 6 | DP89: 4772 | DQ89: 5 | DR89: 4494 | DS89: 6 | DT89: 5400 | DU89: 5 | DV89: 5444 | DW89: Communications|Administration | DX89: 003 | DY89: 001 | DZ89: 003001 | EC89: 251 | ED89: 2 | EE89: 2 | EF89: Parliament | EG89: 3 | EH89: Core Business | EI89: 8 | EJ89: Women's Parliament | EK89: Current payments | EL89: Goods and services | EM89: Goods and services | EN89: 0 | EO89: 4336 | EP89: 0 | EQ89: 0 | ER89: 0 | ES89: 0 | ET89: 0 | EU89: 0 | EV89: 0 | EW89: 0 | EX89: 0 | EY89: 0 | EZ89: 0 | FA89: 0 | FB89: Parliament|Core Business | FC89: 002 | FD89: 003 | FE89: 008 | FF89: 002 | FG89: 002003 | FH89: 002002 | FI89: 2 | FJ89: 002003008002 | FL89: 002003002 | FT89: 4 | FU89: Cooperative Governance And Traditional Affairs | FV89: 5 | FW89: Local Government Support and Intervention Management | FX89: 9 | FY89: United Cities and Local Government of Africa
DG90: Communications | DH90: Administration | DI90: 14 | DJ90: 3 | DK90: 4 | DL90: 1 | DM90: 2 | DN90: 2931 | DO90: 3 | DP90: 3782 | DQ90: 3 | DR90: 2933 | DS90: 3 | DT90: 3200 | DU90: 3 | DV90: 3513 | DW90: Communications|Administration | DX90: 003 | DY90: 001 | DZ90: 003001 | EC90: 251 | ED90: 1 | EE90: 2 | EF90: Parliament | EG90: 4 | EH90: Support Services | EI90: 1 | EJ90: Office of the Deputy Secretary | EK90: Current payments | EL90: Compensation of employees | EM90: Compensation of employees | EN90: 2356 | EO90: 2673 | EP90: 2613 | EQ90: 2613 | ER90: 2613 | ES90: 2561 | ET90: 2755 | EU90: 2962 | EV90: 0 | EW90: 0 | EX90: 0 | EY90: 2755 | EZ90: 2962 | FA90: 3155 | FB90: Parliament|Support Services | FC90: 002 | FD90: 004 | FE90: 001 | FF90: 001 | FG90: 002004 | FH90: 002001 | FI90: 1 | FJ90: 002004001001 | FL90: 002004001 | FT90: 4 | FU90: Cooperative Governance And Traditional Affairs | FV90: 6 | FW90: Community Work Programme | FX90: 1 | FY90: Management: Community Work Programme
DG91: Communications | DH91: Administration | DI91: 15 | DJ91: 0 | DK91: 2 | DL91: 2 | DM91: 2 | DN91: 3500 | DO91: 2 | DP91: 4673 | DQ91: 2 | DR91: 3926 | DS91: 3 | DT91: 4500 | DU91: 2 | DV91: 3926 | DW91: Communications|Administration | DX91: 003 | DY91: 001 | DZ91: 003001 | EC91: 251 | ED91: 2 | EE91: 2 | EF91: Parliament | EG91: 4 | EH91: Support Services | EI91: 1 | EJ91: Office of the Deputy Secretary | EK91: Current payments | EL91: Goods and services | EM91: Goods and services | EN91: 304 | EO91: 38 | EP91: 2589 | EQ91: 2589 | ER91: 2589 | ES91: 2382 | ET91: 2516 | EU91: 2654 | EV91: 0 | EW91: 0 | EX91: 0 | EY91: 2516 | EZ91: 2654 | FA91: 2800 | FB91: Parliament|Support Services | FC91: 002 | FD91: 004 | FE91: 001 | FF91: 002 | FG91: 002004 | FH91: 002002 | FI91: 2 | FJ91: 002004001002 | FL91: 002004002 | FT91: 4 | FU91: Cooperative Governance And Traditional Affairs | FV91: 6 | FW91: Community Work Programme | FX91: 2 | FY91: Programme Coordination
DG92: Communications | DH92: Administration | DI92: 16 | DJ92: 3 | DK92: 3 | DL92: 0 | DM92: 2 | DN92: 6287 | DO92: 2 | DP92: 5890 | DQ92: 2 | DR92: 5400 | DS92: 2 | DT92: 5770 | DU92: 2 | DV92: 6443 | DW92: Communications|Administration | DX92: 003 | DY92: 001 | DZ92: 003001 | EC92: 252 | ED92: 57 | EE92: 2 | EF92: Parliament | EG92: 4 | EH92: Support Services | EI92: 1 | EJ92: Office of the Deputy Secretary | EK92: Payments for capital assets | EL92: Machinery and equipment | EM92: Other machinery and equipment | EN92: 41 | EO92: 52 | EP92: 0 | EQ92: 0 | ER92: 0 | ES92: 0 | ET92: 0 | EU92: 0 | EV92: 0 | EW92: 0 | EX92: 0 | EY92: 0 | EZ92: 0 | FA92: 0 | FB92: Parliament|Support Services | FC92: 002 | FD92: 004 | FE92: 001 | FF92: 057 | FG92: 002004 | FH92: 002057 | FI92: 57 | FJ92: 002004001057 | FL92: 002004057 | FT92: 4 | FU92: Cooperative Governance And Traditional Affairs | FV92: 6 | FW92: Community Work Programme | FX92: 3 | FY92: Partnerships, Norms, Standards and Innovation
DG93: Communications | DH93: Communications Policy, Research and Development | DI93: 8 | DJ93: 2 | DK93: 2 | DL93: 0 | DM93: 2 | DN93: 648 | DO93: 2 | DP93: 563 | DQ93: 2 | DR93: 435 | DS93: 4 | DT93: 1359 | DU93: 4 | DV93: 1326 | DW93: Communications|Communications Policy, Research and Development | DX93: 003 | DY93: 002 | DZ93: 003002 | EC93: 253 | ED93: 1 | EE93: 2 | EF93: Parliament | EG93: 4 | EH93: Support Services | EI93: 2 | EJ93: Parliamentary Communication Services | EK93: Current payments | EL93: Compensation of employees | EM93: Compensation of employees | EN93: 34698 | EO93: 37510 | EP93: 38883 | EQ93: 38883 | ER93: 38883 | ES93: 48567 | ET93: 41426 | EU93: 54444 | EV93: 0 | EW93: 0 | EX93: 0 | EY93: 41426 | EZ93: 54444 | FA93: 57983 | FB93: Parliament|Support Services | FC93: 002 | FD93: 004 | FE93: 002 | FF93: 001 | FG93: 002004 | FH93: 002001 | FI93: 1 | FJ93: 002004002001 | FL93: 002004001 | FT93: 5 | FU93: Home Affairs | FV93: 1 | FW93: Administration | FX93: 1 | FY93: Ministry
DG94: Communications | DH94: Communications Policy, Research and Development | DI94: 9 | DJ94: 1 | DK94: 1 | DL94: 0 | DM94: 1 | DN94: 384 | DO94: 0 | DP94: 0 | DQ94: 4 | DR94: 1484 | DS94: 3 | DT94: 818 | DU94: 3 | DV94: 1023 | DW94: Communications|Communications Policy, Research and Development | DX94: 003 | DY94: 002 | DZ94: 003002 | EC94: 254 | ED94: 2 | EE94: 2 | EF94: Parliament | EG94: 4 | EH94: Support Services | EI94: 2 | EJ94: Parliamentary Communication Services | EK94: Current payments | EL94: Goods and services | EM94: Goods and services | EN94: 39561 | EO94: 31782 | EP94: 41220 | EQ94: 41220 | ER94: 41220 | ES94: 43587 | ET94: 45942 | EU94: 48469 | EV94: 0 | EW94: 0 | EX94: 0 | EY94: 45942 | EZ94: 48469 | FA94: 51135 | FB94: Parliament|Support Services | FC94: 002 | FD94: 004 | FE94: 002 | FF94: 002 | FG94: 002004 | FH94: 002002 | FI94: 2 | FJ94: 002004002002 | FL94: 002004002 | FT94: 5 | FU94: Home Affairs | FV94: 1 | FW94: Administration | FX94: 2 | FY94: Management Support Services
DG95: Communications | DH95: Communications Policy, Research and Development | DI95: 11 | DJ95: 1 | DK95: 1 | DL95: 0 | DM95: 2 | DN95: 1064 | DO95: 2 | DP95: 767 | DQ95: 2 | DR95: 764 | DS95: 2 | DT95: 1123 | DU95: 2 | DV95: 1533 | DW95: Communications|Communications Policy, Research and Development | DX95: 003 | DY95: 002 | DZ95: 003002 | EC95: 255 | ED95: 57 | EE95: 2 | EF95: Parliament | EG95: 4 | EH95: Support Services | EI95: 2 | EJ95: Parliamentary Communication Services | EK95: Payments for capital assets | EL95: Machinery and equipment | EM95: Other machinery and equipment | EN95: 130 | EO95: 401 | EP95: 0 | EQ95: 0 | ER95: 0 | ES95: 0 | ET95: 0 | EU95: 0 | EV95: 0 | EW95: 0 | EX95: 0 | EY95: 0 | EZ95: 0 | FA95: 0 | FB95: Parliament|Support Services | FC95: 002 | FD95: 004 | FE95: 002 | FF95: 057 | FG95: 002004 | FH95: 002057 | FI95: 57 | FJ95: 002004002057 | FL95: 002004057 | FT95: 5 | FU95: Home Affairs | FV95: 1 | FW95: Administration | FX95: 3 | FY95: Corporate Services
DG96: Communications | DH96: Communications Policy, Research and Development | DI96: 12 | DJ96: 2 | DK96: 2 | DL96: 0 | DM96: 1 | DN96: 670 | DO96: 1 | DP96: 603 | DQ96: 1 | DR96: 720 | DS96: 2 | DT96: 1319 | DU96: 2 | DV96: 1719 | DW96: Communications|Communications Policy, Research and Development | DX96: 003 | DY96: 002 | DZ96: 003002 | EC96: 255 | ED96: 1 | EE96: 2 | EF96: Parliament | EG96: 4 | EH96: Support Services | EI96: 3 | EJ96: Human Resources Management | EK96: Current payments | EL96: Compensation of employees | EM96: Compensation of employees | EN96: 35000 | EO96: 35803 | EP96: 36799 | EQ96: 36799 | ER96: 36799 | ES96: 47006 | ET96: 39747 | EU96: 52641 | EV96: 0 | EW96: 0 | EX96: 0 | EY96: 39747 | EZ96: 52641 | FA96: 56063 | FB96: Parliament|Support Services | FC96: 002 | FD96: 004 | FE96: 003 | FF96: 001 | FG96: 002004 | FH96: 002001 | FI96: 1 | FJ96: 002004003001 | FL96: 002004001 | FT96: 5 | FU96: Home Affairs | FV96: 1 | FW96: Administration | FX96: 4 | FY96: Transversal Information Technology Management
DG97: Communications | DH97: Communications Policy, Research and Development | DI97: 13 | DJ97: 1 | DK97: 1 | DL97: 0 | DM97: 2 | DN97: 1638 | DO97: 2 | DP97: 1294 | DQ97: 2 | DR97: 1319 | DS97: 2 | DT97: 1410 | DU97: 2 | DV97: 1450 | DW97: Communications|Communications Policy, Research and Development | DX97: 003 | DY97: 002 | DZ97: 003002 | EC97: 255 | ED97: 2 | EE97: 2 | EF97: Parliament | EG97: 4 | EH97: Support Services | EI97: 3 | EJ97: Human Resources Management | EK97: Current payments | EL97: Goods and services | EM97: Goods and services | EN97: 13584 | EO97: 9816 | EP97: 13601 | EQ97: 13601 | ER97: 13601 | ES97: 13906 | ET97: 14685 | EU97: 15493 | EV97: 0 | EW97: 0 | EX97: 0 | EY97: 14685 | EZ97: 15493 | FA97: 16345 | FB97: Parliament|Support Services | FC97: 002 | FD97: 004 | FE97: 003 | FF97: 002 | FG97: 002004 | FH97: 002002 | FI97: 2 | FJ97: 002004003002 | FL97: 002004002 | FT97: 5 | FU97: Home Affairs | FV97: 1 | FW97: Administration | FX97: 5 | FY97: Office Accommodation
DG98: Communications | DH98: Communications Policy, Research and Development | DI98: 14 | DJ98: 1 | DK98: 1 | DL98: 0 | DM98: 1 | DN98: 1003 | DO98: 1 | DP98: 1098 | DQ98: 1 | DR98: 1434 | DS98: 1 | DT98: 1563 | DU98: 1 | DV98: 1579 | DW98: Communications|Communications Policy, Research and Development | DX98: 003 | DY98: 002 | DZ98: 003002 | EC98: 256 | ED98: 57 | EE98: 2 | EF98: Parliament | EG98: 4 | EH98: Support Services | EI98: 3 | EJ98: Human Resources Management | EK98: Payments for capital assets | EL98: Machinery and equipment | EM98: Other machinery and equipment | EN98: 116 | EO98: 32 | EP98: 515 | EQ98: 515 | ER98: 515 | ES98: 557 | ET98: 588 | EU98: 620 | EV98: 0 | EW98: 0 | EX98: 0 | EY98: 588 | EZ98: 620 | FA98: 654 | FB98: Parliament|Support Services | FC98: 002 | FD98: 004 | FE98: 003 | FF98: 057 | FG98: 002004 | FH98: 002057 | FI98: 57 | FJ98: 002004003057 | FL98: 002004057 | FT98: 5 | FU98: Home Affairs | FV98: 2 | FW98: Citizen Affairs | FX98: 1 | FY98: Citizen Affairs Management
DG99: Communications | DH99: Industry and Capacity Development | DI99: 4 | DJ99: 1 | DK99: 1 | DL99: 0 | DM99: 2 | DN99: 270 | DO99: 1 | DP99: 197 | DQ99: 1 | DR99: 94 | DS99: 1 | DT99: 104 | DU99: 2 | DV99: 250 | DW99: Communications|Industry and Capacity Development | DX99: 003 | DY99: 003 | DZ99: 003003 | EC99: 2161 | ED99: 1 | EE99: 2 | EF99: Parliament | EG99: 4 | EH99: Support Services | EI99: 4 | EJ99: Information Communication and Technology | EK99: Current payments | EL99: Compensation of employees | EM99: Compensation of employees | EN99: 42672 | EO99: 46307 | EP99: 35774 | EQ99: 35774 | ER99: 35774 | ES99: 44839 | ET99: 37415 | EU99: 50134 | EV99: 0 | EW99: 0 | EX99: 0 | EY99: 37415 | EZ99: 50134 | FA99: 53393 | FB99: Parliament|Support Services | FC99: 002 | FD99: 004 | FE99: 004 | FF99: 001 | FG99: 002004 | FH99: 002001 | FI99: 1 | FJ99: 002004004001 | FL99: 002004001 | FT99: 5 | FU99: Home Affairs | FV99: 2 | FW99: Citizen Affairs | FX99: 2 | FY99: Status Services
DG100: Communications | DH100: Industry and Capacity Development | DI100: 7 | DJ100: 0 | DK100: 0 | DL100: 0 | DM100: 1 | DN100: 234 | DO100: 0 | DP100: 0 | DQ100: 0 | DR100: 0 | DS100: 0 | DT100: 0 | DU100: 0 | DV100: 0 | DW100: Communications|Industry and Capacity Development | DX100: 003 | DY100: 003 | DZ100: 003003 | EC100: 311 | ED100: 2 | EE100: 2 | EF100: Parliament | EG100: 4 | EH100: Support Services | EI100: 4 | EJ100: Information Communication and Technology | EK100: Current payments | EL100: Goods and services | EM100: Goods and services | EN100: 15180 | EO100: 17670 | EP100: 24073 | EQ100: 24073 | ER100: 24073 | ES100: 25430 | ET100: 26853 | EU100: 28330 | EV100: 0 | EW100: 0 | EX100: 0 | EY100: 26853 | EZ100: 28330 | FA100: 29888 | FB100: Parliament|Support Services | FC100: 002 | FD100: 004 | FE100: 004 | FF100: 002 | FG100: 002004 | FH100: 002002 | FI100: 2 | FJ100: 002004004002 | FL100: 002004002 | FT100: 5 | FU100: Home Affairs | FV100: 2 | FW100: Citizen Affairs | FX100: 3 | FY100: Identification Services
DG101: Communications | DH101: Industry and Capacity Development | DI101: 8 | DJ101: 1 | DK101: 1 | DL101: 0 | DM101: 1 | DN101: 0 | DO101: 1 | DP101: 144 | DQ101: 2 | DR101: 430 | DS101: 1 | DT101: 525 | DU101: 1 | DV101: 556 | DW101: Communications|Industry and Capacity Development | DX101: 003 | DY101: 003 | DZ101: 003003 | EC101: 311 | ED101: 57 | EE101: 2 | EF101: Parliament | EG101: 4 | EH101: Support Services | EI101: 4 | EJ101: Information Communication and Technology | EK101: Payments for capital assets | EL101: Machinery and equipment | EM101: Other machinery and equipment | EN101: 900 | EO101: 11330 | EP101: 420 | EQ101: 420 | ER101: 420 | ES101: 228 | ET101: 241 | EU101: 254 | EV101: 0 | EW101: 0 | EX101: 0 | EY101: 241 | EZ101: 254 | FA101: 268 | FB101: Parliament|Support Services | FC101: 002 | FD101: 004 | FE101: 004 | FF101: 057 | FG101: 002004 | FH101: 002057 | FI101: 57 | FJ101: 002004004057 | FL101: 002004057 | FT101: 5 | FU101: Home Affairs | FV101: 2 | FW101: Citizen Affairs | FX101: 5 | FY101: Service Delivery to Provinces
DG102: Communications | DH102: Industry and Capacity Development | DI102: 9 | DJ102: 0 | DK102: 1 | DL102: 1 | DM102: 0 | DN102: 0 | DO102: 1 | DP102: 217 | DQ102: 2 | DR102: 579 | DS102: 1 | DT102: 707 | DU102: 1 | DV102: 748 | DW102: Communications|Industry and Capacity Development | DX102: 003 | DY102: 003 | DZ102: 003003 | EC102: 311 | ED102: 62 | EE102: 2 | EF102: Parliament | EG102: 4 | EH102: Support Services | EI102: 4 | EJ102: Information Communication and Technology | EK102: Payments for capital assets | EL102: Software and other intangible assets | EM102: Software and other intangible assets | EN102: 0 | EO102: 2004 | EP102: 0 | EQ102: 0 | ER102: 0 | ES102: 0 | ET102: 0 | EU102: 0 | EV102: 0 | EW102: 0 | EX102: 0 | EY102: 0 | EZ102: 0 | FA102: 0 | FB102: Parliament|Support Services | FC102: 002 | FD102: 004 | FE102: 004 | FF102: 062 | FG102: 002004 | FH102: 002062 | FI102: 62 | FJ102: 002004004062 | FL102: 002004062 | FT102: 5 | FU102: Home Affairs | FV102: 2 | FW102: Citizen Affairs | FX102: 7 | FY102: Government Printing Works
DG103: Communications | DH103: Industry and Capacity Development | DI103: 10 | DJ103: 0 | DK103: 1 | DL103: 0 | DM103: 0 | DN103: 0 | DO103: 1 | DP103: 243 | DQ103: 1 | DR103: 310 | DS103: 1 | DT103: 758 | DU103: 2 | DV103: 802 | DW103: Communications|Industry and Capacity Development | DX103: 003 | DY103: 003 | DZ103: 003003 | EC103: 312 | ED103: 1 | EE103: 2 | EF103: Parliament | EG103: 4 | EH103: Support Services | EI103: 5 | EJ103: Institutional Support Services | EK103: Current payments | EL103: Compensation of employees | EM103: Compensation of employees | EN103: 97460 | EO103: 109164 | EP103: 89554 | EQ103: 89554 | ER103: 89554 | ES103: 101564 | ET103: 97710 | EU103: 114951 | EV103: 0 | EW103: 0 | EX103: 0 | EY103: 97710 | EZ103: 114951 | FA103: 122423 | FB103: Parliament|Support Services | FC103: 002 | FD103: 004 | FE103: 005 | FF103: 001 | FG103: 002004 | FH103: 002001 | FI103: 1 | FJ103: 002004005001 | FL103: 002004001 | FT103: 5 | FU103: Home Affairs | FV103: 2 | FW103: Citizen Affairs | FX103: 8 | FY103: Electoral Commission
Z104: =IF(AI104="",1,2) -> 1 | AA104: =+AA23 -> 27 | AB104: =+AB23 -> 2 | AP104: =INDEX((AP$106:AP$152),MATCH($AA$23,$AA$106:$AA$152,1)) -> 1494020 | AQ104: =INDEX((AQ$106:AQ$152),MATCH($AA$23,$AA$106:$AA$152,1)) -> 1605987 | AR104: 1710377 | AT104: Personnel Revised Baseline | AV104: =IFERROR(INDEX((AV$106:AV$151),MATCH($AB$23,$AT$106:$AT$151,0)),0) -> 1494020 | AW104: =IFERROR(INDEX((AW$106:AW$151),MATCH($AB$23,$AT$106:$AT$151,0)),0) -> 1605987 | AX104: 1710377 | DG104: Communications | DH104: Industry and Capacity Development | DI104: 11 | DJ104: 2 | DK104: 2 | DL104: 1 | DM104: 1 | DN104: 548 | DO104: 2 | DP104: 0 | DQ104: 0 | DR104: 0 | DS104: 2 | DT104: 0 | DU104: 0 | DV104: 0 | DW104: Communications|Industry and Capacity Development | DX104: 003 | DY104: 003 | DZ104: 003003 | EC104: 312 | ED104: 2 | EE104: 2 | EF104: Parliament | EG104: 4 | EH104: Support Services | EI104: 5 | EJ104: Institutional Support Services | EK104: Current payments | EL104: Goods and services | EM104: Goods and services | EN104: 11397 | EO104: 18202 | EP104: 19492 | EQ104: 19492 | ER104: 19492 | ES104: 20659 | ET104: 21485 | EU104: 22666 | EV104: 0 | EW104: 0 | EX104: 0 | EY104: 21485 | EZ104: 22666 | FA104: 23913 | FB104: Parliament|Support Services | FC104: 002 | FD104: 004 | FE104: 005 | FF104: 002 | FG104: 002004 | FH104: 002002 | FI104: 2 | FJ104: 002004005002 | FL104: 002004002 | FT104: 5 | FU104: Home Affairs | FV104: 2 | FW104: Citizen Affairs | FX104: 9 | FY104: Represented Political Parties’ Fund
AA105: Dept Index No. | AB105: Vote No. | AC105: Department | AD105: Category | AE105: ID1 | AF105: Contact Person | AG105: Tel | AH105: email | AI105: Contact Person | AJ105: Tel | AK105: email | AL105: ID2 | AM105: Contact Person | AN105: Tel | AO105: email | AP105: =MyYearP1 -> 2019/20 | AQ105: =MyYearP2 -> 2020/21 | AR105: =MyYearP3 -> 2021/22 | AT105: Vote No. | AU105: Dept | AV105: =+AP105 -> 2019/20 | AW105: =+AQ105 -> 2020/21 | AX105: =+AR105 -> 2021/22 | DG105: Communications | DH105: Industry and Capacity Development | DI105: 12 | DJ105: 0 | DK105: 0 | DL105: 0 | DM105: 2 | DN105: 1230 | DO105: 0 | DP105: 0 | DQ105: 0 | DR105: 0 | DS105: 0 | DT105: 0 | DU105: 0 | DV105: 0 | DW105: Communications|Industry and Capacity Development | DX105: 003 | DY105: 003 | DZ105: 003003 | EC105: 312 | ED105: 57 | EE105: 2 | EF105: Parliament | EG105: 4 | EH105: Support Services | EI105: 5 | EJ105: Institutional Support Services | EK105: Payments for capital assets | EL105: Machinery and equipment | EM105: Other machinery and equipment | EN105: 389 | EO105: 188 | EP105: 319 | EQ105: 319 | ER105: 319 | ES105: 289 | ET105: 305 | EU105: 322 | EV105: 0 | EW105: 0 | EX105: 0 | EY105: 305 | EZ105: 322 | FA105: 340 | FB105: Parliament|Support Services | FC105: 002 | FD105: 004 | FE105: 005 | FF105: 057 | FG105: 002004 | FH105: 002057 | FI105: 57 | FJ105: 002004005057 | FL105: 002004057 | FT105: 5 | FU105: Home Affairs | FV105: 3 | FW105: Immigration Affairs | FX105: 1 | FY105: Immigration Affairs Management
Y106: 1 | AA106: 1 | AB106: 24 | AC106: Agriculture, Forestry and Fisheries | AF106: Bothwell Deka | AG106: (012) 395 6784 | AH106: Bothwell.Deka@treasury.gov.za | AI106: Humbelani Ramuedzisi | AJ106: (012) 315 5585 | AK106: Humbelani.Ramuedzisi@treasury.gov.za | AO106: datafileNAT@treasury.gov.za | AP106: 2348230 | AQ106: 2518972 | AR106: 2682707 | AT106: 24 | AU106: Agriculture, Forestry and Fisheries | AV106: 2348230 | AW106: 2518972 | AX106: 2682707 | DG106: Communications | DH106: Industry and Capacity Development | DI106: 13 | DJ106: 2 | DK106: 4 | DL106: 2 | DM106: 3 | DN106: 3493 | DO106: 4 | DP106: 2893 | DQ106: 4 | DR106: 3153 | DS106: 4 | DT106: 3247 | DU106: 4 | DV106: 3500 | DW106: Communications|Industry and Capacity Development | DX106: 003 | DY106: 003 | DZ106: 003003 | EC106: 313 | ED106: 56 | EE106: 2 | EF106: Parliament | EG106: 4 | EH106: Support Services | EI106: 5 | EJ106: Institutional Support Services | EK106: Payments for capital assets | EL106: Machinery and equipment | EM106: Transport equipment | EN106: 0 | EO106: 1234 | EP106: 0 | EQ106: 0 | ER106: 0 | ES106: 0 | ET106: 0 | EU106: 0 | EV106: 0 | EW106: 0 | EX106: 0 | EY106: 0 | EZ106: 0 | FA106: 0 | FB106: Parliament|Support Services | FC106: 002 | FD106: 004 | FE106: 005 | FF106: 056 | FG106: 002004 | FH106: 002056 | FI106: 56 | FJ106: 002004005056 | FL106: 002004056 | FT106: 5 | FU106: Home Affairs | FV106: 3 | FW106: Immigration Affairs | FX106: 2 | FY106: Admission Services
Y107: 2 | AA107: 2 | AB107: 37 | AC107: Arts and Culture | AF107: Judy Naidoo | AG107: (012) 315 5269 | AH107: Judy.Naidoo@treasury.gov.za | AI107: Pindi Masiso | AJ107: (012) 315 5722 | AK107: Pindi.Masiso@treasury.gov.za | AO107: datafileNAT@treasury.gov.za | AP107: 272858 | AQ107: 293322 | AR107: 312388 | AT107: 37 | AU107: Arts and Culture | AV107: 272858 | AW107: 293322 | AX107: 312388 | DG107: Communications | DH107: Industry and Capacity Development | DI107: 14 | DJ107: 3 | DK107: 4 | DL107: 1 | DM107: 1 | DN107: 1354 | DO107: 2 | DP107: 1900 | DQ107: 3 | DR107: 3550 | DS107: 4 | DT107: 4577 | DU107: 4 | DV107: 4636 | DW107: Communications|Industry and Capacity Development | DX107: 003 | DY107: 003 | DZ107: 003003 | EC107: 313 | ED107: 58 | EE107: 2 | EF107: Parliament | EG107: 4 | EH107: Support Services | EI107: 5 | EJ107: Institutional Support Services | EK107: Payments for capital assets | EL107: Heritage assets | EM107: Heritage assets | EN107: 0 | EO107: 8 | EP107: 0 | EQ107: 0 | ER107: 0 | ES107: 0 | ET107: 0 | EU107: 0 | EV107: 0 | EW107: 0 | EX107: 0 | EY107: 0 | EZ107: 0 | FA107: 0 | FB107: Parliament|Support Services | FC107: 002 | FD107: 004 | FE107: 005 | FF107: 058 | FG107: 002004 | FH107: 002058 | FI107: 58 | FJ107: 002004005058 | FL107: 002004058 | FT107: 5 | FU107: Home Affairs | FV107: 3 | FW107: Immigration Affairs | FX107: 3 | FY107: Immigration Services
Y108: 3 | AA108: 3 | AB108: 14 | AC108: Basic Education | AF108: Spencer Janari | AG108: (012) 315 5436 | AH108: Spencer.Janari@treasury.gov.za | AI108: Pindi Masiso | AJ108: (012) 315 5722 | AK108: Pindi.Masiso@treasury.gov.za | AO108: datafileNAT@treasury.gov.za | AP108: 543051 | AQ108: 583779 | AR108: 621722 | AT108: 14 | AU108: Basic Education | AV108: 546751 | AW108: 587779 | AX108: 625922 | DG108: Communications | DH108: Entity Oversight | DI108: 7 | DJ108: 0 | DK108: 1 | DL108: 1 | DM108: 1 | DN108: 294 | DO108: 1 | DP108: 369 | DQ108: 1 | DR108: 464 | DS108: 1 | DT108: 490 | DU108: 1 | DV108: 518 | DW108: Communications|Entity Oversight | DX108: 003 | DY108: 004 | DZ108: 003004 | EC108: 314 | ED108: 1 | EE108: 2 | EF108: Parliament | EG108: 4 | EH108: Support Services | EI108: 6 | EJ108: Member's Support Services | EK108: Current payments | EL108: Compensation of employees | EM108: Compensation of employees | EN108: 0 | EO108: 0 | EP108: 0 | EQ108: 0 | ER108: 0 | ES108: 9180 | ET108: 9878 | EU108: 10619 | EV108: 0 | EW108: 0 | EX108: 0 | EY108: 9878 | EZ108: 10619 | FA108: 11309 | FB108: Parliament|Support Services | FC108: 002 | FD108: 004 | FE108: 006 | FF108: 001 | FG108: 002004 | FH108: 002001 | FI108: 1 | FJ108: 002004006001 | FL108: 002004001 | FT108: 5 | FU108: Home Affairs | FV108: 3 | FW108: Immigration Affairs | FX108: 4 | FY108: Asylum Seekers
Y109: 4 | AA109: 4 | AB109: 47 | AC109: Centre for Public Service Innovation | AF109: George Tembo | AG109: (012) 315 5514 | AH109: George.Tembo@treasury.gov.za | AI109: Mokgatla Tema | AJ109: (012) 315 5948 | AK109: Mokgatla.Tema@treasury.gov.za | AO109: datafileNAT@treasury.gov.za | AP109: 20902 | AQ109: 22470 | AR109: 23929 | AT109: 47 | AU109: Centre for Public Service Innovation | AV109: 20902 | AW109: 22470 | AX109: 23929 | DG109: Communications | DH109: Entity Oversight | DI109: 11 | DJ109: 0 | DK109: 1 | DL109: 0 | DM109: 0 | DN109: 0 | DO109: 1 | DP109: 495 | DQ109: 1 | DR109: 765 | DS109: 1 | DT109: 809 | DU109: 1 | DV109: 855 | DW109: Communications|Entity Oversight | DX109: 003 | DY109: 004 | DZ109: 003004 | EC109: 314 | ED109: 2 | EE109: 2 | EF109: Parliament | EG109: 4 | EH109: Support Services | EI109: 6 | EJ109: Member's Support Services | EK109: Current payments | EL109: Goods and services | EM109: Goods and services | EN109: 0 | EO109: 0 | EP109: 0 | EQ109: 0 | ER109: 0 | ES109: 1036 | ET109: 1094 | EU109: 1154 | EV109: 0 | EW109: 0 | EX109: 0 | EY109: 1094 | EZ109: 1154 | FA109: 1217 | FB109: Parliament|Support Services | FC109: 002 | FD109: 004 | FE109: 006 | FF109: 002 | FG109: 002004 | FH109: 002002 | FI109: 2 | FJ109: 002004006002 | FL109: 002004002 | FT109: 6 | FU109: International Relations and Cooperation | FV109: 1 | FW109: Administration | FX109: 1 | FY109: Ministry
Y110: 5 | AA110: 5 | AB110: 41 | AC110: Civilian Secretariat | AF110: Nompumelelo Radebe | AG110: (012) 315 5957 | AH110: Nompumelelo.Radebe@treasury.gov.za | AI110: Sithabiso Buthelezi | AJ110: (012) 406 9025 | AK110: sithabiso.buthelezi@treasury.gov.za | AO110: datafileNAT@treasury.gov.za | AP110: 104859 | AQ110: 112723 | AR110: 120049 | AT110: 41 | AU110: Civilian Secretariat | AV110: 104859 | AW110: 112723 | AX110: 120049 | DG110: Communications | DH110: Entity Oversight | DI110: 12 | DJ110: 0 | DK110: 1 | DL110: 0 | DM110: 1 | DN110: 670 | DO110: 1 | DP110: 750 | DQ110: 1 | DR110: 1113 | DS110: 1 | DT110: 1177 | DU110: 1 | DV110: 1244 | DW110: Communications|Entity Oversight | DX110: 003 | DY110: 004 | DZ110: 003004 | EC110: 314 | ED110: 57 | EE110: 2 | EF110: Parliament | EG110: 4 | EH110: Support Services | EI110: 6 | EJ110: Member's Support Services | EK110: Payments for capital assets | EL110: Machinery and equipment | EM110: Other machinery and equipment | EN110: 0 | EO110: 0 | EP110: 0 | EQ110: 0 | ER110: 0 | ES110: 106 | ET110: 112 | EU110: 118 | EV110: 0 | EW110: 0 | EX110: 0 | EY110: 112 | EZ110: 118 | FA110: 124 | FB110: Parliament|Support Services | FC110: 002 | FD110: 004 | FE110: 006 | FF110: 057 | FG110: 002004 | FH110: 002057 | FI110: 57 | FJ110: 002004006057 | FL110: 002004057 | FT110: 6 | FU110: International Relations and Cooperation | FV110: 1 | FW110: Administration | FX110: 2 | FY110: Departmental Management
Y111: 6 | AA111: 6 | AB111: 3 | AC111: Communications | AF111: Rhoda Marais | AG111: (012) 315 5906 | AH111: rhoda.marais@treasury.gov.za | AI111: Deeviya Patel | AJ111: (012) 395 6562 | AK111: deeviya.patel@treasury.gov.za | AO111: datafileNAT@treasury.gov.za | AP111: 87682 | AQ111: 94256 | AR111: 100382 | AT111: 3 | AU111: Communications | AV111: 87682 | AW111: 94256 | AX111: 100383 | DG111: Communications | DH111: Entity Oversight | DI111: 13 | DJ111: 1 | DK111: 1 | DL111: 0 | DM111: 1 | DN111: 882 | DO111: 1 | DP111: 890 | DQ111: 1 | DR111: 1132 | DS111: 1 | DT111: 1196 | DU111: 1 | DV111: 1265 | DW111: Communications|Entity Oversight | DX111: 003 | DY111: 004 | DZ111: 003004 | EC111: 315 | ED111: 1 | EE111: 2 | EF111: Parliament | EG111: 5 | EH111: Associated Services | EI111: 1 | EJ111: Members Support Services | EK111: Current payments | EL111: Compensation of employees | EM111: Compensation of employees | EN111: 8771 | EO111: 8824 | EP111: 8597 | EQ111: 8597 | ER111: 8597 | ES111: 0 | ET111: 0 | EU111: 0 | EV111: 0 | EW111: 0 | EX111: 0 | EY111: 0 | EZ111: 0 | FA111: 0 | FB111: Parliament|Associated Services | FC111: 002 | FD111: 005 | FE111: 001 | FF111: 001 | FG111: 002005 | FH111: 002001 | FI111: 1 | FJ111: 002005001001 | FL111: 002005001 | FT111: 6 | FU111: International Relations and Cooperation | FV111: 1 | FW111: Administration | FX111: 3 | FY111: Audit Services
Y112: 7 | AA112: 7 | AB112: 4 | AC112: Cooperative Governance And Traditional Affairs | AF112: Misaveni Ngobeni | AG112: (012) 315 5305 | AH112: misaveni.ngobeni@treasury.gov.za | AI112: Millicent Mulaudzi | AJ112: (012) 395 6576 | AK112: Millicent.Mulaudzi@treasury.gov.za | AO112: datafileNAT@treasury.gov.za | AP112: 365354 | AQ112: 392754 | AR112: 418284 | AT112: 4 | AU112: Cooperative Governance And Traditional Affairs | AV112: 365354 | AW112: 392754 | AX112: 418284 | DG112: Communications | DH112: Entity Oversight | DI112: 14 | DJ112: 0 | DK112: 1 | DL112: 0 | DM112: 1 | DN112: 988 | DO112: 1 | DP112: 1050 | DQ112: 1 | DR112: 1350 | DS112: 1 | DT112: 1687 | DU112: 1 | DV112: 1783 | DW112: Communications|Entity Oversight | DX112: 003 | DY112: 004 | DZ112: 003004 | EC112: 315 | ED112: 2 | EE112: 2 | EF112: Parliament | EG112: 5 | EH112: Associated Services | EI112: 1 | EJ112: Members Support Services | EK112: Current payments | EL112: Goods and services | EM112: Goods and services | EN112: 513 | EO112: 369 | EP112: 1308 | EQ112: 1308 | ER112: 1308 | ES112: 0 | ET112: 0 | EU112: 0 | EV112: 0 | EW112: 0 | EX112: 0 | EY112: 0 | EZ112: 0 | FA112: 0 | FB112: Parliament|Associated Services | FC112: 002 | FD112: 005 | FE112: 001 | FF112: 002 | FG112: 002005 | FH112: 002002 | FI112: 2 | FJ112: 002005001002 | FL112: 002005002 | FT112: 6 | FU112: International Relations and Cooperation | FV112: 1 | FW112: Administration | FX112: 4 | FY112: Financial Management
Y113: 8 | AA113: 8 | AB113: 18 | AC113: Correctional Services | AF113: Elvis Ramafamba | AG113: (012) 315 5204 | AH113: elvis.ramafamba@treasury.gov.za | AI113: Keabetswe Matlwa | AJ113: (012) 315 6678 | AK113: Keabetswe.Matlwa@treasury.gov.za | AO113: datafileNAT@treasury.gov.za | AP113: 18293576 | AQ113: 19668594 | AR113: 20947052 | AT113: 18 | AU113: Correctional Services | AV113: 18293576 | AW113: 19668594 | AX113: 20947052 | DG113: Communications | DH113: Entity Oversight | DI113: 15 | DJ113: 0 | DK113: 1 | DL113: 0 | DM113: 0 | DN113: 0 | DO113: 1 | DP113: 950 | DQ113: 1 | DR113: 1786 | DS113: 1 | DT113: 1889 | DU113: 1 | DV113: 1996 | DW113: Communications|Entity Oversight | DX113: 003 | DY113: 004 | DZ113: 003004 | EC113: 315 | ED113: 57 | EE113: 2 | EF113: Parliament | EG113: 5 | EH113: Associated Services | EI113: 1 | EJ113: Members Support Services | EK113: Payments for capital assets | EL113: Machinery and equipment | EM113: Other machinery and equipment | EN113: 120 | EO113: 66 | EP113: 101 | EQ113: 101 | ER113: 101 | ES113: 0 | ET113: 0 | EU113: 0 | EV113: 0 | EW113: 0 | EX113: 0 | EY113: 0 | EZ113: 0 | FA113: 0 | FB113: Parliament|Associated Services | FC113: 002 | FD113: 005 | FE113: 001 | FF113: 057 | FG113: 002005 | FH113: 002057 | FI113: 57 | FJ113: 002005001057 | FL113: 002005057 | FT113: 6 | FU113: International Relations and Cooperation | FV113: 1 | FW113: Administration | FX113: 5 | FY113: Corporate Services
Y114: 9 | AA114: 9 | AB114: 19 | AC114: Defence And Military Veterans | AF114: Mashudu Bidzha | AG114: (012) 315 5344 | AH114: mashudu.bidzha@treasury.gov.za | AI114: Lesiba Ledwaba | AJ114: (012) 315 6660 | AK114: Lesiba.Ledwaba@treasury.gov.za | AO114: datafileNAT@treasury.gov.za | AP114: 29193710 | AQ114: 31365882 | AR114: 33404665 | AT114: 19 | AU114: Defence And Military Veterans | AV114: 29193710 | AW114: 31365882 | AX114: 33404665 | DG114: Communications | DH114: Entity Oversight | DI114: 16 | DJ114: 0 | DK114: 1 | DL114: 0 | DM114: 0 | DN114: 0 | DO114: 1 | DP114: 1070 | DQ114: 1 | DR114: 2334 | DS114: 1 | DT114: 2209 | DU114: 1 | DV114: 2335 | DW114: Communications|Entity Oversight | DX114: 003 | DY114: 004 | DZ114: 003004 | EC114: 322 | ED114: 51 | EE114: 2 | EF114: Parliament | EG114: 5 | EH114: Associated Services | EI114: 2 | EJ114: Political Party Support | EK114: Transfers and subsidies | EL114: Non-profit institutions | EM114: Non-profit institutions | EN114: 94791 | EO114: 104242 | EP114: 96630 | EQ114: 96630 | ER114: 96630 | ES114: 102235 | ET114: 107960 | EU114: 113898 | EV114: 0 | EW114: 0 | EX114: 0 | EY114: 107960 | EZ114: 113898 | FA114: 122440 | FB114: Parliament|Associated Services | FC114: 002 | FD114: 005 | FE114: 002 | FF114: 051 | FG114: 002005 | FH114: 002051 | FI114: 51 | FJ114: 002005002051 | FL114: 002005051 | FT114: 6 | FU114: International Relations and Cooperation | FV114: 1 | FW114: Administration | FX114: 6 | FY114: Diplomatic Training, Research and Development
Y115: 10 | AA115: 10 | AB115: 25 | AC115: Economic Development | AF115: Isaac Kurasha | AG115: (012) 315 5213 | AH115: isaac.kurasha@treasury.gov.za | AI115: Millicent Movare | AJ115: (012) 315 5279 | AK115: millicent.movare@treasury.gov.za | AO115: datafileNAT@treasury.gov.za | AP115: 97693 | AQ115: 105020 | AR115: 111846 | AT115: 25 | AU115: Economic Development | AV115: 97693 | AW115: 105020 | AX115: 111846 | DG115: Cooperative Governance And Traditional Affairs | DH115: Administration | DI115: 3 | DJ115: 24 | DK115: 24 | DL115: 0 | DM115: 24 | DN115: 5630 | DO115: 24 | DP115: 6375 | DQ115: 24 | DR115: 3752 | DS115: 24 | DT115: 3955 | DU115: 24 | DV115: 4184 | DW115: Cooperative Governance And Traditional Affairs|Administration | DX115: 004 | DY115: 001 | DZ115: 004001 | EC115: 322 | ED115: 51 | EE115: 2 | EF115: Parliament | EG115: 5 | EH115: Associated Services | EI115: 3 | EJ115: Constituency Support | EK115: Transfers and subsidies | EL115: Non-profit institutions | EM115: Non-profit institutions | EN115: 267417 | EO115: 284421 | EP115: 309360 | EQ115: 309360 | ER115: 309360 | ES115: 327303 | ET115: 345632 | EU115: 364642 | EV115: 0 | EW115: 0 | EX115: 0 | EY115: 345632 | EZ115: 364642 | FA115: 391990 | FB115: Parliament|Associated Services | FC115: 002 | FD115: 005 | FE115: 003 | FF115: 051 | FG115: 002005 | FH115: 002051 | FI115: 51 | FJ115: 002005003051 | FL115: 002005051 | FT115: 6 | FU115: International Relations and Cooperation | FV115: 1 | FW115: Administration | FX115: 7 | FY115: Foreign Fixed Assets Management
Y116: 11 | AA116: 11 | AB116: 26 | AC116: Energy | AF116: Rezah Atcha | AG116: (012) 315 5287 | AH116: Rezah.Atcha@treasury.gov.za | AI116: Nomagugu Madikane | AJ116: (012) 315 5312 | AK116: Nomagugu.Madikane@treasury.gov.za | AO116: datafileNAT@treasury.gov.za | AP116: 384278 | AQ116: 409249 | AR116: 435850 | AT116: 26 | AU116: Energy | AV116: 384278 | AW116: 409249 | AX116: 435850 | DG116: Cooperative Governance And Traditional Affairs | DH116: Administration | DI116: 4 | DJ116: 5 | DK116: 5 | DL116: 0 | DM116: 5 | DN116: 1372 | DO116: 5 | DP116: 1426 | DQ116: 4 | DR116: 852 | DS116: 4 | DT116: 898 | DU116: 4 | DV116: 950 | DW116: Cooperative Governance And Traditional Affairs|Administration | DX116: 004 | DY116: 001 | DZ116: 004001 | EC116: 322 | ED116: 51 | EE116: 2 | EF116: Parliament | EG116: 5 | EH116: Associated Services | EI116: 4 | EJ116: Party Leadership Support | EK116: Transfers and subsidies | EL116: Non-profit institutions | EM116: Non-profit institutions | EN116: 8825 | EO116: 14601 | EP116: 8700 | EQ116: 8700 | ER116: 8700 | ES116: 9205 | ET116: 9720 | EU116: 10255 | EV116: 0 | EW116: 0 | EX116: 0 | EY116: 9720 | EZ116: 10255 | FA116: 11024 | FB116: Parliament|Associated Services | FC116: 002 | FD116: 005 | FE116: 004 | FF116: 051 | FG116: 002005 | FH116: 002051 | FI116: 51 | FJ116: 002005004051 | FL116: 002005051 | FT116: 6 | FU116: International Relations and Cooperation | FV116: 1 | FW116: Administration | FX116: 8 | FY116: Office Accommodation
Y117: 12 | AA117: 12 | AB117: 27 | AC117: Environmental Affairs | AF117: Ashley Ramasimu | AG117: (012) 315 5166 | AH117: Ashley.Ramasimu@treasury.gov.za | AI117: Thabiso Molewa | AJ117: (012) 395 6780 | AK117: Thabiso.Molewa@treasury.gov.za | AO117: datafileNAT@treasury.gov.za | AP117: 1237539 | AQ117: 1333091 | AR117: 1419741 | AT117: 27 | AU117: Environmental Affairs | AV117: 1237539 | AW117: 1333091 | AX117: 1419741 | DG117: Cooperative Governance And Traditional Affairs | DH117: Administration | DI117: 5 | DJ117: 18 | DK117: 18 | DL117: 0 | DM117: 18 | DN117: 5396 | DO117: 18 | DP117: 5612 | DQ117: 18 | DR117: 4210 | DS117: 18 | DT117: 4537 | DU117: 18 | DV117: 4800 | DW117: Cooperative Governance And Traditional Affairs|Administration | DX117: 004 | DY117: 001 | DZ117: 004001 | EC117: 323 | ED117: 1 | EE117: 2 | EF117: Parliament | EG117: 5 | EH117: Associated Services | EI117: 5 | EJ117: National Assembly Members’ Facilities | EK117: Current payments | EL117: Compensation of employees | EM117: Compensation of employees | EN117: 48775 | EO117: 52009 | EP117: 54149 | EQ117: 54149 | ER117: 54149 | ES117: 56386 | ET117: 58452 | EU117: 65105 | EV117: 0 | EW117: 0 | EX117: 0 | EY117: 58452 | EZ117: 65105 | FA117: 69337 | FB117: Parliament|Associated Services | FC117: 002 | FD117: 005 | FE117: 005 | FF117: 001 | FG117: 002005 | FH117: 002001 | FI117: 1 | FJ117: 002005005001 | FL117: 002005001 | FT117: 6 | FU117: International Relations and Cooperation | FV117: 2 | FW117: International Relations | FX117: 1 | FY117: Africa
Y118: 13 | AA118: 13 | AB118: 46 | AC118: Government Communication and Information System | AF118: Rhoda Marais | AG118: (012) 315 5906 | AH118: rhoda.marais@treasury.gov.za | AI118: Deeviya Patel | AJ118: (012) 395 6562 | AK118: deeviya.patel@treasury.gov.za | AO118: datafileNAT@treasury.gov.za | AP118: 273302 | AQ118: 293800 | AR118: 312897 | AT118: 46 | AU118: Government Communication and Information System | AV118: 273302 | AW118: 293800 | AX118: 312897 | DG118: Cooperative Governance And Traditional Affairs | DH118: Administration | DI118: 6 | DJ118: 39 | DK118: 39 | DL118: 0 | DM118: 39 | DN118: 12118 | DO118: 39 | DP118: 12603 | DQ118: 35 | DR118: 11144 | DS118: 35 | DT118: 11746 | DU118: 35 | DV118: 12427 | DW118: Cooperative Governance And Traditional Affairs|Administration | DX118: 004 | DY118: 001 | DZ118: 004001 | EC118: 324 | ED118: 2 | EE118: 2 | EF118: Parliament | EG118: 5 | EH118: Associated Services | EI118: 5 | EJ118: National Assembly Members’ Facilities | EK118: Current payments | EL118: Goods and services | EM118: Goods and services | EN118: 161640 | EO118: 143582 | EP118: 158406 | EQ118: 158406 | ER118: 158406 | ES118: 169692 | ET118: 179193 | EU118: 189049 | EV118: 0 | EW118: 0 | EX118: 0 | EY118: 179193 | EZ118: 189049 | FA118: 199447 | FB118: Parliament|Associated Services | FC118: 002 | FD118: 005 | FE118: 005 | FF118: 002 | FG118: 002005 | FH118: 002002 | FI118: 2 | FJ118: 002005005002 | FL118: 002005002 | FT118: 6 | FU118: International Relations and Cooperation | FV118: 2 | FW118: International Relations | FX118: 2 | FY118: Asia and Middle East
Y119: 14 | AA119: 14 | AB119: 16 | AC119: Health | AF119: Refiloe Thokoa | AG119: (012) 395 6559 | AH119: Refiloe.Thokoa@treasury.gov.za | AI119: Shaneel Ragoo | AJ119: (012) 315 5323 | AK119: Shaneel.Ragoo@treasury.gov.za | AO119: datafileNAT@treasury.gov.za | AP119: 894346 | AQ119: 961422 | AR119: 1023914 | AT119: 16 | AU119: Health | AV119: 894346 | AW119: 961422 | AX119: 1023914 | DG119: Cooperative Governance And Traditional Affairs | DH119: Administration | DI119: 7 | DJ119: 9 | DK119: 9 | DL119: 0 | DM119: 9 | DN119: 3217 | DO119: 9 | DP119: 3554 | DQ119: 13 | DR119: 4457 | DS119: 13 | DT119: 4698 | DU119: 13 | DV119: 4970 | DW119: Cooperative Governance And Traditional Affairs|Administration | DX119: 004 | DY119: 001 | DZ119: 004001 | EC119: 324 | ED119: 2 | EE119: 2 | EF119: Parliament | EG119: 5 | EH119: Associated Services | EI119: 6 | EJ119: National Council of Provinces Members’ Facilities | EK119: Current payments | EL119: Goods and services | EM119: Goods and services | EN119: 32334 | EO119: 19087 | EP119: 32293 | EQ119: 32293 | ER119: 32293 | ES119: 33282 | ET119: 35146 | EU119: 37079 | EV119: 0 | EW119: 0 | EX119: 0 | EY119: 35146 | EZ119: 37079 | FA119: 39118 | FB119: Parliament|Associated Services | FC119: 002 | FD119: 005 | FE119: 006 | FF119: 002 | FG119: 002005 | FH119: 002002 | FI119: 2 | FJ119: 002005006002 | FL119: 002005002 | FT119: 6 | FU119: International Relations and Cooperation | FV119: 2 | FW119: International Relations | FX119: 3 | FY119: Americas and Caribbean
Y120: 15 | AA120: 15 | AB120: 15 | AC120: Higher Education and Training | AF120: Barileng Sape | AG120: (012) 406 9069 | AH120: barileng.sape@treasury.gov.za | AI120: Walter Munyai | AJ120: (012) 315 5636 | AK120: Walter.Munyai@treasury.gov.za | AO120: datafileNAT@treasury.gov.za | AP120: 9637693 | AQ120: 10360520 | AR120: 11033953 | AT120: 15 | AU120: Higher Education and Training | AV120: 9637693 | AW120: 10360520 | AX120: 11033953 | DG120: Cooperative Governance And Traditional Affairs | DH120: Administration | DI120: 8 | DJ120: 16 | DK120: 16 | DL120: 0 | DM120: 16 | DN120: 6614 | DO120: 16 | DP120: 6877 | DQ120: 25 | DR120: 9475 | DS120: 25 | DT120: 9997 | DU120: 25 | DV120: 10577 | DW120: Cooperative Governance And Traditional Affairs|Administration | DX120: 004 | DY120: 001 | DZ120: 004001 | EC120: 332 | ED120: 1 | EE120: 2 | EF120: Parliament | EG120: 16 | EH120: Direct charge against the National Revenue Fund | EI120: 1 | EJ120: Members' Remuneration | EK120: Current payments | EL120: Compensation of employees | EM120: Compensation of employees | EN120: 440296 | EO120: 436488 | EP120: 556288 | EQ120: 556288 | ER120: 556288 | ES120: 493161 | ET120: 633283 | EU120: 599756 | EV120: 0 | EW120: 0 | EX120: 0 | EY120: 633283 | EZ120: 599756 | FA120: 638740 | FB120: Parliament|Direct charge against the National Revenue Fund | FC120: 002 | FD120: 016 | FE120: 001 | FF120: 001 | FG120: 002016 | FH120: 002001 | FI120: 1 | FJ120: 002016001001 | FL120: 002016001 | FT120: 6 | FU120: International Relations and Cooperation | FV120: 2 | FW120: International Relations | FX120: 4 | FY120: Europe
Y121: 16 | AA121: 16 | AB121: 5 | AC121: Home Affairs | AF121: Timothy Murwa | AG121: (012) 315 5002 | AH121: Timothy.Murwa@treasury.gov.za | AI121: Isaac Mabena | AJ121: (012) 315 5582 | AK121: Isaac.Mabena@treasury.gov.za | AO121: datafileNAT@treasury.gov.za | AP121: 3558970 | AQ121: 3825890 | AR121: 4074573 | AT121: 5 | AU121: Home Affairs | AV121: 3558970 | AW121: 3825890 | AX121: 4074573 | DG121: Cooperative Governance And Traditional Affairs | DH121: Administration | DI121: 9 | DJ121: 21 | DK121: 21 | DL121: 0 | DM121: 21 | DN121: 9541 | DO121: 21 | DP121: 9923 | DQ121: 35 | DR121: 13848 | DS121: 35 | DT121: 14696 | DU121: 35 | DV121: 15548 | DW121: Cooperative Governance And Traditional Affairs|Administration | DX121: 004 | DY121: 001 | DZ121: 004001 | EC121: 332 | ED121: 1 | EE121: 3 | EF121: Communications | EG121: 1 | EH121: Administration | EI121: 1 | EJ121: Ministry | EK121: Current payments | EL121: Compensation of employees | EM121: Compensation of employees | EN121: 3882 | EO121: 4211 | EP121: 5631 | EQ121: 4778 | ER121: 4778 | ES121: 6058 | ET121: 6520 | EU121: 7012 | EV121: 0 | EW121: 0 | EX121: 0 | EY121: 6520 | EZ121: 7012 | FA121: 7468 | FB121: Communications|Administration | FC121: 003 | FD121: 001 | FE121: 001 | FF121: 001 | FG121: 003001 | FH121: 003001 | FI121: 1 | FJ121: 003001001001 | FL121: 003001001 | FT121: 6 | FU121: International Relations and Cooperation | FV121: 3 | FW121: International Cooperation | FX121: 1 | FY121: Global System of Governance
Y122: 17 | AA122: 17 | AB122: 38 | AC122: Human Settlements | AF122: James Archer | AG122: (012) 395 6736 | AH122: James.Archer@treasury.gov.za | AI122: Lindiwe Ngcongwane | AJ122: (012) 315 5357 | AK122: Lindiwe.Ngcongwane@treasury.gov.za | AO122: datafileNAT@treasury.gov.za | AP122: 405680 | AQ122: 436107 | AR122: 464454 | AT122: 38 | AU122: Human Settlements | AV122: 405680 | AW122: 436107 | AX122: 464454 | CZ122: =+CQ122&CR122&CS122 ->  | DG122: Cooperative Governance And Traditional Affairs | DH122: Administration | DI122: 10 | DJ122: 0 | DK122: 0 | DL122: 0 | DM122: 0 | DN122: 0 | DO122: 0 | DP122: 0 | DQ122: 2 | DR122: 900 | DS122: 2 | DT122: 949 | DU122: 2 | DV122: 1004 | DW122: Cooperative Governance And Traditional Affairs|Administration | DX122: 004 | DY122: 001 | DZ122: 004001 | EC122: 332 | ED122: 2 | EE122: 3 | EF122: Communications | EG122: 1 | EH122: Administration | EI122: 1 | EJ122: Ministry | EK122: Current payments | EL122: Goods and services | EM122: Goods and services | EN122: 7886 | EO122: 3097 | EP122: 3746 | EQ122: 4057 | ER122: 4057 | ES122: 3959 | ET122: 4180 | EU122: 4382 | EV122: 0 | EW122: 0 | EX122: 0 | EY122: 4180 | EZ122: 4382 | FA122: 4623 | FB122: Communications|Administration | FC122: 003 | FD122: 001 | FE122: 001 | FF122: 002 | FG122: 003001 | FH122: 003002 | FI122: 2 | FJ122: 003001001002 | FL122: 003001002 | FT122: 6 | FU122: International Relations and Cooperation | FV122: 3 | FW122: International Cooperation | FX122: 2 | FY122: Continental Cooperation
Y123: 18 | AA123: 18 | AB123: 20 | AC123: Independent Police Investigative Directorate | AF123: Nompumelelo Radebe | AG123: (012) 315 5957 | AH123: Nompumelelo.Radebe@treasury.gov.za | AI123: Sithabiso Buthelezi | AJ123: (012) 406 9025 | AK123: sithabiso.buthelezi@treasury.gov.za | AO123: datafileNAT@treasury.gov.za | AP123: 228759 | AQ123: 246546 | AR123: 262573 | AT123: 20 | AU123: Independent Police Investigative Directorate | AV123: 228759 | AW123: 246546 | AX123: 262573 | DG123: Cooperative Governance And Traditional Affairs | DH123: Administration | DI123: 11 | DJ123: 46 | DK123: 46 | DL123: 0 | DM123: 46 | DN123: 20897 | DO123: 39 | DP123: 21105 | DQ123: 35 | DR123: 26931 | DS123: 35 | DT123: 28385 | DU123: 35 | DV123: 30031 | DW123: Cooperative Governance And Traditional Affairs|Administration | DX123: 004 | DY123: 001 | DZ123: 004001 | EC123: 333 | ED123: 57 | EE123: 3 | EF123: Communications | EG123: 1 | EH123: Administration | EI123: 1 | EJ123: Ministry | EK123: Payments for capital assets | EL123: Machinery and equipment | EM123: Other machinery and equipment | EN123: 264 | EO123: 1065 | EP123: 0 | EQ123: 35 | ER123: 35 | ES123: 0 | ET123: 0 | EU123: 0 | EV123: 0 | EW123: 0 | EX123: 0 | EY123: 0 | EZ123: 0 | FA123: 0 | FB123: Communications|Administration | FC123: 003 | FD123: 001 | FE123: 001 | FF123: 057 | FG123: 003001 | FH123: 003057 | FI123: 57 | FJ123: 003001001057 | FL123: 003001057 | FT123: 6 | FU123: International Relations and Cooperation | FV123: 3 | FW123: International Cooperation | FX123: 3 | FY123: South-South Cooperation
Y124: 19 | AA124: 19 | AB124: 6 | AC124: International Relations and Cooperation | AF124: Timothy Murwa | AG124: (012) 315 5002 | AH124: Timothy.Murwa@treasury.gov.za | AI124: Gcobisa Magazi | AJ124: (012) 315 5320 | AK124: gcobia.magazi@treasury.gov.za | AO124: datafileNAT@treasury.gov.za | AP124: 2874494 | AQ124: 3090080 | AR124: 3290937 | AT124: 6 | AU124: International Relations and Cooperation | AV124: 2874494 | AW124: 3090080 | AX124: 3290937 | DG124: Cooperative Governance And Traditional Affairs | DH124: Administration | DI124: 12 | DJ124: 5 | DK124: 5 | DL124: 0 | DM124: 5 | DN124: 3106 | DO124: 5 | DP124: 3230 | DQ124: 8 | DR124: 6529 | DS124: 8 | DT124: 6982 | DU124: 8 | DV124: 7387 | DW124: Cooperative Governance And Traditional Affairs|Administration | DX124: 004 | DY124: 001 | DZ124: 004001 | EC124: 333 | ED124: 56 | EE124: 3 | EF124: Communications | EG124: 1 | EH124: Administration | EI124: 1 | EJ124: Ministry | EK124: Payments for capital assets | EL124: Machinery and equipment | EM124: Transport equipment | EN124: 0 | EO124: 0 | EP124: 0 | EQ124: 1505 | ER124: 1505 | ES124: 0 | ET124: 0 | EU124: 0 | EV124: 0 | EW124: 0 | EX124: 0 | EY124: 0 | EZ124: 0 | FA124: 0 | FB124: Communications|Administration | FC124: 003 | FD124: 001 | FE124: 001 | FF124: 056 | FG124: 003001 | FH124: 003056 | FI124: 56 | FJ124: 003001001056 | FL124: 003001056 | FT124: 6 | FU124: International Relations and Cooperation | FV124: 3 | FW124: International Cooperation | FX124: 4 | FY124: North-South Dialogue
Y125: 20 | AA125: 20 | AB125: 21 | AC125: Justice and Constitutional Development | AF125: Werner Krause | AG125: (012) 315 5211 | AH125: werner.krause@treasury.gov.za | AI125: Tshegofatso Mentor | AJ125: (012) 315 5468 | AK125: tshegofatso.mentor@treasury.gov.za | AO125: datafileNAT@treasury.gov.za | AP125: 11868731 | AQ125: 12758064 | AR125: 13587340 | AT125: 21 | AU125: Justice and Constitutional Development | AV125: 11868731 | AW125: 12758064 | AX125: 13587340 | DG125: Cooperative Governance And Traditional Affairs | DH125: Administration | DI125: 13 | DJ125: 29 | DK125: 29 | DL125: 0 | DM125: 29 | DN125: 25290 | DO125: 29 | DP125: 26351 | DQ125: 36 | DR125: 30688 | DS125: 36 | DT125: 32455 | DU125: 36 | DV125: 34337 | DW125: Cooperative Governance And Traditional Affairs|Administration | DX125: 004 | DY125: 001 | DZ125: 004001 | EC125: 333 | ED125: 63 | EE125: 3 | EF125: Communications | EG125: 1 | EH125: Administration | EI125: 1 | EJ125: Ministry | EK125: Payments for financial assets | EL125: Payments for financial assets | EM125: Payments for financial assets | EN125: 0 | EO125: 3 | EP125: 0 | EQ125: 0 | ER125: 0 | ES125: 0 | ET125: 0 | EU125: 0 | EV125: 0 | EW125: 0 | EX125: 0 | EY125: 0 | EZ125: 0 | FA125: 0 | FB125: Communications|Administration | FC125: 003 | FD125: 001 | FE125: 001 | FF125: 063 | FG125: 003001 | FH125: 003063 | FI125: 63 | FJ125: 003001001063 | FL125: 003001063 | FT125: 6 | FU125: International Relations and Cooperation | FV125: 4 | FW125: Public Diplomacy and Protocol Services | FX125: 1 | FY125: Public Diplomacy
Y126: 21 | AA126: 21 | AB126: 28 | AC126: Labour | AF126: Judy Naidoo | AG126: (012) 315 5269 | AH126: Judy.Naidoo@treasury.gov.za | AI126: Kismore Mangondo | AJ126: (012) 315-5773 | AK126: Kismore.Mangondo@treasury.gov.za | AO126: datafileNAT@treasury.gov.za | AP126: 1410207 | AQ126: 1515973 | AR126: 1614510 | AT126: 28 | AU126: Labour | AV126: 1393207 | AW126: 1499473 | AX126: 1598510 | DG126: Cooperative Governance And Traditional Affairs | DH126: Administration | DI126: 14 | DJ126: 11 | DK126: 11 | DL126: 0 | DM126: 11 | DN126: 10710 | DO126: 11 | DP126: 11238 | DQ126: 8 | DR126: 7824 | DS126: 8 | DT126: 8246 | DU126: 8 | DV126: 8724 | DW126: Cooperative Governance And Traditional Affairs|Administration | DX126: 004 | DY126: 001 | DZ126: 004001 | EC126: 334 | ED126: 1 | EE126: 3 | EF126: Communications | EG126: 1 | EH126: Administration | EI126: 2 | EJ126: Departmental Management | EK126: Current payments | EL126: Compensation of employees | EM126: Compensation of employees | EN126: 19257 | EO126: 23626 | EP126: 25092 | EQ126: 23315 | ER126: 17590 | ES126: 22910 | ET126: 20265 | EU126: 20200 | EV126: 0 | EW126: 0 | EX126: 0 | EY126: 20265 | EZ126: 20200 | FA126: 21513 | FB126: Communications|Administration | FC126: 003 | FD126: 001 | FE126: 002 | FF126: 001 | FG126: 003001 | FH126: 003001 | FI126: 1 | FJ126: 003001002001 | FL126: 003001001 | FT126: 6 | FU126: International Relations and Cooperation | FV126: 4 | FW126: Public Diplomacy and Protocol Services | FX126: 2 | FY126: Protocol Services
Y127: 22 | AA127: 22 | AB127: 42 | AC127: Military Veterans | AF127: Mashudu Bidzha | AG127: (012) 315 5344 | AH127: mashudu.bidzha@treasury.gov.za | AI127: Lesiba Ledwaba | AJ127: (012) 315 6660 | AK127: Lesiba.Ledwaba@treasury.gov.za | AO127: datafileNAT@treasury.gov.za | AP127: 131549 | AQ127: 141415 | AR127: 150607 | AT127: 42 | AU127: Military Veterans | AV127: 131549 | AW127: 141415 | AX127: 150607 | DG127: Cooperative Governance And Traditional Affairs | DH127: Administration | DI127: 15 | DJ127: 2 | DK127: 2 | DL127: 0 | DM127: 2 | DN127: 2100 | DO127: 2 | DP127: 2184 | DQ127: 2 | DR127: 2095 | DS127: 2 | DT127: 2218 | DU127: 2 | DV127: 2347 | DW127: Cooperative Governance And Traditional Affairs|Administration | DX127: 004 | DY127: 001 | DZ127: 004001 | EC127: 341 | ED127: 2 | EE127: 3 | EF127: Communications | EG127: 1 | EH127: Administration | EI127: 2 | EJ127: Departmental Management | EK127: Current payments | EL127: Goods and services | EM127: Goods and services | EN127: 9145 | EO127: 7927 | EP127: 5445 | EQ127: 10063 | ER127: 10063 | ES127: 4304 | ET127: 6455 | EU127: 6827 | EV127: 0 | EW127: 0 | EX127: 0 | EY127: 6455 | EZ127: 6827 | FA127: 7202 | FB127: Communications|Administration | FC127: 003 | FD127: 001 | FE127: 002 | FF127: 002 | FG127: 003001 | FH127: 003002 | FI127: 2 | FJ127: 003001002002 | FL127: 003001002 | FT127: 6 | FU127: International Relations and Cooperation | FV127: 5 | FW127: International Transfers | FX127: 1 | FY127: Departmental agencies
Y128: 23 | AA128: 23 | AB128: 29 | AC128: Mineral Resources | AF128: Bothwell Deka | AG128: (012) 395 6784 | AH128: Bothwell.Deka@treasury.gov.za | AI128: Nico Likhethe | AJ128: (012) 315 5558 | AK128: Nico.Likhethe@treasury.gov.za | AO128: datafileNAT@treasury.gov.za | AP128: 665178 | AQ128: 715604 | AR128: 762119 | AT128: 29 | AU128: Mineral Resources | AV128: 665178 | AW128: 715604 | AX128: 762119 | DG128: Cooperative Governance And Traditional Affairs | DH128: Administration | DI128: 16 | DJ128: 2 | DK128: 2 | DL128: 0 | DM128: 2 | DN128: 4296 | DO128: 2 | DP128: 4410 | DQ128: 3 | DR128: 6800 | DS128: 3 | DT128: 7254 | DU128: 3 | DV128: 7677 | DW128: Cooperative Governance And Traditional Affairs|Administration | DX128: 004 | DY128: 001 | DZ128: 004001 | EC128: 341 | ED128: 57 | EE128: 3 | EF128: Communications | EG128: 1 | EH128: Administration | EI128: 2 | EJ128: Departmental Management | EK128: Payments for capital assets | EL128: Machinery and equipment | EM128: Other machinery and equipment | EN128: 274 | EO128: 58 | EP128: 0 | EQ128: 41 | ER128: 41 | ES128: 0 | ET128: 0 | EU128: 0 | EV128: 0 | EW128: 0 | EX128: 0 | EY128: 0 | EZ128: 0 | FA128: 0 | FB128: Communications|Administration | FC128: 003 | FD128: 001 | FE128: 002 | FF128: 057 | FG128: 003001 | FH128: 003057 | FI128: 57 | FJ128: 003001002057 | FL128: 003001057 | FT128: 6 | FU128: International Relations and Cooperation | FV128: 5 | FW128: International Transfers | FX128: 2 | FY128: Membership contribution
Y129: 24 | AA129: 24 | AB129: 44 | AC129: National School of Government | AF129: George Tembo | AG129: (012) 315 5514 | AH129: George.Tembo@treasury.gov.za | AI129: Mokgatla Tema | AJ129: (012) 315 5948 | AK129: Mokgatla.Tema@treasury.gov.za | AO129: datafileNAT@treasury.gov.za | AP129: 58416 | AQ129: 62797 | AR129: 66879 | AT129: 44 | AU129: National School of Government | AV129: 58416 | AW129: 62797 | AX129: 66879 | DG129: Cooperative Governance And Traditional Affairs | DH129: Regional and Urban Development and Legislative Support | DI129: 5 | DJ129: 1 | DK129: 1 | DL129: 0 | DM129: 1 | DN129: 184 | DO129: 1 | DP129: 194 | DQ129: 2 | DR129: 294 | DS129: 2 | DT129: 311 | DU129: 2 | DV129: 329 | DW129: Cooperative Governance And Traditional Affairs|Regional and Urban Development and Legislative Support | DX129: 004 | DY129: 002 | DZ129: 004002 | EC129: 341 | ED129: 52 | EE129: 3 | EF129: Communications | EG129: 1 | EH129: Administration | EI129: 2 | EJ129: Departmental Management | EK129: Transfers and subsidies | EL129: Households | EM129: Social benefits | EN129: 49 | EO129: 0 | EP129: 0 | EQ129: 589 | ER129: 589 | ES129: 0 | ET129: 0 | EU129: 0 | EV129: 0 | EW129: 0 | EX129: 0 | EY129: 0 | EZ129: 0 | FA129: 0 | FB129: Communications|Administration | FC129: 003 | FD129: 001 | FE129: 002 | FF129: 052 | FG129: 003001 | FH129: 003052 | FI129: 52 | FJ129: 003001002052 | FL129: 003001052 | FT129: 7 | FU129: National Treasury | FV129: 1 | FW129: Administration | FX129: 1 | FY129: Ministry
Y130: 25 | AA130: 25 | AB130: 7 | AC130: National Treasury | AF130: Rhoda Marais | AG130: (012) 315 5906 | AH130: rhoda.marais@treasury.gov.za | AI130: Deeviya Patel | AJ130: (012) 395 6562 | AK130: deeviya.patel@treasury.gov.za | AO130: datafileNAT@treasury.gov.za | AP130: 869339 | AQ130: 934540 | AR130: 995285 | AT130: 7 | AU130: National Treasury | AV130: 869339 | AW130: 934540 | AX130: 995285 | DG130: Cooperative Governance And Traditional Affairs | DH130: Regional and Urban Development and Legislative Support | DI130: 6 | DJ130: 4 | DK130: 4 | DL130: 0 | DM130: 4 | DN130: 976 | DO130: 4 | DP130: 1036 | DQ130: 8 | DR130: 1344 | DS130: 8 | DT130: 1422 | DU130: 8 | DV130: 1504 | DW130: Cooperative Governance And Traditional Affairs|Regional and Urban Development and Legislative Support | DX130: 004 | DY130: 002 | DZ130: 004002 | EC130: 342 | ED130: 1 | EE130: 3 | EF130: Communications | EG130: 1 | EH130: Administration | EI130: 3 | EJ130: Internal Audit | EK130: Current payments | EL130: Compensation of employees | EM130: Compensation of employees | EN130: 0 | EO130: 0 | EP130: 0 | EQ130: 0 | ER130: 0 | ES130: 0 | ET130: 1566 | EU130: 1683 | EV130: 0 | EW130: 0 | EX130: 0 | EY130: 1566 | EZ130: 1683 | FA130: 1792 | FB130: Communications|Administration | FC130: 003 | FD130: 001 | FE130: 003 | FF130: 001 | FG130: 003001 | FH130: 003001 | FI130: 1 | FJ130: 003001003001 | FL130: 003001001 | FT130: 7 | FU130: National Treasury | FV130: 1 | FW130: Administration | FX130: 2 | FY130: Departmental Management
Y131: 26 | AA131: 26 | AB131: 22 | AC131: Office of the Chief Justice and Judicial Administration | AF131: Elvis Ramafamba | AG131: (012) 315 5204 | AH131: elvis.ramafamba@treasury.gov.za | AI131: Keabetswe Matlwa | AJ131: (012) 315 6657 | AK131: Keabetswe.Matlwa@treasury.gov.za | AO131: datafileNAT@treasury.gov.za | AP131: 1747361 | AQ131: 1856990 | AR131: 1977695 | AT131: 22 | AU131: Office of the Chief Justice and Judicial Administration | AV131: 1755428 | AW131: 1865703 | AX131: 1987106 | CY131: =+CQ131&CR131&CS131&CT131&CU131 ->  | DG131: Cooperative Governance And Traditional Affairs | DH131: Regional and Urban Development and Legislative Support | DI131: 7 | DJ131: 1 | DK131: 1 | DL131: 0 | DM131: 1 | DN131: 307 | DO131: 1 | DP131: 344 | DQ131: 1 | DR131: 218 | DS131: 1 | DT131: 231 | DU131: 1 | DV131: 244 | DW131: Cooperative Governance And Traditional Affairs|Regional and Urban Development and Legislative Support | DX131: 004 | DY131: 002 | DZ131: 004002 | EC131: 342 | ED131: 2 | EE131: 3 | EF131: Communications | EG131: 1 | EH131: Administration | EI131: 3 | EJ131: Internal Audit | EK131: Current payments | EL131: Goods and services | EM131: Goods and services | EN131: 0 | EO131: 848 | EP131: 787 | EQ131: 967 | ER131: 967 | ES131: 832 | ET131: 879 | EU131: 927 | EV131: 0 | EW131: 0 | EX131: 0 | EY131: 879 | EZ131: 927 | FA131: 978 | FB131: Communications|Administration | FC131: 003 | FD131: 001 | FE131: 003 | FF131: 002 | FG131: 003001 | FH131: 003002 | FI131: 2 | FJ131: 003001003002 | FL131: 003001002 | FT131: 7 | FU131: National Treasury | FV131: 1 | FW131: Administration | FX131: 3 | FY131: Corporate Services
Y132: 27 | AA132: 27 | AB132: 2 | AC132: Parliament | AF132: Timothy Murwa | AG132: (012) 315 5002 | AH132: Timothy.Murwa@treasury.gov.za | AI132: Isaac Mabena | AJ132: (012) 315 5582 | AK132: Isaac.Mabena@treasury.gov.za | AO132: datafileNAT@treasury.gov.za | AP132: 1494020 | AQ132: 1605987 | AR132: 1710377 | AT132: 2 | AU132: Parliament | AV132: 1494020 | AW132: 1605987 | AX132: 1710377 | CZ132: =+CQ132&CR132&CS132 ->  | DA132: =+CQ132&CR132&CS132&CU132 ->  | DG132: Cooperative Governance And Traditional Affairs | DH132: Regional and Urban Development and Legislative Support | DI132: 8 | DJ132: 3 | DK132: 3 | DL132: 0 | DM132: 3 | DN132: 1068 | DO132: 3 | DP132: 1196 | DQ132: 3 | DR132: 780 | DS132: 3 | DT132: 825 | DU132: 3 | DV132: 873 | DW132: Cooperative Governance And Traditional Affairs|Regional and Urban Development and Legislative Support | DX132: 004 | DY132: 002 | DZ132: 004002 | EC132: 342 | ED132: 57 | EE132: 3 | EF132: Communications | EG132: 1 | EH132: Administration | EI132: 3 | EJ132: Internal Audit | EK132: Payments for capital assets | EL132: Machinery and equipment | EM132: Other machinery and equipment | EN132: 0 | EO132: 6 | EP132: 0 | EQ132: 0 | ER132: 0 | ES132: 0 | ET132: 0 | EU132: 0 | EV132: 0 | EW132: 0 | EX132: 0 | EY132: 0 | EZ132: 0 | FA132: 0 | FB132: Communications|Administration | FC132: 003 | FD132: 001 | FE132: 003 | FF132: 057 | FG132: 003001 | FH132: 003057 | FI132: 57 | FJ132: 003001003057 | FL132: 003001057 | FT132: 7 | FU132: National Treasury | FV132: 1 | FW132: Administration | FX132: 4 | FY132: Enterprise Wide Risk Management
Y133: 28 | AA133: 28 | AB133: 8 | AC133: Planning, Monitoring and Evaluation | AF133: Timothy Murwa | AG133: (012) 315 5002 | AH133: Timothy.Murwa@treasury.gov.za | AI133: Gcobisa Magazi | AJ133: (012) 315 5320 | AK133: gcobia.magazi@treasury.gov.za | AO133: datafileNAT@treasury.gov.za | AP133: 331556 | AQ133: 356423 | AR133: 376132 | AT133: 8 | AU133: Planning, Monitoring and Evaluation | AV133: 341644 | AW133: 365191 | AX133: 387954 | DG133: Cooperative Governance And Traditional Affairs | DH133: Regional and Urban Development and Legislative Support | DI133: 9 | DJ133: 1 | DK133: 1 | DL133: 0 | DM133: 1 | DN133: 364 | DO133: 1 | DP133: 408 | DQ133: 3 | DR133: 1203 | DS133: 3 | DT133: 1273 | DU133: 3 | DV133: 1347 | DW133: Cooperative Governance And Traditional Affairs|Regional and Urban Development and Legislative Support | DX133: 004 | DY133: 002 | DZ133: 004002 | EC133: 342 | ED133: =+INDEX(($FS$4:$FS$27),MATCH(EM133,$GB$4:$GB$27,0)) -> 1 | EE133: 3 | EF133: Communications | EG133: 1 | EH133: Administration | EI133: 4 | EJ133: Corporate Services | EK133: Current payments | EL133: Compensation of employees | EM133: Compensation of employees | EN133: 3881 | EO133: 8705 | EP133: 9802 | EQ133: 9190 | ER133: 9190 | ES133: 10496 | ET133: 11548 | EU133: 12415 | EV133: 0 | EW133: 0 | EX133: 0 | EY133: =+ET133+EW133 -> 11548 | EZ133: =+EU133+EX133 -> 12415 | FA133: 13222 | FB133: =+EF133&"|"&EH133 -> Communications|Administration | FC133: =REPT("0",3-LEN(EE133))&EE133 -> 003 | FD133: =REPT("0",3-LEN(EG133))&EG133 -> 001 | FE133: =REPT("0",3-LEN(EI133))&EI133 -> 004 | FF133: =REPT("0",3-LEN(ED133))&ED133 -> 001 | FG133: =+FC133&FD133 -> 003001 | FH133: =+FC133&FF133 -> 003001 | FI133: =+FF133*1 -> 1 | FJ133: =FG133&FE133&REPT("0",3-LEN(FI133))&FI133 -> 003001004001 | FL133: =LEFT(FJ133,6)&FF133 -> 003001001 | FT133: 7 | FU133: National Treasury | FV133: 1 | FW133: Administration | FX133: 5 | FY133: Financial Administration
Y134: 29 | AA134: 29 | AB134: 23 | AC134: Police | AF134: Nompumelelo Radebe | AG134: (012) 315 5957 | AH134: Nompumelelo.Radebe@treasury.gov.za | AI134: Sithabiso Buthelezi | AJ134: (012) 406 9025 | AK134: sithabiso.buthelezi@treasury.gov.za | AO134: datafileNAT@treasury.gov.za | AP134: 76357717 | AQ134: 81883243 | AR134: 87205655 | AT134: 23 | AU134: Police | AV134: 76357717 | AW134: 81883243 | AX134: 87205655 | DG134: Cooperative Governance And Traditional Affairs | DH134: Regional and Urban Development and Legislative Support | DI134: 11 | DJ134: 2 | DK134: 2 | DL134: 0 | DM134: 2 | DN134: 1300 | DO134: 2 | DP134: 1456 | DQ134: 7 | DR134: 4228 | DS134: 7 | DT134: 4473 | DU134: 7 | DV134: 4733 | DW134: Cooperative Governance And Traditional Affairs|Regional and Urban Development and Legislative Support | DX134: 004 | DY134: 002 | DZ134: 004002 | EC134: 342 | ED134: 2 | EE134: 3 | EF134: Communications | EG134: 1 | EH134: Administration | EI134: 4 | EJ134: Corporate Services | EK134: Current payments | EL134: Goods and services | EM134: Goods and services | EN134: 706 | EO134: 1082 | EP134: 2047 | EQ134: 2778 | ER134: 2778 | ES134: 5186 | ET134: 5685 | EU134: 6072 | EV134: 0 | EW134: 0 | EX134: 0 | EY134: 5685 | EZ134: 6072 | FA134: 6406 | FB134: Communications|Administration | FC134: 003 | FD134: 001 | FE134: 004 | FF134: 002 | FG134: 003001 | FH134: 003002 | FI134: 2 | FJ134: 003001004002 | FL134: 003001002 | FT134: 7 | FU134: National Treasury | FV134: 1 | FW134: Administration | FX134: 6 | FY134: Legal Services
Y135: 30 | AA135: 30 | AB135: 9 | AC135: Public Enterprises | AF135: Isaac Kurasha | AG135: (012) 315 5213 | AH135: isaac.kurasha@treasury.gov.za | AI135: Millicent Movare | AJ135: (012) 315 5279 | AK135: millicent.movare@treasury.gov.za | AO135: datafileNAT@treasury.gov.za | AP135: 184514 | AQ135: 198312 | AR135: 211203 | AT135: 9 | AU135: Public Enterprises | AV135: 184514 | AW135: 198312 | AX135: 211203 | DG135: Cooperative Governance And Traditional Affairs | DH135: Regional and Urban Development and Legislative Support | DI135: 12 | DJ135: 0 | DK135: 0 | DL135: 0 | DM135: 0 | DN135: 0 | DO135: 0 | DP135: 0 | DQ135: 2 | DR135: 1590 | DS135: 2 | DT135: 1682 | DU135: 2 | DV135: 1830 | DW135: Cooperative Governance And Traditional Affairs|Regional and Urban Development and Legislative Support | DX135: 004 | DY135: 002 | DZ135: 004002 | EC135: 343 | ED135: 57 | EE135: 3 | EF135: Communications | EG135: 1 | EH135: Administration | EI135: 4 | EJ135: Corporate Services | EK135: Payments for capital assets | EL135: Machinery and equipment | EM135: Other machinery and equipment | EN135: 294 | EO135: 103 | EP135: 0 | EQ135: 18 | ER135: 18 | ES135: 0 | ET135: 0 | EU135: 0 | EV135: 0 | EW135: 0 | EX135: 0 | EY135: 0 | EZ135: 0 | FA135: 0 | FB135: Communications|Administration | FC135: 003 | FD135: 001 | FE135: 004 | FF135: 057 | FG135: 003001 | FH135: 003057 | FI135: 57 | FJ135: 003001004057 | FL135: 003001057 | FT135: 7 | FU135: National Treasury | FV135: 1 | FW135: Administration | FX135: 7 | FY135: Internal Audit
Y136: 31 | AA136: 31 | AB136: 10 | AC136: Public Service and Administration | AF136: George Tembo | AG136: (012) 315 5514 | AH136: George.Tembo@treasury.gov.za | AI136: Mokgatla Tema | AJ136: (012) 315 5948 | AK136: Mokgatla.Tema@treasury.gov.za | AO136: datafileNAT@treasury.gov.za | AP136: 310413 | AQ136: 333716 | AR136: 355406 | AT136: 10 | AU136: Public Service and Administration | AV136: 311872 | AW136: 335714 | AX136: 362866 | DG136: Cooperative Governance And Traditional Affairs | DH136: Regional and Urban Development and Legislative Support | DI136: 13 | DJ136: 9 | DK136: 9 | DL136: 0 | DM136: 9 | DN136: 7209 | DO136: 9 | DP136: 8074 | DQ136: 9 | DR136: 7893 | DS136: 9 | DT136: 8351 | DU136: 9 | DV136: 8835 | DW136: Cooperative Governance And Traditional Affairs|Regional and Urban Development and Legislative Support | DX136: 004 | DY136: 002 | DZ136: 004002 | EC136: 343 | ED136: 63 | EE136: 3 | EF136: Communications | EG136: 1 | EH136: Administration | EI136: 4 | EJ136: Corporate Services | EK136: Payments for financial assets | EL136: Payments for financial assets | EM136: Payments for financial assets | EN136: 0 | EO136: 13 | EP136: 0 | EQ136: 0 | ER136: 0 | ES136: 0 | ET136: 0 | EU136: 0 | EV136: 0 | EW136: 0 | EX136: 0 | EY136: 0 | EZ136: 0 | FA136: 0 | FB136: Communications|Administration | FC136: 003 | FD136: 001 | FE136: 004 | FF136: 063 | FG136: 003001 | FH136: 003063 | FI136: 63 | FJ136: 003001004063 | FL136: 003001063 | FT136: 7 | FU136: National Treasury | FV136: 1 | FW136: Administration | FX136: 8 | FY136: Communications
Y137: 32 | AA137: 32 | AB137: 45 | AC137: Public Service Commission | AF137: George Tembo | AG137: (012) 315 5514 | AH137: George.Tembo@treasury.gov.za | AI137: Viwe Sobudula | AJ137: (0)12 315 5015 | AK137: Viwe.Sobudula@treasury.gov.za | AO137: datafileNAT@treasury.gov.za | AP137: 217343 | AQ137: 233640 | AR137: 248826 | AT137: 45 | AU137: Public Service Commission | AV137: 212866 | AW137: 228872 | AX137: 243748 | DG137: Cooperative Governance And Traditional Affairs | DH137: Regional and Urban Development and Legislative Support | DI137: 14 | DJ137: 7 | DK137: 7 | DL137: 0 | DM137: 7 | DN137: 6580 | DO137: 7 | DP137: 7370 | DQ137: 5 | DR137: 4385 | DS137: 5 | DT137: 4639 | DU137: 5 | DV137: 5019 | DW137: Cooperative Governance And Traditional Affairs|Regional and Urban Development and Legislative Support | DX137: 004 | DY137: 002 | DZ137: 004002 | EC137: 343 | ED137: 1 | EE137: 3 | EF137: Communications | EG137: 1 | EH137: Administration | EI137: 5 | EJ137: Financial Management | EK137: Current payments | EL137: Compensation of employees | EM137: Compensation of employees | EN137: 2317 | EO137: 6101 | EP137: 9677 | EQ137: 9363 | ER137: 8458 | ES137: 10412 | ET137: 13100 | EU137: 14083 | EV137: 0 | EW137: 0 | EX137: 0 | EY137: 13100 | EZ137: 14083 | FA137: 14998 | FB137: Communications|Administration | FC137: 003 | FD137: 001 | FE137: 005 | FF137: 001 | FG137: 003001 | FH137: 003001 | FI137: 1 | FJ137: 003001005001 | FL137: 003001001 | FT137: 7 | FU137: National Treasury | FV137: 1 | FW137: Administration | FX137: 9 | FY137: Office Accommodation
Y138: 33 | AA138: 33 | AB138: 11 | AC138: Public Works | AF138: George Tembo | AG138: (012) 315 5514 | AH138: George.Tembo@treasury.gov.za | AI138: Mercy Mhlophe | AJ138: (012) 315 5598 | AK138: mercy.mhlope@treasury.gov.za | AO138: datafileNAT@treasury.gov.za | AP138: 557826 | AQ138: 599662 | AR138: 638641 | AT138: 11 | AU138: Public Works | AV138: 557826 | AW138: 599662 | AX138: 638641 | DG138: Cooperative Governance And Traditional Affairs | DH138: Regional and Urban Development and Legislative Support | DI138: 15 | DJ138: 2 | DK138: 2 | DL138: 0 | DM138: 2 | DN138: 1987 | DO138: 2 | DP138: 2880 | DQ138: 1 | DR138: 1390 | DS138: 1 | DT138: 1471 | DU138: 1 | DV138: 1559 | DW138: Cooperative Governance And Traditional Affairs|Regional and Urban Development and Legislative Support | DX138: 004 | DY138: 002 | DZ138: 004002 | EC138: 343 | ED138: 2 | EE138: 3 | EF138: Communications | EG138: 1 | EH138: Administration | EI138: 5 | EJ138: Financial Management | EK138: Current payments | EL138: Goods and services | EM138: Goods and services | EN138: 251 | EO138: 371 | EP138: 544 | EQ138: 686 | ER138: 686 | ES138: 480 | ET138: 586 | EU138: 620 | EV138: 0 | EW138: 0 | EX138: 0 | EY138: 586 | EZ138: 620 | FA138: 654 | FB138: Communications|Administration | FC138: 003 | FD138: 001 | FE138: 005 | FF138: 002 | FG138: 003001 | FH138: 003002 | FI138: 2 | FJ138: 003001005002 | FL138: 003001002 | FT138: 7 | FU138: National Treasury | FV138: 2 | FW138: Economic Policy, Tax, Financial Regulation and Research | FX138: 1 | FY138: Programme Management for Economic Policy, Tax, Financial Regulation and Research
Y139: 34 | AA139: 34 | AB139: 39 | AC139: Rural Development and Land Reform | AF139: Bothwell Deka | AG139: (012) 395 6784 | AH139: Bothwell.Deka@treasury.gov.za | AI139: Nico Likhethe | AJ139: (012) 315 5558 | AK139: Nico.Likhethe@treasury.gov.za | AO139: datafileNAT@treasury.gov.za | AP139: 2502879 | AQ139: 2690594 | AR139: 2865485 | AT139: 39 | AU139: Rural Development and Land Reform | AV139: 2501042 | AW139: 2688383 | AX139: 2853670 | DG139: Cooperative Governance And Traditional Affairs | DH139: Institutional Development | DI139: 5 | DJ139: 0 | DK139: 0 | DL139: 0 | DM139: 0 | DN139: 0 | DO139: 0 | DP139: 0 | DQ139: 1 | DR139: 147 | DS139: 1 | DT139: 156 | DU139: 1 | DV139: 0 | DW139: Cooperative Governance And Traditional Affairs|Institutional Development | DX139: 004 | DY139: 003 | DZ139: 004003 | EC139: 344 | ED139: 57 | EE139: 3 | EF139: Communications | EG139: 1 | EH139: Administration | EI139: 5 | EJ139: Financial Management | EK139: Payments for capital assets | EL139: Machinery and equipment | EM139: Other machinery and equipment | EN139: 0 | EO139: 39 | EP139: 0 | EQ139: 0 | ER139: 0 | ES139: 0 | ET139: 0 | EU139: 0 | EV139: 0 | EW139: 0 | EX139: 0 | EY139: 0 | EZ139: 0 | FA139: 0 | FB139: Communications|Administration | FC139: 003 | FD139: 001 | FE139: 005 | FF139: 057 | FG139: 003001 | FH139: 003057 | FI139: 57 | FJ139: 003001005057 | FL139: 003001057 | FT139: 7 | FU139: National Treasury | FV139: 2 | FW139: Economic Policy, Tax, Financial Regulation and Research | FX139: 2 | FY139: Research
Y140: 35 | AA140: 35 | AB140: 30 | AC140: Science and Technology | AF140: Ashley Ramasimu | AG140: (012) 315 5166 | AH140: Ashley.Ramasimu@treasury.gov.za | AI140: Thabiso Molewa | AJ140: (012) 395 6780 | AK140: Thabiso.Molewa@treasury.gov.za | AO140: datafileNAT@treasury.gov.za | AP140: 380466 | AQ140: 408444 | AR140: 434993 | AT140: 30 | AU140: Science and Technology | AV140: 380466 | AW140: 408444 | AX140: 434993 | DG140: Cooperative Governance And Traditional Affairs | DH140: Institutional Development | DI140: 6 | DJ140: 10 | DK140: 10 | DL140: 0 | DM140: 10 | DN140: 1580 | DO140: 10 | DP140: 1832 | DQ140: 18 | DR140: 3024 | DS140: 18 | DT140: 3199 | DU140: 18 | DV140: 3385 | DW140: Cooperative Governance And Traditional Affairs|Institutional Development | DX140: 004 | DY140: 003 | DZ140: 004003 | EC140: 344 | ED140: 1 | EE140: 3 | EF140: Communications | EG140: 2 | EH140: Communications Policy, Research and Development | EI140: 2 | EJ140: Broadcasting Policy | EK140: Current payments | EL140: Compensation of employees | EM140: Compensation of employees | EN140: 3763 | EO140: 4766 | EP140: 5029 | EQ140: 4115 | ER140: 4115 | ES140: 6216 | ET140: 9133 | EU140: 10206 | EV140: 0 | EW140: 0 | EX140: 0 | EY140: 9133 | EZ140: 10206 | FA140: 10869 | FB140: Communications|Communications Policy, Research and Development | FC140: 003 | FD140: 002 | FE140: 002 | FF140: 001 | FG140: 003002 | FH140: 003001 | FI140: 1 | FJ140: 003002002001 | FL140: 003002001 | FT140: 7 | FU140: National Treasury | FV140: 2 | FW140: Economic Policy, Tax, Financial Regulation and Research | FX140: 3 | FY140: Financial Sector Policy
Y141: 36 | AA141: 36 | AB141: 31 | AC141: Small Business Development | AF141: Isaac Kurasha | AG141: (012) 315 5213 | AH141: isaac.kurasha@treasury.gov.za | AI141: Rudzani Sikhwari | AJ141: (012) 315 5823 | AK141: rudzani.sikhwari@treasury.gov.za | AO141: datafileNAT@treasury.gov.za | AP141: 151808 | AQ141: 163297 | AR141: 173911 | AT141: 31 | AU141: Small Business Development | AV141: 151808 | AW141: 163297 | AX141: 173911 | DG141: Cooperative Governance And Traditional Affairs | DH141: Institutional Development | DI141: 7 | DJ141: 3 | DK141: 3 | DL141: 0 | DM141: 3 | DN141: 653 | DO141: 3 | DP141: 757 | DQ141: 2 | DR141: 436 | DS141: 2 | DT141: 461 | DU141: 2 | DV141: 488 | DW141: Cooperative Governance And Traditional Affairs|Institutional Development | DX141: 004 | DY141: 003 | DZ141: 004003 | EC141: 344 | ED141: 2 | EE141: 3 | EF141: Communications | EG141: 2 | EH141: Communications Policy, Research and Development | EI141: 2 | EJ141: Broadcasting Policy | EK141: Current payments | EL141: Goods and services | EM141: Goods and services | EN141: 506 | EO141: 1472 | EP141: 1773 | EQ141: 1402 | ER141: 1402 | ES141: 2858 | ET141: 2959 | EU141: 3673 | EV141: 0 | EW141: 0 | EX141: 0 | EY141: 2959 | EZ141: 3673 | FA141: 3875 | FB141: Communications|Communications Policy, Research and Development | FC141: 003 | FD141: 002 | FE141: 002 | FF141: 002 | FG141: 003002 | FH141: 003002 | FI141: 2 | FJ141: 003002002002 | FL141: 003002002 | FT141: 7 | FU141: National Treasury | FV141: 2 | FW141: Economic Policy, Tax, Financial Regulation and Research | FX141: 4 | FY141: Tax Policy
Y142: 37 | AA142: 37 | AB142: 17 | AC142: Social Development | AF142: Pebetse Maleka | AG142: (012) 315 5566 | AH142: pebetse.maleka@treasury.gov.za | AI142: Lindi Mzankomo | AJ142: (012) 315 5256 | AK142: Lindi.Mzankomo@treasury.gov.za | AO142: datafileNAT@treasury.gov.za | AP142: 527441 | AQ142: 567001 | AR142: 603852 | AT142: 17 | AU142: Social Development | AV142: 527441 | AW142: 567001 | AX142: 603852 | DG142: Cooperative Governance And Traditional Affairs | DH142: Institutional Development | DI142: 8 | DJ142: 4 | DK142: 4 | DL142: 0 | DM142: 4 | DN142: 1176 | DO142: 4 | DP142: 1364 | DQ142: 3 | DR142: 780 | DS142: 3 | DT142: 825 | DU142: 3 | DV142: 873 | DW142: Cooperative Governance And Traditional Affairs|Institutional Development | DX142: 004 | DY142: 003 | DZ142: 004003 | EC142: 344 | ED142: 57 | EE142: 3 | EF142: Communications | EG142: 2 | EH142: Communications Policy, Research and Development | EI142: 2 | EJ142: Broadcasting Policy | EK142: Payments for capital assets | EL142: Machinery and equipment | EM142: Other machinery and equipment | EN142: 614 | EO142: 25 | EP142: 0 | EQ142: 0 | ER142: 0 | ES142: 0 | ET142: 0 | EU142: 0 | EV142: 0 | EW142: 0 | EX142: 0 | EY142: 0 | EZ142: 0 | FA142: 0 | FB142: Communications|Communications Policy, Research and Development | FC142: 003 | FD142: 002 | FE142: 002 | FF142: 057 | FG142: 003002 | FH142: 003057 | FI142: 57 | FJ142: 003002002057 | FL142: 003002057 | FT142: 7 | FU142: National Treasury | FV142: 2 | FW142: Economic Policy, Tax, Financial Regulation and Research | FX142: 5 | FY142: Economic Policy
Y143: 38 | AA143: 38 | AB143: 40 | AC143: Sport and Recreation South Africa | AF143: Spencer Janari | AG143: (012) 315 5436 | AH143: Spencer.Janari@treasury.gov.za | AI143: Mabele Mdhluli | AJ143: (012) 395 6775 | AK143: Mabele.Mdhluli@treasury.gov.za | AO143: datafileNAT@treasury.gov.za | AP143: 120058 | AQ143: 129064 | AR143: 137452 | AT143: 40 | AU143: Sport and Recreation South Africa | AV143: 120058 | AW143: 129064 | AX143: 137452 | DG143: Cooperative Governance And Traditional Affairs | DH143: Institutional Development | DI143: 9 | DJ143: 3 | DK143: 3 | DL143: 0 | DM143: 3 | DN143: 1170 | DO143: 3 | DP143: 1357 | DQ143: 4 | DR143: 1680 | DS143: 4 | DT143: 1777 | DU143: 4 | DV143: 1880 | DW143: Cooperative Governance And Traditional Affairs|Institutional Development | DX143: 004 | DY143: 003 | DZ143: 004003 | EC143: 411 | ED143: 52 | EE143: 3 | EF143: Communications | EG143: 2 | EH143: Communications Policy, Research and Development | EI143: 2 | EJ143: Broadcasting Policy | EK143: Transfers and subsidies | EL143: Households | EM143: Social benefits | EN143: 0 | EO143: 61 | EP143: 0 | EQ143: 0 | ER143: 0 | ES143: 0 | ET143: 0 | EU143: 0 | EV143: 0 | EW143: 0 | EX143: 0 | EY143: 0 | EZ143: 0 | FA143: 0 | FB143: Communications|Communications Policy, Research and Development | FC143: 003 | FD143: 002 | FE143: 002 | FF143: 052 | FG143: 003002 | FH143: 003052 | FI143: 52 | FJ143: 003002002052 | FL143: 003002052 | FT143: 7 | FU143: National Treasury | FV143: 2 | FW143: Economic Policy, Tax, Financial Regulation and Research | FX143: 6 | FY143: Cooperative Banks Development Agency
Y144: 39 | AA144: 39 | AB144: 12 | AC144: Statistics South Africa | AF144: Rhoda Marais | AG144: (012) 315 5906 | AH144: rhoda.marais@treasury.gov.za | AI144: Deeviya Patel | AJ144: (012) 395 6562 | AK144: deeviya.patel@treasury.gov.za | AO144: datafileNAT@treasury.gov.za | AP144: 1460101 | AQ144: 1575928 | AR144: 1678367 | AT144: 12 | AU144: Statistics South Africa | AV144: 1460101 | AW144: 1575928 | AX144: 1700420 | DG144: Cooperative Governance And Traditional Affairs | DH144: Institutional Development | DI144: 11 | DJ144: 32 | DK144: 32 | DL144: 0 | DM144: 32 | DN144: 13300 | DO144: 32 | DP144: 16869 | DQ144: 27 | DR144: 16308 | DS144: 27 | DT144: 17254 | DU144: 27 | DV144: 18255 | DW144: Cooperative Governance And Traditional Affairs|Institutional Development | DX144: 004 | DY144: 003 | DZ144: 004003 | EC144: 411 | ED144: 2 | EE144: 3 | EF144: Communications | EG144: 2 | EH144: Communications Policy, Research and Development | EI144: 3 | EJ144: Media Policy | EK144: Current payments | EL144: Goods and services | EM144: Goods and services | EN144: 0 | EO144: 0 | EP144: 158 | EQ144: 0 | ER144: 0 | ES144: 0 | ET144: 0 | EU144: 0 | EV144: 0 | EW144: 0 | EX144: 0 | EY144: 0 | EZ144: 0 | FA144: 0 | FB144: Communications|Communications Policy, Research and Development | FC144: 003 | FD144: 002 | FE144: 003 | FF144: 002 | FG144: 003002 | FH144: 003002 | FI144: 2 | FJ144: 003002003002 | FL144: 003002002 | FT144: 7 | FU144: National Treasury | FV144: 3 | FW144: Public Finance and Budget Management | FX144: 1 | FY144: Programme Management for Public Finance and Budget Management
Y145: 40 | AA145: 40 | AB145: 32 | AC145: Telecommunications and Postal Services | AF145: Rezah Atcha | AG145: (012) 315 5287 | AH145: Rezah.Atcha@treasury.gov.za | AI145: Keitumetse Motshegwe | AJ145: (012) 395 6750 | AK145: keitumetse.motshegwe@treasury.gov.za | AO145: datafileNAT@treasury.gov.za | AP145: 241399 | AQ145: 259506 | AR145: 276373 | AT145: 32 | AU145: Telecommunications and Postal Services | AV145: 241399 | AW145: 259506 | AX145: 276373 | DG145: Cooperative Governance And Traditional Affairs | DH145: Institutional Development | DI145: 13 | DJ145: 12 | DK145: 12 | DL145: 0 | DM145: 12 | DN145: 9709 | DO145: 12 | DP145: 11002 | DQ145: 19 | DR145: 15105 | DS145: 19 | DT145: 15981 | DU145: 19 | DV145: 16908 | DW145: Cooperative Governance And Traditional Affairs|Institutional Development | DX145: 004 | DY145: 003 | DZ145: 004003 | EC145: 411 | ED145: 1 | EE145: 3 | EF145: Communications | EG145: 2 | EH145: Communications Policy, Research and Development | EI145: 4 | EJ145: Technology and Engineering Services | EK145: Current payments | EL145: Compensation of employees | EM145: Compensation of employees | EN145: 1 | EO145: 0 | EP145: 1100 | EQ145: 1100 | ER145: 1100 | ES145: 2255 | ET145: 1267 | EU145: 1362 | EV145: 0 | EW145: 0 | EX145: 0 | EY145: 1267 | EZ145: 1362 | FA145: 1451 | FB145: Communications|Communications Policy, Research and Development | FC145: 003 | FD145: 002 | FE145: 004 | FF145: 001 | FG145: 003002 | FH145: 003001 | FI145: 1 | FJ145: 003002004001 | FL145: 003002001 | FT145: 7 | FU145: National Treasury | FV145: 3 | FW145: Public Finance and Budget Management | FX145: 2 | FY145: Public Finance
Y146: 41 | AA146: 41 | AB146: 1 | AC146: The Presidency | AF146: Timothy Murwa | AG146: (012) 315 5002 | AH146: Timothy.Murwa@treasury.gov.za | AI146: Gcobisa Magazi | AJ146: (012) 315 5320 | AK146: gcobia.magazi@treasury.gov.za | AO146: datafileNAT@treasury.gov.za | AP146: 354004 | AQ146: 380555 | AR146: 405291 | AT146: 1 | AU146: The Presidency | AV146: 354004 | AW146: 380555 | AX146: 405291 | DG146: Cooperative Governance And Traditional Affairs | DH146: Institutional Development | DI146: 14 | DJ146: 5 | DK146: 5 | DL146: 0 | DM146: 5 | DN146: 4490 | DO146: 5 | DP146: 5108 | DQ146: 6 | DR146: 5264 | DS146: 6 | DT146: 5569 | DU146: 6 | DV146: 5892 | DW146: Cooperative Governance And Traditional Affairs|Institutional Development | DX146: 004 | DY146: 003 | DZ146: 004003 | EC146: 411 | ED146: 2 | EE146: 3 | EF146: Communications | EG146: 2 | EH146: Communications Policy, Research and Development | EI146: 4 | EJ146: Technology and Engineering Services | EK146: Current payments | EL146: Goods and services | EM146: Goods and services | EN146: 12 | EO146: 0 | EP146: 432 | EQ146: 282 | ER146: 282 | ES146: 167 | ET146: 175 | EU146: 184 | EV146: 0 | EW146: 0 | EX146: 0 | EY146: 175 | EZ146: 184 | FA146: 194 | FB146: Communications|Communications Policy, Research and Development | FC146: 003 | FD146: 002 | FE146: 004 | FF146: 002 | FG146: 003002 | FH146: 003002 | FI146: 2 | FJ146: 003002004002 | FL146: 003002002 | FT146: 7 | FU146: National Treasury | FV146: 3 | FW146: Public Finance and Budget Management | FX146: 3 | FY146: Budget Office and Coordination
Y147: 42 | AA147: 42 | AB147: 33 | AC147: Tourism | AF147: Ashley Ramasimu | AG147: (012) 315 5166 | AH147: Ashley.Ramasimu@treasury.gov.za | AI147: Thabiso Molewa | AJ147: (012) 395 6780 | AK147: Thabiso.Molewa@treasury.gov.za | AO147: datafileNAT@treasury.gov.za | AP147: 334380 | AQ147: 360282 | AR147: 383702 | AT147: 33 | AU147: Tourism | AV147: 334380 | AW147: 360282 | AX147: 383702 | DG147: Cooperative Governance And Traditional Affairs | DH147: Institutional Development | DI147: 15 | DJ147: 1 | DK147: 1 | DL147: 0 | DM147: 1 | DN147: 1115 | DO147: 1 | DP147: 1293 | DQ147: 1 | DR147: 1268 | DS147: 1 | DT147: 1343 | DU147: 1 | DV147: 1420 | DW147: Cooperative Governance And Traditional Affairs|Institutional Development | DX147: 004 | DY147: 003 | DZ147: 004003 | EC147: 411 | ED147: 1 | EE147: 3 | EF147: Communications | EG147: 3 | EH147: Industry and Capacity Development | EI147: 2 | EJ147: Enterprise Development | EK147: Current payments | EL147: Compensation of employees | EM147: Compensation of employees | EN147: 2201 | EO147: 0 | EP147: 2204 | EQ147: 2204 | ER147: 2204 | ES147: 0 | ET147: 0 | EU147: 0 | EV147: 0 | EW147: 0 | EX147: 0 | EY147: 0 | EZ147: 0 | FA147: 0 | FB147: Communications|Industry and Capacity Development | FC147: 003 | FD147: 003 | FE147: 002 | FF147: 001 | FG147: 003003 | FH147: 003001 | FI147: 1 | FJ147: 003003002001 | FL147: 003003001 | FT147: 7 | FU147: National Treasury | FV147: 3 | FW147: Public Finance and Budget Management | FX147: 4 | FY147: Intergovernmental Relations
Y148: 43 | AA148: 43 | AB148: 34 | AC148: Trade and Industry | AF148: Isaac Kurasha | AG148: (012) 315 5213 | AH148: isaac.kurasha@treasury.gov.za | AI148: Ntandokazi Makaula | AJ148: (012) 395 6667 | AK148: Ntandokazi.Makaula@treasury.gov.za | AO148: datafileNAT@treasury.gov.za | AP148: 1046769 | AQ148: 1073471 | AR148: 1143244 | AT148: 34 | AU148: Trade and Industry | AV148: 1046769 | AW148: 1073471 | AX148: 1143244 | DG148: Cooperative Governance And Traditional Affairs | DH148: National Disaster Management Centre | DI148: 6 | DJ148: 5 | DK148: 5 | DL148: 0 | DM148: 5 | DN148: 880 | DO148: 5 | DP148: 1093 | DQ148: 7 | DR148: 1820 | DS148: 7 | DT148: 1915 | DU148: 7 | DV148: 2126 | DW148: Cooperative Governance And Traditional Affairs|National Disaster Management Centre | DX148: 004 | DY148: 004 | DZ148: 004004 | EC148: 412 | ED148: 2 | EE148: 3 | EF148: Communications | EG148: 3 | EH148: Industry and Capacity Development | EI148: 2 | EJ148: Enterprise Development | EK148: Current payments | EL148: Goods and services | EM148: Goods and services | EN148: 188 | EO148: 192 | EP148: 800 | EQ148: 550 | ER148: 550 | ES148: 0 | ET148: 0 | EU148: 0 | EV148: 0 | EW148: 0 | EX148: 0 | EY148: 0 | EZ148: 0 | FA148: 0 | FB148: Communications|Industry and Capacity Development | FC148: 003 | FD148: 003 | FE148: 002 | FF148: 002 | FG148: 003003 | FH148: 003002 | FI148: 2 | FJ148: 003003002002 | FL148: 003003002 | FT148: 7 | FU148: National Treasury | FV148: 3 | FW148: Public Finance and Budget Management | FX148: 5 | FY148: Financial and Fiscal Commission
Y149: 44 | AA149: 44 | AB149: 43 | AC149: Traditional Affairs | AF149: Misaveni Ngobeni | AG149: (012) 315 5305 | AH149: misaveni.ngobeni@treasury.gov.za | AI149: Millicent Mulaudzi | AJ149: (012) 395 6576 | AK149: Millicent.Mulaudzi@treasury.gov.za | AO149: datafileNAT@treasury.gov.za | AP149: 79466 | AQ149: 85426 | AR149: 90979 | AT149: 43 | AU149: Traditional Affairs | AV149: 79466 | AW149: 85426 | AX149: 90979 | DG149: Cooperative Governance And Traditional Affairs | DH149: National Disaster Management Centre | DI149: 7 | DJ149: 2 | DK149: 2 | DL149: 0 | DM149: 2 | DN149: 331 | DO149: 2 | DP149: 638 | DQ149: 2 | DR149: 634 | DS149: 2 | DT149: 667 | DU149: 2 | DV149: 806 | DW149: Cooperative Governance And Traditional Affairs|National Disaster Management Centre | DX149: 004 | DY149: 004 | DZ149: 004004 | EC149: 412 | ED149: 57 | EE149: 3 | EF149: Communications | EG149: 3 | EH149: Industry and Capacity Development | EI149: 2 | EJ149: Enterprise Development | EK149: Payments for capital assets | EL149: Machinery and equipment | EM149: Other machinery and equipment | EN149: 0 | EO149: 15 | EP149: 41 | EQ149: 0 | ER149: 0 | ES149: 0 | ET149: 0 | EU149: 0 | EV149: 0 | EW149: 0 | EX149: 0 | EY149: 0 | EZ149: 0 | FA149: 0 | FB149: Communications|Industry and Capacity Development | FC149: 003 | FD149: 003 | FE149: 002 | FF149: 057 | FG149: 003003 | FH149: 003057 | FI149: 57 | FJ149: 003003002057 | FL149: 003003057 | FT149: 7 | FU149: National Treasury | FV149: 4 | FW149: Asset and Liability Management | FX149: 1 | FY149: Programme Management for Asset and Liability Management
Y150: 45 | AA150: 45 | AB150: 35 | AC150: Transport | AF150: James Archer | AG150: (012) 395 6736 | AH150: James.Archer@treasury.gov.za | AI150: Luyolo Ntlangula | AJ150: (012) 315-5571 | AK150: luyolo.ntangula@treasury.gov.za | AO150: datafileNAT@treasury.gov.za | AP150: 534709 | AQ150: 574848 | AR150: 612212 | AT150: 35 | AU150: Transport | AV150: 534709 | AW150: 574848 | AX150: 612212 | DG150: Cooperative Governance And Traditional Affairs | DH150: National Disaster Management Centre | DI150: 8 | DJ150: 2 | DK150: 2 | DL150: 0 | DM150: 2 | DN150: 735 | DO150: 2 | DP150: 829 | DQ150: 2 | DR150: 748 | DS150: 2 | DT150: 787 | DU150: 2 | DV150: 935 | DW150: Cooperative Governance And Traditional Affairs|National Disaster Management Centre | DX150: 004 | DY150: 004 | DZ150: 004004 | EC150: 412 | ED150: 1 | EE150: 3 | EF150: Communications | EG150: 3 | EH150: Industry and Capacity Development | EI150: 3 | EJ150: Broadcasting Digital Migration | EK150: Current payments | EL150: Compensation of employees | EM150: Compensation of employees | EN150: 6576 | EO150: 9446 | EP150: 9114 | EQ150: 8970 | ER150: 8970 | ES150: 14171 | ET150: 15140 | EU150: 16181 | EV150: 0 | EW150: 0 | EX150: 0 | EY150: 15140 | EZ150: 16181 | FA150: 17233 | FB150: Communications|Industry and Capacity Development | FC150: 003 | FD150: 003 | FE150: 003 | FF150: 001 | FG150: 003003 | FH150: 003001 | FI150: 1 | FJ150: 003003003001 | FL150: 003003001 | FT150: 7 | FU150: National Treasury | FV150: 4 | FW150: Asset and Liability Management | FX150: 2 | FY150: State Owned Entity Financial Management and Governance
Y151: 46 | AA151: 46 | AB151: 36 | AC151: Water and Sanitation | AF151: Misaveni Ngobeni | AG151: (012) 315 5305 | AH151: misaveni.ngobeni@treasury.gov.za | AI151: Iqbal Mahomed Alli | AJ151: (012) 315 5809 | AK151: Iqbal.Mahomed-Alli@treasury.gov.za | AO151: datafileNAT@treasury.gov.za | AP151: 1851343 | AQ151: 1990193 | AR151: 2119558 | AT151: 36 | AU151: Water and Sanitation | AV151: 1851343 | AW151: 1990193 | AX151: 2119558 | DG151: Cooperative Governance And Traditional Affairs | DH151: National Disaster Management Centre | DI151: 9 | DJ151: 6 | DK151: 6 | DL151: 0 | DM151: 6 | DN151: 2710 | DO151: 6 | DP151: 3057 | DQ151: 6 | DR151: 2865 | DS151: 6 | DT151: 2954 | DU151: 6 | DV151: 3325 | DW151: Cooperative Governance And Traditional Affairs|National Disaster Management Centre | DX151: 004 | DY151: 004 | DZ151: 004004 | EC151: 413 | ED151: 2 | EE151: 3 | EF151: Communications | EG151: 3 | EH151: Industry and Capacity Development | EI151: 3 | EJ151: Broadcasting Digital Migration | EK151: Current payments | EL151: Goods and services | EM151: Goods and services | EN151: 8614 | EO151: 16138 | EP151: 5269 | EQ151: 11426 | ER151: 11426 | ES151: 33677 | ET151: 32010 | EU151: 33024 | EV151: 0 | EW151: 0 | EX151: 0 | EY151: 32010 | EZ151: 33024 | FA151: 6615 | FB151: Communications|Industry and Capacity Development | FC151: 003 | FD151: 003 | FE151: 003 | FF151: 002 | FG151: 003003 | FH151: 003002 | FI151: 2 | FJ151: 003003003002 | FL151: 003003002 | FT151: 7 | FU151: National Treasury | FV151: 4 | FW151: Asset and Liability Management | FX151: 3 | FY151: Government Debt Management
Y152: 47 | AA152: 47 | AB152: 13 | AC152: Women | AF152: George Tembo | AG152: (012) 315 5514 | AH152: George.Tembo@treasury.gov.za | AI152: Viwe Sobudula | AJ152: (012) 315 5015 | AK152: Viwe.Sobudula@treasury.gov.za | AO152: datafileNAT@treasury.gov.za | AP152: 91435 | AQ152: 98292 | AR152: 104681 | AT152: 13 | AU152: Women | AV152: 91435 | AW152: 98292 | AX152: 104681 | DG152: Cooperative Governance And Traditional Affairs | DH152: National Disaster Management Centre | DI152: 11 | DJ152: 7 | DK152: 7 | DL152: 0 | DM152: 7 | DN152: 3980 | DO152: 7 | DP152: 4489 | DQ152: 13 | DR152: 9004 | DS152: 13 | DT152: 9296 | DU152: 13 | DV152: 9866 | DW152: Cooperative Governance And Traditional Affairs|National Disaster Management Centre | DX152: 004 | DY152: 004 | DZ152: 004004 | EC152: 413 | ED152: 57 | EE152: 3 | EF152: Communications | EG152: 3 | EH152: Industry and Capacity Development | EI152: 3 | EJ152: Broadcasting Digital Migration | EK152: Payments for capital assets | EL152: Machinery and equipment | EM152: Other machinery and equipment | EN152: 70 | EO152: 2221 | EP152: 0 | EQ152: 0 | ER152: 0 | ES152: 44 | ET152: 46 | EU152: 49 | EV152: 0 | EW152: 0 | EX152: 0 | EY152: 46 | EZ152: 49 | FA152: 52 | FB152: Communications|Industry and Capacity Development | FC152: 003 | FD152: 003 | FE152: 003 | FF152: 057 | FG152: 003003 | FH152: 003057 | FI152: 57 | FJ152: 003003003057 | FL152: 003003057 | FT152: 7 | FU152: National Treasury | FV152: 4 | FW152: Asset and Liability Management | FX152: 4 | FY152: Financial Operations
AP153: =SUM(AP106:AP152) -> 176703404 | AQ153: =SUM(AQ106:AQ152) -> 189667744 | AR153: =SUM(AR106:AR152) -> 201992691 | AT153: Grand Total | AV153: =SUM(AV106:AV152) -> 176703404 | AW153: =SUM(AW106:AW152) -> 189667744 | AX153: 202014745 | DG153: Cooperative Governance And Traditional Affairs | DH153: National Disaster Management Centre | DI153: 12 | DJ153: 0 | DK153: 0 | DL153: 0 | DM153: 0 | DN153: 0 | DO153: 0 | DP153: 0 | DQ153: 1 | DR153: 841 | DS153: 1 | DT153: 885 | DU153: 1 | DV153: 936 | DW153: Cooperative Governance And Traditional Affairs|National Disaster Management Centre | DX153: 004 | DY153: 004 | DZ153: 004004 | EC153: 413 | ED153: 52 | EE153: 3 | EF153: Communications | EG153: 3 | EH153: Industry and Capacity Development | EI153: 3 | EJ153: Broadcasting Digital Migration | EK153: Transfers and subsidies | EL153: Households | EM153: Social benefits | EN153: 0 | EO153: 56 | EP153: 0 | EQ153: 144 | ER153: 144 | ES153: 0 | ET153: 0 | EU153: 0 | EV153: 0 | EW153: 0 | EX153: 0 | EY153: 0 | EZ153: 0 | FA153: 0 | FB153: Communications|Industry and Capacity Development | FC153: 003 | FD153: 003 | FE153: 003 | FF153: 052 | FG153: 003003 | FH153: 003052 | FI153: 52 | FJ153: 003003003052 | FL153: 003003052 | FT153: 7 | FU153: National Treasury | FV153: 4 | FW153: Asset and Liability Management | FX153: 5 | FY153: Strategy and Risk Management
DG154: Cooperative Governance And Traditional Affairs | DH154: National Disaster Management Centre | DI154: 13 | DJ154: 6 | DK154: 6 | DL154: 0 | DM154: 6 | DN154: 4562 | DO154: 6 | DP154: 5146 | DQ154: 6 | DR154: 5980 | DS154: 6 | DT154: 6001 | DU154: 6 | DV154: 5839 | DW154: Cooperative Governance And Traditional Affairs|National Disaster Management Centre | DX154: 004 | DY154: 004 | DZ154: 004004 | EC154: 413 | ED154: 63 | EE154: 3 | EF154: Communications | EG154: 3 | EH154: Industry and Capacity Development | EI154: 3 | EJ154: Broadcasting Digital Migration | EK154: Payments for financial assets | EL154: Payments for financial assets | EM154: Payments for financial assets | EN154: 0 | EO154: 7 | EP154: 0 | EQ154: 0 | ER154: 0 | ES154: 0 | ET154: 0 | EU154: 0 | EV154: 0 | EW154: 0 | EX154: 0 | EY154: 0 | EZ154: 0 | FA154: 0 | FB154: Communications|Industry and Capacity Development | FC154: 003 | FD154: 003 | FE154: 003 | FF154: 063 | FG154: 003003 | FH154: 003063 | FI154: 63 | FJ154: 003003003063 | FL154: 003003063 | FT154: 7 | FU154: National Treasury | FV154: 4 | FW154: Asset and Liability Management | FX154: 6 | FY154: Financial Investments
DG155: Cooperative Governance And Traditional Affairs | DH155: National Disaster Management Centre | DI155: 14 | DJ155: 4 | DK155: 4 | DL155: 0 | DM155: 4 | DN155: 4256 | DO155: 4 | DP155: 4801 | DQ155: 4 | DR155: 4028 | DS155: 4 | DT155: 4931 | DU155: 4 | DV155: 4929 | DW155: Cooperative Governance And Traditional Affairs|National Disaster Management Centre | DX155: 004 | DY155: 004 | DZ155: 004004 | EC155: 413 | ED155: 1 | EE155: 3 | EF155: Communications | EG155: 3 | EH155: Industry and Capacity Development | EI155: 4 | EJ155: Industry Research and Analysis | EK155: Current payments | EL155: Compensation of employees | EM155: Compensation of employees | EN155: 1413 | EO155: 2421 | EP155: 2672 | EQ155: 2672 | ER155: 2672 | ES155: 2875 | ET155: 3093 | EU155: 3325 | EV155: 0 | EW155: 0 | EX155: 0 | EY155: 3093 | EZ155: 3325 | FA155: 3541 | FB155: Communications|Industry and Capacity Development | FC155: 003 | FD155: 003 | FE155: 004 | FF155: 001 | FG155: 003003 | FH155: 003001 | FI155: 1 | FJ155: 003003004001 | FL155: 003003001 | FT155: 7 | FU155: National Treasury | FV155: 5 | FW155: Financial Accounting and Supply Chain Management Systems | FX155: 1 | FY155: Programme Management for Financial Accounting and Supply Chain Management Systems
AA156: 1 | AB156: 2 | AC156: 3 | AD156: 4 | AE156: 5 | AF156: 6 | DG156: Cooperative Governance And Traditional Affairs | DH156: National Disaster Management Centre | DI156: 15 | DJ156: 1 | DK156: 1 | DL156: 0 | DM156: 1 | DN156: 1256 | DO156: 1 | DP156: 1417 | DQ156: 1 | DR156: 1428 | DS156: 1 | DT156: 1498 | DU156: 1 | DV156: 1850 | DW156: Cooperative Governance And Traditional Affairs|National Disaster Management Centre | DX156: 004 | DY156: 004 | DZ156: 004004 | EC156: 413 | ED156: 2 | EE156: 3 | EF156: Communications | EG156: 3 | EH156: Industry and Capacity Development | EI156: 4 | EJ156: Industry Research and Analysis | EK156: Current payments | EL156: Goods and services | EM156: Goods and services | EN156: 321 | EO156: 2721 | EP156: 250 | EQ156: 250 | ER156: 250 | ES156: 414 | ET156: 437 | EU156: 461 | EV156: 0 | EW156: 0 | EX156: 0 | EY156: 437 | EZ156: 461 | FA156: 486 | FB156: Communications|Industry and Capacity Development | FC156: 003 | FD156: 003 | FE156: 004 | FF156: 002 | FG156: 003003 | FH156: 003002 | FI156: 2 | FJ156: 003003004002 | FL156: 003003002 | FT156: 7 | FU156: National Treasury | FV156: 5 | FW156: Financial Accounting and Supply Chain Management Systems | FX156: 2 | FY156: Office of the Chief Procurement Officer
AA157: =+$AA$209 -> 0 | AB157: =+$AB$209 -> 2 | AC157: =+$AC$209 -> 0 | AD157: =+$AD$209 -> 0 | AE157: =+$AE$209 -> 0 | AF157: =+$AF$209 -> 8 | DG157: Cooperative Governance And Traditional Affairs | DH157: Local Government Support and Intervention Management | DI157: 5 | DJ157: 2 | DK157: 2 | DL157: 0 | DM157: 2 | DN157: 390 | DO157: 2 | DP157: 469 | DQ157: 2 | DR157: 294 | DS157: 2 | DT157: 311 | DU157: 2 | DV157: 329 | DW157: Cooperative Governance And Traditional Affairs|Local Government Support and Intervention Management | DX157: 004 | DY157: 005 | DZ157: 004005 | EC157: 413 | ED157: 57 | EE157: 3 | EF157: Communications | EG157: 3 | EH157: Industry and Capacity Development | EI157: 4 | EJ157: Industry Research and Analysis | EK157: Payments for capital assets | EL157: Machinery and equipment | EM157: Other machinery and equipment | EN157: 0 | EO157: 252 | EP157: 0 | EQ157: 0 | ER157: 0 | ES157: 0 | ET157: 0 | EU157: 0 | EV157: 0 | EW157: 0 | EX157: 0 | EY157: 0 | EZ157: 0 | FA157: 0 | FB157: Communications|Industry and Capacity Development | FC157: 003 | FD157: 003 | FE157: 004 | FF157: 057 | FG157: 003003 | FH157: 003057 | FI157: 57 | FJ157: 003003004057 | FL157: 003003057 | FT157: 7 | FU157: National Treasury | FV157: 5 | FW157: Financial Accounting and Supply Chain Management Systems | FX157: 3 | FY157: Financial Systems
W158: Offset | X158: Econ | AA158: Public Entities & Dept Agencies | AB158: NPI | AC158: Foreign governments | AD158: HEI | AE158: Priv Corp | AF158: Households | DG158: Cooperative Governance And Traditional Affairs | DH158: Local Government Support and Intervention Management | DI158: 6 | DJ158: 10 | DK158: 10 | DL158: 0 | DM158: 10 | DN158: 2450 | DO158: 10 | DP158: 2950 | DQ158: 8 | DR158: 1352 | DS158: 8 | DT158: 1430 | DU158: 8 | DV158: 1513 | DW158: Cooperative Governance And Traditional Affairs|Local Government Support and Intervention Management | DX158: 004 | DY158: 005 | DZ158: 004005 | EC158: 414 | ED158: 1 | EE158: 3 | EF158: Communications | EG158: 3 | EH158: Industry and Capacity Development | EI158: 5 | EJ158: Inter-governmental Relations and Stakeholder Management | EK158: Current payments | EL158: Compensation of employees | EM158: Compensation of employees | EN158: 818 | EO158: 1524 | EP158: 1690 | EQ158: 1690 | ER158: 1690 | ES158: 1819 | ET158: 1958 | EU158: 2105 | EV158: 0 | EW158: 0 | EX158: 0 | EY158: 1958 | EZ158: 2105 | FA158: 2242 | FB158: Communications|Industry and Capacity Development | FC158: 003 | FD158: 003 | FE158: 005 | FF158: 001 | FG158: 003003 | FH158: 003001 | FI158: 1 | FJ158: 003003005001 | FL158: 003003001 | FT158: 7 | FU158: National Treasury | FV158: 5 | FW158: Financial Accounting and Supply Chain Management Systems | FX158: 4 | FY158: Financial Reporting for National Accounts
W159: 1 | X159: Departmental agencies (non-business entities) | AA159: =OFFSET($AA$233,1,MATCH(Summary!$G$7,Cover!$AB$233:$BV$233,0)) -> 0 | AB159: =OFFSET($AA$310,1,MATCH(Summary!$G$7,Cover!$AB$233:$BV$233,0)) -> NPI:Political Parties | AC159: =OFFSET($AA$387,1,MATCH(Summary!$G$7,Cover!$AB$233:$BV$233,0)) -> 0 | AD159: =OFFSET($AA$464,1,MATCH(Summary!$G$7,Cover!$AB$233:$BV$233,0)) -> 0 | AE159: =OFFSET($AA$541,1,MATCH(Summary!$G$7,Cover!$AB$233:$BV$233,0)) -> 0 | AF159: =OFFSET($AA$618,1,MATCH(Summary!$G$7,Cover!$AB$233:$BV$233,0)) -> H/H Empl S/Ben:Injury On Duty | DG159: Cooperative Governance And Traditional Affairs | DH159: Local Government Support and Intervention Management | DI159: 7 | DJ159: 3 | DK159: 3 | DL159: 0 | DM159: 3 | DN159: 865 | DO159: 3 | DP159: 1041 | DQ159: 4 | DR159: 832 | DS159: 4 | DT159: 880 | DU159: 4 | DV159: 931 | DW159: Cooperative Governance And Traditional Affairs|Local Government Support and Intervention Management | DX159: 004 | DY159: 005 | DZ159: 004005 | EC159: 414 | ED159: 2 | EE159: 3 | EF159: Communications | EG159: 3 | EH159: Industry and Capacity Development | EI159: 5 | EJ159: Inter-governmental Relations and Stakeholder Management | EK159: Current payments | EL159: Goods and services | EM159: Goods and services | EN159: 184 | EO159: 173 | EP159: 250 | EQ159: 250 | ER159: 250 | ES159: 344 | ET159: 363 | EU159: 386 | EV159: 0 | EW159: 0 | EX159: 0 | EY159: 363 | EZ159: 386 | FA159: 407 | FB159: Communications|Industry and Capacity Development | FC159: 003 | FD159: 003 | FE159: 005 | FF159: 002 | FG159: 003003 | FH159: 003002 | FI159: 2 | FJ159: 003003005002 | FL159: 003003002 | FT159: 7 | FU159: National Treasury | FV159: 5 | FW159: Financial Accounting and Supply Chain Management Systems | FX159: 5 | FY159: Financial Management Policy and Compliance Improvement
W160: 4 | X160: Higher education institutions | AA160: =OFFSET($AA$233,2,MATCH(Summary!$G$7,Cover!$AB$233:$BV$233,0)) -> 0 | AB160: =OFFSET($AA$310,2,MATCH(Summary!$G$7,Cover!$AB$233:$BV$233,0)) -> NPI: Constituency Allowance | AC160: =OFFSET($AA$387,2,MATCH(Summary!$G$7,Cover!$AB$233:$BV$233,0)) -> 0 | AD160: =OFFSET($AA$464,2,MATCH(Summary!$G$7,Cover!$AB$233:$BV$233,0)) -> 0 | AE160: =OFFSET($AA$541,2,MATCH(Summary!$G$7,Cover!$AB$233:$BV$233,0)) -> 0 | AF160: =OFFSET($AA$618,2,MATCH(Summary!$G$7,Cover!$AB$233:$BV$233,0)) -> H/H Empl S/Ben:Pst Retirmt Benef | DG160: Cooperative Governance And Traditional Affairs | DH160: Local Government Support and Intervention Management | DI160: 8 | DJ160: 5 | DK160: 5 | DL160: 0 | DM160: 5 | DN160: 1750 | DO160: 5 | DP160: 2107 | DQ160: 5 | DR160: 1255 | DS160: 5 | DT160: 1328 | DU160: 5 | DV160: 1405 | DW160: Cooperative Governance And Traditional Affairs|Local Government Support and Intervention Management | DX160: 004 | DY160: 005 | DZ160: 004005 | EC160: 414 | ED160: 1 | EE160: 3 | EF160: Communications | EG160: 4 | EH160: Entity Oversight | EI160: 1 | EJ160: Programme Management for Entity Oversight | EK160: Current payments | EL160: Compensation of employees | EM160: Compensation of employees | EN160: 2189 | EO160: 3731 | EP160: 2078 | EQ160: 1164 | ER160: 1164 | ES160: 1266 | ET160: 1114 | EU160: 2483 | EV160: 0 | EW160: 0 | EX160: 0 | EY160: 1114 | EZ160: 2483 | FA160: 2644 | FB160: Communications|Entity Oversight | FC160: 003 | FD160: 004 | FE160: 001 | FF160: 001 | FG160: 003004 | FH160: 003001 | FI160: 1 | FJ160: 003004001001 | FL160: 003004001 | FT160: 7 | FU160: National Treasury | FV160: 5 | FW160: Financial Accounting and Supply Chain Management Systems | FX160: 6 | FY160: Audit Statutory Bodies
W161: 3 | X161: Foreign governments and international organisations | AA161: =OFFSET($AA$233,3,MATCH(Summary!$G$7,Cover!$AB$233:$BV$233,0)) -> 0 | AB161: =OFFSET($AA$310,3,MATCH(Summary!$G$7,Cover!$AB$233:$BV$233,0)) -> 0 | AC161: =OFFSET($AA$387,3,MATCH(Summary!$G$7,Cover!$AB$233:$BV$233,0)) -> 0 | AD161: =OFFSET($AA$464,3,MATCH(Summary!$G$7,Cover!$AB$233:$BV$233,0)) -> 0 | AE161: =OFFSET($AA$541,3,MATCH(Summary!$G$7,Cover!$AB$233:$BV$233,0)) -> 0 | AF161: =OFFSET($AA$618,3,MATCH(Summary!$G$7,Cover!$AB$233:$BV$233,0)) -> H/H Empl S/Ben:Severance Package | DG161: Cooperative Governance And Traditional Affairs | DH161: Local Government Support and Intervention Management | DI161: 9 | DJ161: 6 | DK161: 6 | DL161: 0 | DM161: 6 | DN161: 2079 | DO161: 6 | DP161: 2503 | DQ161: 14 | DR161: 7218 | DS161: 14 | DT161: 7637 | DU161: 14 | DV161: 8080 | DW161: Cooperative Governance And Traditional Affairs|Local Government Support and Intervention Management | DX161: 004 | DY161: 005 | DZ161: 004005 | EC161: 414 | ED161: 2 | EE161: 3 | EF161: Communications | EG161: 4 | EH161: Entity Oversight | EI161: 1 | EJ161: Programme Management for Entity Oversight | EK161: Current payments | EL161: Goods and services | EM161: Goods and services | EN161: 328 | EO161: 326 | EP161: 492 | EQ161: 336 | ER161: 336 | ES161: 522 | ET161: 561 | EU161: 592 | EV161: 0 | EW161: 0 | EX161: 0 | EY161: 561 | EZ161: 592 | FA161: 625 | FB161: Communications|Entity Oversight | FC161: 003 | FD161: 004 | FE161: 001 | FF161: 002 | FG161: 003004 | FH161: 003002 | FI161: 2 | FJ161: 003004001002 | FL161: 003004002 | FT161: 7 | FU161: National Treasury | FV161: 5 | FW161: Financial Accounting and Supply Chain Management Systems | FX161: 7 | FY161: Service Charges: Commercial Banks
W162: 5 | X162: Subsidies on products and production (pc) | AA162: =OFFSET($AA$233,4,MATCH(Summary!$G$7,Cover!$AB$233:$BV$233,0)) -> 0 | AB162: =OFFSET($AA$310,4,MATCH(Summary!$G$7,Cover!$AB$233:$BV$233,0)) -> 0 | AC162: =OFFSET($AA$387,4,MATCH(Summary!$G$7,Cover!$AB$233:$BV$233,0)) -> 0 | AD162: =OFFSET($AA$464,4,MATCH(Summary!$G$7,Cover!$AB$233:$BV$233,0)) -> 0 | AE162: =OFFSET($AA$541,4,MATCH(Summary!$G$7,Cover!$AB$233:$BV$233,0)) -> 0 | AF162: =OFFSET($AA$618,4,MATCH(Summary!$G$7,Cover!$AB$233:$BV$233,0)) -> H/H Empl S/Ben:Leave Gratuity | DG162: Cooperative Governance And Traditional Affairs | DH162: Local Government Support and Intervention Management | DI162: 11 | DJ162: 0 | DK162: 0 | DL162: 0 | DM162: 0 | DN162: 0 | DO162: 0 | DP162: 0 | DQ162: 35 | DR162: 21866 | DS162: 35 | DT162: 23134 | DU162: 35 | DV162: 24476 | DW162: Cooperative Governance And Traditional Affairs|Local Government Support and Intervention Management | DX162: 004 | DY162: 005 | DZ162: 004005 | EC162: 414 | ED162: 57 | EE162: 3 | EF162: Communications | EG162: 4 | EH162: Entity Oversight | EI162: 1 | EJ162: Programme Management for Entity Oversight | EK162: Payments for capital assets | EL162: Machinery and equipment | EM162: Other machinery and equipment | EN162: 42 | EO162: 0 | EP162: 0 | EQ162: 0 | ER162: 0 | ES162: 0 | ET162: 0 | EU162: 0 | EV162: 0 | EW162: 0 | EX162: 0 | EY162: 0 | EZ162: 0 | FA162: 0 | FB162: Communications|Entity Oversight | FC162: 003 | FD162: 004 | FE162: 001 | FF162: 057 | FG162: 003004 | FH162: 003057 | FI162: 57 | FJ162: 003004001057 | FL162: 003004057 | FT162: 7 | FU162: National Treasury | FV162: 6 | FW162: International Financial Relations | FX162: 1 | FY162: Programme Management for International Financial Relations
W163: 5 | X163: Other transfers to public corporations | AA163: =OFFSET($AA$233,5,MATCH(Summary!$G$7,Cover!$AB$233:$BV$233,0)) -> 0 | AB163: =OFFSET($AA$310,5,MATCH(Summary!$G$7,Cover!$AB$233:$BV$233,0)) -> 0 | AC163: =OFFSET($AA$387,5,MATCH(Summary!$G$7,Cover!$AB$233:$BV$233,0)) -> 0 | AD163: =OFFSET($AA$464,5,MATCH(Summary!$G$7,Cover!$AB$233:$BV$233,0)) -> 0 | AE163: =OFFSET($AA$541,5,MATCH(Summary!$G$7,Cover!$AB$233:$BV$233,0)) -> 0 | AF163: =OFFSET($AA$618,5,MATCH(Summary!$G$7,Cover!$AB$233:$BV$233,0)) -> H/H:Bursaries(Non-Employee) | DG163: Cooperative Governance And Traditional Affairs | DH163: Local Government Support and Intervention Management | DI163: 12 | DJ163: 0 | DK163: 0 | DL163: 0 | DM163: 0 | DN163: 0 | DO163: 0 | DP163: 0 | DQ163: 2 | DR163: 1580 | DS163: 2 | DT163: 1672 | DU163: 2 | DV163: 1769 | DW163: Cooperative Governance And Traditional Affairs|Local Government Support and Intervention Management | DX163: 004 | DY163: 005 | DZ163: 004005 | EC163: 415 | ED163: 52 | EE163: 3 | EF163: Communications | EG163: 4 | EH163: Entity Oversight | EI163: 1 | EJ163: Programme Management for Entity Oversight | EK163: Transfers and subsidies | EL163: Households | EM163: Social benefits | EN163: 0 | EO163: 82 | EP163: 0 | EQ163: 0 | ER163: 0 | ES163: 0 | ET163: 0 | EU163: 0 | EV163: 0 | EW163: 0 | EX163: 0 | EY163: 0 | EZ163: 0 | FA163: 0 | FB163: Communications|Entity Oversight | FC163: 003 | FD163: 004 | FE163: 001 | FF163: 052 | FG163: 003004 | FH163: 003052 | FI163: 52 | FJ163: 003004001052 | FL163: 003004052 | FT163: 7 | FU163: National Treasury | FV163: 6 | FW163: International Financial Relations | FX163: 2 | FY163: International Economic Cooperation
W164: 5 | X164: Subsidies on products and production (pe) | AA164: =OFFSET($AA$233,6,MATCH(Summary!$G$7,Cover!$AB$233:$BV$233,0)) -> 0 | AB164: =OFFSET($AA$310,6,MATCH(Summary!$G$7,Cover!$AB$233:$BV$233,0)) -> 0 | AC164: =OFFSET($AA$387,6,MATCH(Summary!$G$7,Cover!$AB$233:$BV$233,0)) -> 0 | AD164: =OFFSET($AA$464,6,MATCH(Summary!$G$7,Cover!$AB$233:$BV$233,0)) -> 0 | AE164: =OFFSET($AA$541,6,MATCH(Summary!$G$7,Cover!$AB$233:$BV$233,0)) -> 0 | AF164: =OFFSET($AA$618,6,MATCH(Summary!$G$7,Cover!$AB$233:$BV$233,0)) -> H/H:Bursaries(R&D) | DG164: Cooperative Governance And Traditional Affairs | DH164: Local Government Support and Intervention Management | DI164: 13 | DJ164: 20 | DK164: 20 | DL164: 0 | DM164: 20 | DN164: 13292 | DO164: 20 | DP164: 16004 | DQ164: 18 | DR164: 17906 | DS164: 18 | DT164: 18945 | DU164: 18 | DV164: 20044 | DW164: Cooperative Governance And Traditional Affairs|Local Government Support and Intervention Management | DX164: 004 | DY164: 005 | DZ164: 004005 | EC164: 415 | ED164: 1 | EE164: 3 | EF164: Communications | EG164: 4 | EH164: Entity Oversight | EI164: 2 | EJ164: Broadcasting and Community Media | EK164: Current payments | EL164: Compensation of employees | EM164: Compensation of employees | EN164: 798 | EO164: 951 | EP164: 1186 | EQ164: 1186 | ER164: 1186 | ES164: 1276 | ET164: 1362 | EU164: 1464 | EV164: 0 | EW164: 0 | EX164: 0 | EY164: 1362 | EZ164: 1464 | FA164: 1559 | FB164: Communications|Entity Oversight | FC164: 003 | FD164: 004 | FE164: 002 | FF164: 001 | FG164: 003004 | FH164: 003001 | FI164: 1 | FJ164: 003004002001 | FL164: 003004001 | FT164: 7 | FU164: National Treasury | FV164: 6 | FW164: International Financial Relations | FX164: 3 | FY164: African Integration and Support
W165: 5 | X165: Other transfers to private enterprises | AA165: =OFFSET($AA$233,7,MATCH(Summary!$G$7,Cover!$AB$233:$BV$233,0)) -> 0 | AB165: =OFFSET($AA$310,7,MATCH(Summary!$G$7,Cover!$AB$233:$BV$233,0)) -> 0 | AC165: =OFFSET($AA$387,7,MATCH(Summary!$G$7,Cover!$AB$233:$BV$233,0)) -> 0 | AD165: =OFFSET($AA$464,7,MATCH(Summary!$G$7,Cover!$AB$233:$BV$233,0)) -> 0 | AE165: =OFFSET($AA$541,7,MATCH(Summary!$G$7,Cover!$AB$233:$BV$233,0)) -> 0 | AF165: =OFFSET($AA$618,7,MATCH(Summary!$G$7,Cover!$AB$233:$BV$233,0)) -> H/H:Claims Against State(Cash) | DG165: Cooperative Governance And Traditional Affairs | DH165: Local Government Support and Intervention Management | DI165: 14 | DJ165: 10 | DK165: 10 | DL165: 0 | DM165: 10 | DN165: 7990 | DO165: 10 | DP165: 9620 | DQ165: 8 | DR165: 8944 | DS165: 8 | DT165: 9463 | DU165: 8 | DV165: 10012 | DW165: Cooperative Governance And Traditional Affairs|Local Government Support and Intervention Management | DX165: 004 | DY165: 005 | DZ165: 004005 | EC165: 416 | ED165: 2 | EE165: 3 | EF165: Communications | EG165: 4 | EH165: Entity Oversight | EI165: 2 | EJ165: Broadcasting and Community Media | EK165: Current payments | EL165: Goods and services | EM165: Goods and services | EN165: 535 | EO165: 12 | EP165: 492 | EQ165: 164 | ER165: 164 | ES165: 520 | ET165: 549 | EU165: 579 | EV165: 0 | EW165: 0 | EX165: 0 | EY165: 549 | EZ165: 579 | FA165: 611 | FB165: Communications|Entity Oversight | FC165: 003 | FD165: 004 | FE165: 002 | FF165: 002 | FG165: 003004 | FH165: 003002 | FI165: 2 | FJ165: 003004002002 | FL165: 003004002 | FT165: 7 | FU165: National Treasury | FV165: 6 | FW165: International Financial Relations | FX165: 4 | FY165: International Development Funding Institutions
W166: 2 | X166: Non-profit institutions | AA166: =OFFSET($AA$233,8,MATCH(Summary!$G$7,Cover!$AB$233:$BV$233,0)) -> 0 | AB166: =OFFSET($AA$310,8,MATCH(Summary!$G$7,Cover!$AB$233:$BV$233,0)) -> 0 | AC166: =OFFSET($AA$387,8,MATCH(Summary!$G$7,Cover!$AB$233:$BV$233,0)) -> 0 | AD166: =OFFSET($AA$464,8,MATCH(Summary!$G$7,Cover!$AB$233:$BV$233,0)) -> 0 | AE166: =OFFSET($AA$541,8,MATCH(Summary!$G$7,Cover!$AB$233:$BV$233,0)) -> 0 | AF166: =OFFSET($AA$618,8,MATCH(Summary!$G$7,Cover!$AB$233:$BV$233,0)) -> H/H:Donations&Gifts(Cash) | DG166: Cooperative Governance And Traditional Affairs | DH166: Local Government Support and Intervention Management | DI166: 15 | DJ166: 1 | DK166: 1 | DL166: 0 | DM166: 1 | DN166: 1202 | DO166: 1 | DP166: 1446 | DQ166: 1 | DR166: 1601 | DS166: 1 | DT166: 1691 | DU166: 1 | DV166: 1791 | DW166: Cooperative Governance And Traditional Affairs|Local Government Support and Intervention Management | DX166: 004 | DY166: 005 | DZ166: 004005 | EC166: 421 | ED166: 46 | EE166: 3 | EF166: Communications | EG166: 4 | EH166: Entity Oversight | EI166: 2 | EJ166: Broadcasting and Community Media | EK166: Transfers and subsidies | EL166: Departmental agencies and accounts | EM166: Departmental agencies (non-business entities) | EN166: 22615 | EO166: 23814 | EP166: 30005 | EQ166: 30005 | ER166: 30005 | ES166: 30669 | ET166: 32015 | EU166: 33776 | EV166: 0 | EW166: 0 | EX166: 0 | EY166: 32015 | EZ166: 33776 | FA166: 35634 | FB166: Communications|Entity Oversight | FC166: 003 | FD166: 004 | FE166: 002 | FF166: 046 | FG166: 003004 | FH166: 003046 | FI166: 46 | FJ166: 003004002046 | FL166: 003004046 | FT166: 7 | FU166: National Treasury | FV166: 6 | FW166: International Financial Relations | FX166: 5 | FY166: International Projects
W167: 6 | X167: Social benefits | AA167: =OFFSET($AA$233,9,MATCH(Summary!$G$7,Cover!$AB$233:$BV$233,0)) -> 0 | AB167: =OFFSET($AA$310,9,MATCH(Summary!$G$7,Cover!$AB$233:$BV$233,0)) -> 0 | AC167: =OFFSET($AA$387,9,MATCH(Summary!$G$7,Cover!$AB$233:$BV$233,0)) -> 0 | AD167: =OFFSET($AA$464,9,MATCH(Summary!$G$7,Cover!$AB$233:$BV$233,0)) -> 0 | AE167: =OFFSET($AA$541,9,MATCH(Summary!$G$7,Cover!$AB$233:$BV$233,0)) -> 0 | AF167: =OFFSET($AA$618,9,MATCH(Summary!$G$7,Cover!$AB$233:$BV$233,0)) -> 0 | DG167: Cooperative Governance And Traditional Affairs | DH167: Community Work Programme | DI167: 6 | DJ167: 1 | DK167: 1 | DL167: 0 | DM167: 1 | DN167: 306 | DO167: 1 | DP167: 426 | DQ167: 19 | DR167: 6491 | DS167: 19 | DT167: 7101 | DU167: 19 | DV167: 7421 | DW167: Cooperative Governance And Traditional Affairs|Community Work Programme | DX167: 004 | DY167: 006 | DZ167: 004006 | EC167: 421 | ED167: 49 | EE167: 3 | EF167: Communications | EG167: 4 | EH167: Entity Oversight | EI167: 2 | EJ167: Broadcasting and Community Media | EK167: Transfers and subsidies | EL167: Public corporations and private enterprises | EM167: Public corporations | EN167: 172927 | EO167: 182093 | EP167: 173766 | EQ167: 173766 | ER167: 173766 | ES167: 187421 | ET167: 199016 | EU167: 209963 | EV167: 0 | EW167: 0 | EX167: 0 | EY167: 199016 | EZ167: 209963 | FA167: 221511 | FB167: Communications|Entity Oversight | FC167: 003 | FD167: 004 | FE167: 002 | FF167: 049 | FG167: 003004 | FH167: 003049 | FI167: 49 | FJ167: 003004002049 | FL167: 003004049 | FT167: 7 | FU167: National Treasury | FV167: 7 | FW167: Civil and Military Pensions, Contributions to Funds and Other Benefits | FX167: 1 | FY167: Government Pensions Administration Agency
W168: 6 | X168: Other transfers to households | AA168: =OFFSET($AA$233,10,MATCH(Summary!$G$7,Cover!$AB$233:$BV$233,0)) -> 0 | AB168: =OFFSET($AA$310,10,MATCH(Summary!$G$7,Cover!$AB$233:$BV$233,0)) -> 0 | AC168: =OFFSET($AA$387,10,MATCH(Summary!$G$7,Cover!$AB$233:$BV$233,0)) -> 0 | AD168: =OFFSET($AA$464,10,MATCH(Summary!$G$7,Cover!$AB$233:$BV$233,0)) -> 0 | AE168: =OFFSET($AA$541,10,MATCH(Summary!$G$7,Cover!$AB$233:$BV$233,0)) -> 0 | AF168: =OFFSET($AA$618,10,MATCH(Summary!$G$7,Cover!$AB$233:$BV$233,0)) -> 0 | DG168: Cooperative Governance And Traditional Affairs | DH168: Community Work Programme | DI168: 7 | DJ168: 0 | DK168: 0 | DL168: 0 | DM168: 0 | DN168: 0 | DO168: 0 | DP168: 0 | DQ168: 6 | DR168: 3739 | DS168: 6 | DT168: 4090 | DU168: 6 | DV168: 4274 | DW168: Cooperative Governance And Traditional Affairs|Community Work Programme | DX168: 004 | DY168: 006 | DZ168: 004006 | EC168: 422 | ED168: 1 | EE168: 3 | EF168: Communications | EG168: 4 | EH168: Entity Oversight | EI168: 3 | EJ168: Communication and Branding | EK168: Current payments | EL168: Compensation of employees | EM168: Compensation of employees | EN168: 496 | EO168: 0 | EP168: 0 | EQ168: 0 | ER168: 0 | ES168: 0 | ET168: 0 | EU168: 0 | EV168: 0 | EW168: 0 | EX168: 0 | EY168: 0 | EZ168: 0 | FA168: 0 | FB168: Communications|Entity Oversight | FC168: 003 | FD168: 004 | FE168: 003 | FF168: 001 | FG168: 003004 | FH168: 003001 | FI168: 1 | FJ168: 003004003001 | FL168: 003004001 | FT168: 7 | FU168: National Treasury | FV168: 7 | FW168: Civil and Military Pensions, Contributions to Funds and Other Benefits | FX168: 2 | FY168: Civil Pensions and Contributions to Funds
AA169: =OFFSET($AA$233,11,MATCH(Summary!$G$7,Cover!$AB$233:$BV$233,0)) -> 0 | AB169: =OFFSET($AA$310,11,MATCH(Summary!$G$7,Cover!$AB$233:$BV$233,0)) -> 0 | AC169: =OFFSET($AA$387,11,MATCH(Summary!$G$7,Cover!$AB$233:$BV$233,0)) -> 0 | AD169: =OFFSET($AA$464,11,MATCH(Summary!$G$7,Cover!$AB$233:$BV$233,0)) -> 0 | AE169: =OFFSET($AA$541,11,MATCH(Summary!$G$7,Cover!$AB$233:$BV$233,0)) -> 0 | AF169: =OFFSET($AA$618,11,MATCH(Summary!$G$7,Cover!$AB$233:$BV$233,0)) -> 0 | DG169: Cooperative Governance And Traditional Affairs | DH169: Community Work Programme | DI169: 8 | DJ169: 1 | DK169: 1 | DL169: 0 | DM169: 0 | DN169: 0 | DO169: 0 | DP169: 0 | DQ169: 13 | DR169: 6006 | DS169: 13 | DT169: 6571 | DU169: 13 | DV169: 6867 | DW169: Cooperative Governance And Traditional Affairs|Community Work Programme | DX169: 004 | DY169: 006 | DZ169: 004006 | EC169: 422 | ED169: 2 | EE169: 3 | EF169: Communications | EG169: 4 | EH169: Entity Oversight | EI169: 3 | EJ169: Communication and Branding | EK169: Current payments | EL169: Goods and services | EM169: Goods and services | EN169: 4 | EO169: 0 | EP169: 492 | EQ169: 0 | ER169: 0 | ES169: 520 | ET169: 549 | EU169: 579 | EV169: 0 | EW169: 0 | EX169: 0 | EY169: 549 | EZ169: 579 | FA169: 611 | FB169: Communications|Entity Oversight | FC169: 003 | FD169: 004 | FE169: 003 | FF169: 002 | FG169: 003004 | FH169: 003002 | FI169: 2 | FJ169: 003004003002 | FL169: 003004002 | FT169: 7 | FU169: National Treasury | FV169: 7 | FW169: Civil and Military Pensions, Contributions to Funds and Other Benefits | FX169: 3 | FY169: Military Pensions and Other Benefits
AA170: =OFFSET($AA$233,12,MATCH(Summary!$G$7,Cover!$AB$233:$BV$233,0)) -> 0 | AB170: =OFFSET($AA$310,12,MATCH(Summary!$G$7,Cover!$AB$233:$BV$233,0)) -> 0 | AC170: =OFFSET($AA$387,12,MATCH(Summary!$G$7,Cover!$AB$233:$BV$233,0)) -> 0 | AD170: =OFFSET($AA$464,12,MATCH(Summary!$G$7,Cover!$AB$233:$BV$233,0)) -> 0 | AE170: =OFFSET($AA$541,12,MATCH(Summary!$G$7,Cover!$AB$233:$BV$233,0)) -> 0 | AF170: =OFFSET($AA$618,12,MATCH(Summary!$G$7,Cover!$AB$233:$BV$233,0)) -> 0 | DG170: Cooperative Governance And Traditional Affairs | DH170: Community Work Programme | DI170: 9 | DJ170: 0 | DK170: 0 | DL170: 0 | DM170: 0 | DN170: 0 | DO170: 0 | DP170: 0 | DQ170: 31 | DR170: 15531 | DS170: 31 | DT170: 16991 | DU170: 31 | DV170: 17501 | DW170: Cooperative Governance And Traditional Affairs|Community Work Programme | DX170: 004 | DY170: 006 | DZ170: 004006 | EC170: 422 | ED170: 46 | EE170: 3 | EF170: Communications | EG170: 4 | EH170: Entity Oversight | EI170: 3 | EJ170: Communication and Branding | EK170: Transfers and subsidies | EL170: Departmental agencies and accounts | EM170: Departmental agencies (non-business entities) | EN170: 538636 | EO170: 566442 | EP170: 599050 | EQ170: 595750 | ER170: 595750 | ES170: 620915 | ET170: 653337 | EU170: 694736 | EV170: 0 | EW170: 0 | EX170: 0 | EY170: 653337 | EZ170: 694736 | FA170: 735884 | FB170: Communications|Entity Oversight | FC170: 003 | FD170: 004 | FE170: 003 | FF170: 046 | FG170: 003004 | FH170: 003046 | FI170: 46 | FJ170: 003004003046 | FL170: 003004046 | FT170: 7 | FU170: National Treasury | FV170: 8 | FW170: Technical Support and Development Finance | FX170: 2 | FY170: Local Government Financial Management Support
AA171: =OFFSET($AA$233,13,MATCH(Summary!$G$7,Cover!$AB$233:$BV$233,0)) -> 0 | AB171: =OFFSET($AA$310,13,MATCH(Summary!$G$7,Cover!$AB$233:$BV$233,0)) -> 0 | AC171: =OFFSET($AA$387,13,MATCH(Summary!$G$7,Cover!$AB$233:$BV$233,0)) -> 0 | AD171: =OFFSET($AA$464,13,MATCH(Summary!$G$7,Cover!$AB$233:$BV$233,0)) -> 0 | AE171: =OFFSET($AA$541,13,MATCH(Summary!$G$7,Cover!$AB$233:$BV$233,0)) -> 0 | AF171: =OFFSET($AA$618,13,MATCH(Summary!$G$7,Cover!$AB$233:$BV$233,0)) -> 0 | DG171: Cooperative Governance And Traditional Affairs | DH171: Community Work Programme | DI171: 11 | DJ171: 0 | DK171: 0 | DL171: 0 | DM171: 1 | DN171: 405 | DO171: 1 | DP171: 563 | DQ171: 17 | DR171: 10370 | DS171: 17 | DT171: 11405 | DU171: 17 | DV171: 11818 | DW171: Cooperative Governance And Traditional Affairs|Community Work Programme | DX171: 004 | DY171: 006 | DZ171: 004006 | EC171: 423 | ED171: 1 | EE171: 3 | EF171: Communications | EG171: 4 | EH171: Entity Oversight | EI171: 4 | EJ171: Regulatory Institutions | EK171: Current payments | EL171: Compensation of employees | EM171: Compensation of employees | EN171: 0 | EO171: 0 | EP171: 1422 | EQ171: 1422 | ER171: 1422 | ES171: 1502 | ET171: 1616 | EU171: 1737 | EV171: 0 | EW171: 0 | EX171: 0 | EY171: 1616 | EZ171: 1737 | FA171: 1850 | FB171: Communications|Entity Oversight | FC171: 003 | FD171: 004 | FE171: 004 | FF171: 001 | FG171: 003004 | FH171: 003001 | FI171: 1 | FJ171: 003004004001 | FL171: 003004001 | FT171: 7 | FU171: National Treasury | FV171: 8 | FW171: Technical Support and Development Finance | FX171: 3 | FY171: Urban Development and Support
AA172: =OFFSET($AA$233,14,MATCH(Summary!$G$7,Cover!$AB$233:$BV$233,0)) -> 0 | AB172: =OFFSET($AA$310,14,MATCH(Summary!$G$7,Cover!$AB$233:$BV$233,0)) -> 0 | AC172: =OFFSET($AA$387,14,MATCH(Summary!$G$7,Cover!$AB$233:$BV$233,0)) -> 0 | AD172: =OFFSET($AA$464,14,MATCH(Summary!$G$7,Cover!$AB$233:$BV$233,0)) -> 0 | AE172: =OFFSET($AA$541,14,MATCH(Summary!$G$7,Cover!$AB$233:$BV$233,0)) -> 0 | AF172: =OFFSET($AA$618,14,MATCH(Summary!$G$7,Cover!$AB$233:$BV$233,0)) -> 0 | DG172: Cooperative Governance And Traditional Affairs | DH172: Community Work Programme | DI172: 13 | DJ172: 9 | DK172: 9 | DL172: 0 | DM172: 9 | DN172: 9150 | DO172: 9 | DP172: 14800 | DQ172: 11 | DR172: 9680 | DS172: 11 | DT172: 10590 | DU172: 11 | DV172: 10056 | DW172: Cooperative Governance And Traditional Affairs|Community Work Programme | DX172: 004 | DY172: 006 | DZ172: 004006 | EC172: 423 | ED172: 2 | EE172: 3 | EF172: Communications | EG172: 4 | EH172: Entity Oversight | EI172: 4 | EJ172: Regulatory Institutions | EK172: Current payments | EL172: Goods and services | EM172: Goods and services | EN172: 0 | EO172: 3 | EP172: 492 | EQ172: 0 | ER172: 0 | ES172: 520 | ET172: 549 | EU172: 579 | EV172: 0 | EW172: 0 | EX172: 0 | EY172: 549 | EZ172: 579 | FA172: 611 | FB172: Communications|Entity Oversight | FC172: 003 | FD172: 004 | FE172: 004 | FF172: 002 | FG172: 003004 | FH172: 003002 | FI172: 2 | FJ172: 003004004002 | FL172: 003004002 | FT172: 7 | FU172: National Treasury | FV172: 8 | FW172: Technical Support and Development Finance | FX172: 4 | FY172: Employment Creation Facilitation
AA173: =OFFSET($AA$233,15,MATCH(Summary!$G$7,Cover!$AB$233:$BV$233,0)) -> 0 | AB173: =OFFSET($AA$310,15,MATCH(Summary!$G$7,Cover!$AB$233:$BV$233,0)) -> 0 | AC173: =OFFSET($AA$387,15,MATCH(Summary!$G$7,Cover!$AB$233:$BV$233,0)) -> 0 | AD173: =OFFSET($AA$464,15,MATCH(Summary!$G$7,Cover!$AB$233:$BV$233,0)) -> 0 | AE173: =OFFSET($AA$541,15,MATCH(Summary!$G$7,Cover!$AB$233:$BV$233,0)) -> 0 | AF173: =OFFSET($AA$618,15,MATCH(Summary!$G$7,Cover!$AB$233:$BV$233,0)) -> 0 | DG173: Cooperative Governance And Traditional Affairs | DH173: Community Work Programme | DI173: 14 | DJ173: 7 | DK173: 7 | DL173: 0 | DM173: 7 | DN173: 9448 | DO173: 7 | DP173: 16850 | DQ173: 9 | DR173: 10161 | DS173: 9 | DT173: 11600 | DU173: 9 | DV173: 12222 | DW173: Cooperative Governance And Traditional Affairs|Community Work Programme | DX173: 004 | DY173: 006 | DZ173: 004006 | EC173: 423 | ED173: 46 | EE173: 3 | EF173: Communications | EG173: 4 | EH173: Entity Oversight | EI173: 4 | EJ173: Regulatory Institutions | EK173: Transfers and subsidies | EL173: Departmental agencies and accounts | EM173: Departmental agencies (non-business entities) | EN173: 475978 | EO173: 459543 | EP173: 522067 | EQ173: 522067 | ER173: 522067 | ES173: 538538 | ET173: 561114 | EU173: 591975 | EV173: 0 | EW173: 0 | EX173: 0 | EY173: 561114 | EZ173: 591975 | FA173: 624534 | FB173: Communications|Entity Oversight | FC173: 003 | FD173: 004 | FE173: 004 | FF173: 046 | FG173: 003004 | FH173: 003046 | FI173: 46 | FJ173: 003004004046 | FL173: 003004046 | FT173: 7 | FU173: National Treasury | FV173: 8 | FW173: Technical Support and Development Finance | FX173: 5 | FY173: Government Technical Advisory Centre
AA174: =OFFSET($AA$233,16,MATCH(Summary!$G$7,Cover!$AB$233:$BV$233,0)) -> 0 | AB174: =OFFSET($AA$310,16,MATCH(Summary!$G$7,Cover!$AB$233:$BV$233,0)) -> 0 | AC174: =OFFSET($AA$387,16,MATCH(Summary!$G$7,Cover!$AB$233:$BV$233,0)) -> 0 | AD174: =OFFSET($AA$464,16,MATCH(Summary!$G$7,Cover!$AB$233:$BV$233,0)) -> 0 | AE174: =OFFSET($AA$541,16,MATCH(Summary!$G$7,Cover!$AB$233:$BV$233,0)) -> 0 | AF174: =OFFSET($AA$618,16,MATCH(Summary!$G$7,Cover!$AB$233:$BV$233,0)) -> 0 | DG174: Cooperative Governance And Traditional Affairs | DH174: Community Work Programme | DI174: 15 | DJ174: 1 | DK174: 1 | DL174: 0 | DM174: 1 | DN174: 2950 | DO174: 1 | DP174: 4100 | DQ174: 1 | DR174: 1505 | DS174: 1 | DT174: 1646 | DU174: 1 | DV174: 1983 | DW174: Cooperative Governance And Traditional Affairs|Community Work Programme | DX174: 004 | DY174: 006 | DZ174: 004006 | EC174: 424 | ED174: 2 | EE174: 3 | EF174: Communications | EG174: 4 | EH174: Entity Oversight | EI174: 5 | EJ174: Strategy and Policy Alignment | EK174: Current payments | EL174: Goods and services | EM174: Goods and services | EN174: 7 | EO174: 0 | EP174: 0 | EQ174: 0 | ER174: 0 | ES174: 0 | ET174: 0 | EU174: 0 | EV174: 0 | EW174: 0 | EX174: 0 | EY174: 0 | EZ174: 0 | FA174: 0 | FB174: Communications|Entity Oversight | FC174: 003 | FD174: 004 | FE174: 005 | FF174: 002 | FG174: 003004 | FH174: 003002 | FI174: 2 | FJ174: 003004005002 | FL174: 003004002 | FT174: 7 | FU174: National Treasury | FV174: 8 | FW174: Technical Support and Development Finance | FX174: 6 | FY174: Infrastructure Development Support
AA175: =OFFSET($AA$233,17,MATCH(Summary!$G$7,Cover!$AB$233:$BV$233,0)) -> 0 | AB175: =OFFSET($AA$310,17,MATCH(Summary!$G$7,Cover!$AB$233:$BV$233,0)) -> 0 | AC175: =OFFSET($AA$387,17,MATCH(Summary!$G$7,Cover!$AB$233:$BV$233,0)) -> 0 | AD175: =OFFSET($AA$464,17,MATCH(Summary!$G$7,Cover!$AB$233:$BV$233,0)) -> 0 | AE175: =OFFSET($AA$541,17,MATCH(Summary!$G$7,Cover!$AB$233:$BV$233,0)) -> 0 | AF175: =OFFSET($AA$618,17,MATCH(Summary!$G$7,Cover!$AB$233:$BV$233,0)) -> 0 | DG175: Home Affairs | DH175: Administration | DI175: 3 | DJ175: 852 | DK175: 78 | DL175: 0 | DM175: 78 | DN175: 7769 | DO175: 474 | DP175: 47272 | DQ175: 474 | DR175: 55428 | DS175: 230 | DT175: 31235 | DU175: 230 | DV175: 33344 | DW175: Home Affairs|Administration | DX175: 005 | DY175: 001 | DZ175: 005001 | EC175: 424 | ED175: 1 | EE175: 4 | EF175: Cooperative Governance and Traditional Affairs | EG175: 1 | EH175: Administration | EI175: 1 | EJ175: Ministry | EK175: Current payments | EL175: Compensation of employees | EM175: Compensation of employees | EN175: 20359 | EO175: 21740 | EP175: 19680 | EQ175: 19680 | ER175: 19680 | ES175: 20821 | ET175: 22406 | EU175: 24086 | EV175: 0 | EW175: 0 | EX175: 0 | EY175: 22406 | EZ175: 24086 | FA175: 25652 | FB175: Cooperative Governance and Traditional Affairs|Administration | FC175: 004 | FD175: 001 | FE175: 001 | FF175: 001 | FG175: 004001 | FH175: 004001 | FI175: 1 | FJ175: 004001001001 | FL175: 004001001 | FT175: 7 | FU175: National Treasury | FV175: 9 | FW175: Revenue Administration | FX175: 1 | FY175: South African Revenue Service
AA176: =OFFSET($AA$233,18,MATCH(Summary!$G$7,Cover!$AB$233:$BV$233,0)) -> 0 | AB176: =OFFSET($AA$310,18,MATCH(Summary!$G$7,Cover!$AB$233:$BV$233,0)) -> 0 | AC176: =OFFSET($AA$387,18,MATCH(Summary!$G$7,Cover!$AB$233:$BV$233,0)) -> 0 | AD176: =OFFSET($AA$464,18,MATCH(Summary!$G$7,Cover!$AB$233:$BV$233,0)) -> 0 | AE176: =OFFSET($AA$541,18,MATCH(Summary!$G$7,Cover!$AB$233:$BV$233,0)) -> 0 | AF176: =OFFSET($AA$618,18,MATCH(Summary!$G$7,Cover!$AB$233:$BV$233,0)) -> 0 | DG176: Home Affairs | DH176: Administration | DI176: 4 | DJ176: 443 | DK176: 0 | DL176: 64 | DM176: 64 | DN176: 8899 | DO176: 57 | DP176: 7935 | DQ176: 57 | DR176: 9305 | DS176: 57 | DT176: 10806 | DU176: 57 | DV176: 11536 | DW176: Home Affairs|Administration | DX176: 005 | DY176: 001 | DZ176: 005001 | EC176: 425 | ED176: 2 | EE176: 4 | EF176: Cooperative Governance and Traditional Affairs | EG176: 1 | EH176: Administration | EI176: 1 | EJ176: Ministry | EK176: Current payments | EL176: Goods and services | EM176: Goods and services | EN176: 7316 | EO176: 10327 | EP176: 8330 | EQ176: 7030 | ER176: 7030 | ES176: 8619 | ET176: 9099 | EU176: 9599 | EV176: 0 | EW176: 0 | EX176: 0 | EY176: 9099 | EZ176: 9599 | FA176: 10127 | FB176: Cooperative Governance and Traditional Affairs|Administration | FC176: 004 | FD176: 001 | FE176: 001 | FF176: 002 | FG176: 004001 | FH176: 004002 | FI176: 2 | FJ176: 004001001002 | FL176: 004001002 | FT176: 7 | FU176: National Treasury | FV176: 10 | FW176: Financial Intelligence and State Security | FX176: 1 | FY176: Financial Intelligence Centre
AA177: =OFFSET($AA$233,19,MATCH(Summary!$G$7,Cover!$AB$233:$BV$233,0)) -> 0 | AB177: =OFFSET($AA$310,19,MATCH(Summary!$G$7,Cover!$AB$233:$BV$233,0)) -> 0 | AC177: =OFFSET($AA$387,19,MATCH(Summary!$G$7,Cover!$AB$233:$BV$233,0)) -> 0 | AD177: =OFFSET($AA$464,19,MATCH(Summary!$G$7,Cover!$AB$233:$BV$233,0)) -> 0 | AE177: =OFFSET($AA$541,19,MATCH(Summary!$G$7,Cover!$AB$233:$BV$233,0)) -> 0 | AF177: =OFFSET($AA$618,19,MATCH(Summary!$G$7,Cover!$AB$233:$BV$233,0)) -> 0 | DG177: Home Affairs | DH177: Administration | DI177: 5 | DJ177: 630 | DK177: 37 | DL177: 0 | DM177: 37 | DN177: 5222 | DO177: 37 | DP177: 5229 | DQ177: 37 | DR177: 6130 | DS177: 37 | DT177: 7120 | DU177: 37 | DV177: 7600 | DW177: Home Affairs|Administration | DX177: 005 | DY177: 001 | DZ177: 005001 | EC177: 425 | ED177: 57 | EE177: 4 | EF177: Cooperative Governance and Traditional Affairs | EG177: 1 | EH177: Administration | EI177: 1 | EJ177: Ministry | EK177: Payments for capital assets | EL177: Machinery and equipment | EM177: Other machinery and equipment | EN177: 0 | EO177: 19 | EP177: 0 | EQ177: 0 | ER177: 0 | ES177: 0 | ET177: 0 | EU177: 0 | EV177: 0 | EW177: 0 | EX177: 0 | EY177: 0 | EZ177: 0 | FA177: 0 | FB177: Cooperative Governance and Traditional Affairs|Administration | FC177: 004 | FD177: 001 | FE177: 001 | FF177: 057 | FG177: 004001 | FH177: 004057 | FI177: 57 | FJ177: 004001001057 | FL177: 004001057 | FT177: 7 | FU177: National Treasury | FV177: 10 | FW177: Financial Intelligence and State Security | FX177: 2 | FY177: Secret Services
AA178: =OFFSET($AA$233,20,MATCH(Summary!$G$7,Cover!$AB$233:$BV$233,0)) -> 0 | AB178: =OFFSET($AA$310,20,MATCH(Summary!$G$7,Cover!$AB$233:$BV$233,0)) -> 0 | AC178: =OFFSET($AA$387,20,MATCH(Summary!$G$7,Cover!$AB$233:$BV$233,0)) -> 0 | AD178: =OFFSET($AA$464,20,MATCH(Summary!$G$7,Cover!$AB$233:$BV$233,0)) -> 0 | AE178: =OFFSET($AA$541,20,MATCH(Summary!$G$7,Cover!$AB$233:$BV$233,0)) -> 0 | AF178: =OFFSET($AA$618,20,MATCH(Summary!$G$7,Cover!$AB$233:$BV$233,0)) -> 0 | DG178: Home Affairs | DH178: Administration | DI178: 6 | DJ178: 957 | DK178: 273 | DL178: 2 | DM178: 228 | DN178: 38640 | DO178: 263 | DP178: 44626 | DQ178: 263 | DR178: 52325 | DS178: 263 | DT178: 60768 | DU178: 263 | DV178: 64871 | DW178: Home Affairs|Administration | DX178: 005 | DY178: 001 | DZ178: 005001 | EC178: 426 | ED178: 52 | EE178: 4 | EF178: Cooperative Governance and Traditional Affairs | EG178: 1 | EH178: Administration | EI178: 1 | EJ178: Ministry | EK178: Transfers and subsidies | EL178: Households | EM178: Social benefits | EN178: 77 | EO178: 0 | EP178: 0 | EQ178: 0 | ER178: 0 | ES178: 0 | ET178: 0 | EU178: 0 | EV178: 0 | EW178: 0 | EX178: 0 | EY178: 0 | EZ178: 0 | FA178: 0 | FB178: Cooperative Governance and Traditional Affairs|Administration | FC178: 004 | FD178: 001 | FE178: 001 | FF178: 052 | FG178: 004001 | FH178: 004052 | FI178: 52 | FJ178: 004001001052 | FL178: 004001052 | FT178: 7 | FU178: National Treasury | FV178: 16 | FW178: Direct charge against the National Revenue Fund | FX178: 1 | FY178: Provincial Equitable Share
AA179: =OFFSET($AA$233,21,MATCH(Summary!$G$7,Cover!$AB$233:$BV$233,0)) -> 0 | AB179: =OFFSET($AA$310,21,MATCH(Summary!$G$7,Cover!$AB$233:$BV$233,0)) -> 0 | AC179: =OFFSET($AA$387,21,MATCH(Summary!$G$7,Cover!$AB$233:$BV$233,0)) -> 0 | AD179: =OFFSET($AA$464,21,MATCH(Summary!$G$7,Cover!$AB$233:$BV$233,0)) -> 0 | AE179: =OFFSET($AA$541,21,MATCH(Summary!$G$7,Cover!$AB$233:$BV$233,0)) -> 0 | AF179: =OFFSET($AA$618,21,MATCH(Summary!$G$7,Cover!$AB$233:$BV$233,0)) -> 0 | DG179: Home Affairs | DH179: Administration | DI179: 7 | DJ179: 2976 | DK179: 113 | DL179: 0 | DM179: 113 | DN179: 23642 | DO179: 115 | DP179: 24090 | DQ179: 115 | DR179: 28247 | DS179: 115 | DT179: 32805 | DU179: 115 | DV179: 35020 | DW179: Home Affairs|Administration | DX179: 005 | DY179: 001 | DZ179: 005001 | EC179: 431 | ED179: 1 | EE179: 4 | EF179: Cooperative Governance and Traditional Affairs | EG179: 1 | EH179: Administration | EI179: 2 | EJ179: Management | EK179: Current payments | EL179: Compensation of employees | EM179: Compensation of employees | EN179: 15288 | EO179: 11364 | EP179: 14160 | EQ179: 11660 | ER179: 11660 | ES179: 15022 | ET179: 16159 | EU179: 17371 | EV179: 0 | EW179: 0 | EX179: 0 | EY179: 16159 | EZ179: 17371 | FA179: 18500 | FB179: Cooperative Governance and Traditional Affairs|Administration | FC179: 004 | FD179: 001 | FE179: 002 | FF179: 001 | FG179: 004001 | FH179: 004001 | FI179: 1 | FJ179: 004001002001 | FL179: 004001001 | FT179: 7 | FU179: National Treasury | FV179: 16 | FW179: Direct charge against the National Revenue Fund | FX179: 2 | FY179: Debt-service costs
AA180: =OFFSET($AA$233,22,MATCH(Summary!$G$7,Cover!$AB$233:$BV$233,0)) -> 0 | AB180: =OFFSET($AA$310,22,MATCH(Summary!$G$7,Cover!$AB$233:$BV$233,0)) -> 0 | AC180: =OFFSET($AA$387,22,MATCH(Summary!$G$7,Cover!$AB$233:$BV$233,0)) -> 0 | AD180: =OFFSET($AA$464,22,MATCH(Summary!$G$7,Cover!$AB$233:$BV$233,0)) -> 0 | AE180: =OFFSET($AA$541,22,MATCH(Summary!$G$7,Cover!$AB$233:$BV$233,0)) -> 0 | AF180: =OFFSET($AA$618,22,MATCH(Summary!$G$7,Cover!$AB$233:$BV$233,0)) -> 0 | DG180: Home Affairs | DH180: Administration | DI180: 8 | DJ180: 981 | DK180: 106 | DL180: 2 | DM180: 108 | DN180: 28061 | DO180: 149 | DP180: 38761 | DQ180: 149 | DR180: 45449 | DS180: 149 | DT180: 52782 | DU180: 149 | DV180: 56346 | DW180: Home Affairs|Administration | DX180: 005 | DY180: 001 | DZ180: 005001 | EC180: 431 | ED180: 2 | EE180: 4 | EF180: Cooperative Governance and Traditional Affairs | EG180: 1 | EH180: Administration | EI180: 2 | EJ180: Management | EK180: Current payments | EL180: Goods and services | EM180: Goods and services | EN180: 4774 | EO180: 3035 | EP180: 3310 | EQ180: 6610 | ER180: 6610 | ES180: 3425 | ET180: 3616 | EU180: 3815 | EV180: 0 | EW180: 0 | EX180: 0 | EY180: 3616 | EZ180: 3815 | FA180: 4025 | FB180: Cooperative Governance and Traditional Affairs|Administration | FC180: 004 | FD180: 001 | FE180: 002 | FF180: 002 | FG180: 004001 | FH180: 004002 | FI180: 2 | FJ180: 004001002002 | FL180: 004001002 | FT180: 7 | FU180: National Treasury | FV180: 16 | FW180: Direct charge against the National Revenue Fund | FX180: 3 | FY180: General Fuel Levy Sharing with Metropolitan Municipalities
AA181: =OFFSET($AA$233,23,MATCH(Summary!$G$7,Cover!$AB$233:$BV$233,0)) -> 0 | AB181: =OFFSET($AA$310,23,MATCH(Summary!$G$7,Cover!$AB$233:$BV$233,0)) -> 0 | AC181: =OFFSET($AA$387,23,MATCH(Summary!$G$7,Cover!$AB$233:$BV$233,0)) -> 0 | AD181: =OFFSET($AA$464,23,MATCH(Summary!$G$7,Cover!$AB$233:$BV$233,0)) -> 0 | AE181: =OFFSET($AA$541,23,MATCH(Summary!$G$7,Cover!$AB$233:$BV$233,0)) -> 0 | AF181: =OFFSET($AA$618,23,MATCH(Summary!$G$7,Cover!$AB$233:$BV$233,0)) -> 0 | DG181: Home Affairs | DH181: Administration | DI181: 9 | DJ181: 252 | DK181: 73 | DL181: 2 | DM181: 75 | DN181: 23165 | DO181: 3 | DP181: 928 | DQ181: 3 | DR181: 1088 | DS181: 3 | DT181: 1263 | DU181: 3 | DV181: 1349 | DW181: Home Affairs|Administration | DX181: 005 | DY181: 001 | DZ181: 005001 | EC181: 431 | ED181: 1 | EE181: 4 | EF181: Cooperative Governance and Traditional Affairs | EG181: 1 | EH181: Administration | EI181: 3 | EJ181: Corporate Services | EK181: Current payments | EL181: Compensation of employees | EM181: Compensation of employees | EN181: 48693 | EO181: 64128 | EP181: 66938 | EQ181: 62938 | ER181: 62938 | ES181: 70808 | ET181: 76187 | EU181: 81901 | EV181: 0 | EW181: 0 | EX181: 0 | EY181: 76187 | EZ181: 81901 | FA181: 87225 | FB181: Cooperative Governance and Traditional Affairs|Administration | FC181: 004 | FD181: 001 | FE181: 003 | FF181: 001 | FG181: 004001 | FH181: 004001 | FI181: 1 | FJ181: 004001003001 | FL181: 004001001 | FT181: 7 | FU181: National Treasury | FV181: 16 | FW181: Direct charge against the National Revenue Fund | FX181: 4 | FY181: National Revenue Fund payments
AA182: =OFFSET($AA$233,24,MATCH(Summary!$G$7,Cover!$AB$233:$BV$233,0)) -> 0 | AB182: =OFFSET($AA$310,24,MATCH(Summary!$G$7,Cover!$AB$233:$BV$233,0)) -> 0 | AC182: =OFFSET($AA$387,24,MATCH(Summary!$G$7,Cover!$AB$233:$BV$233,0)) -> 0 | AD182: =OFFSET($AA$464,24,MATCH(Summary!$G$7,Cover!$AB$233:$BV$233,0)) -> 0 | AE182: =OFFSET($AA$541,24,MATCH(Summary!$G$7,Cover!$AB$233:$BV$233,0)) -> 0 | AF182: =OFFSET($AA$618,24,MATCH(Summary!$G$7,Cover!$AB$233:$BV$233,0)) -> 0 | DG182: Home Affairs | DH182: Administration | DI182: 10 | DJ182: 589 | DK182: 52 | DL182: 0 | DM182: 52 | DN182: 20047 | DO182: 123 | DP182: 47476 | DQ182: 123 | DR182: 55668 | DS182: 123 | DT182: 64650 | DU182: 123 | DV182: 69015 | DW182: Home Affairs|Administration | DX182: 005 | DY182: 001 | DZ182: 005001 | EC182: 432 | ED182: 2 | EE182: 4 | EF182: Cooperative Governance and Traditional Affairs | EG182: 1 | EH182: Administration | EI182: 3 | EJ182: Corporate Services | EK182: Current payments | EL182: Goods and services | EM182: Goods and services | EN182: 52753 | EO182: 68973 | EP182: 38755 | EQ182: 38745 | ER182: 38745 | ES182: 39347 | ET182: 41423 | EU182: 43756 | EV182: 0 | EW182: 0 | EX182: 0 | EY182: 41423 | EZ182: 43756 | FA182: 46163 | FB182: Cooperative Governance and Traditional Affairs|Administration | FC182: 004 | FD182: 001 | FE182: 003 | FF182: 002 | FG182: 004001 | FH182: 004002 | FI182: 2 | FJ182: 004001003002 | FL182: 004001002 | FT182: 8 | FU182: Planning, Monitoring and Evaluation | FV182: 1 | FW182: Administration | FX182: 1 | FY182: Departmental Management
AA183: =OFFSET($AA$233,25,MATCH(Summary!$G$7,Cover!$AB$233:$BV$233,0)) -> 0 | AB183: =OFFSET($AA$310,25,MATCH(Summary!$G$7,Cover!$AB$233:$BV$233,0)) -> 0 | AC183: =OFFSET($AA$387,25,MATCH(Summary!$G$7,Cover!$AB$233:$BV$233,0)) -> 0 | AD183: =OFFSET($AA$464,25,MATCH(Summary!$G$7,Cover!$AB$233:$BV$233,0)) -> 0 | AE183: =OFFSET($AA$541,25,MATCH(Summary!$G$7,Cover!$AB$233:$BV$233,0)) -> 0 | AF183: =OFFSET($AA$618,25,MATCH(Summary!$G$7,Cover!$AB$233:$BV$233,0)) -> 0 | DG183: Home Affairs | DH183: Administration | DI183: 11 | DJ183: 198 | DK183: 88 | DL183: 2 | DM183: 90 | DN183: 73048 | DO183: 33 | DP183: 26817 | DQ183: 33 | DR183: 31444 | DS183: 33 | DT183: 36517 | DU183: 33 | DV183: 38983 | DW183: Home Affairs|Administration | DX183: 005 | DY183: 001 | DZ183: 005001 | EC183: 432 | ED183: 57 | EE183: 4 | EF183: Cooperative Governance and Traditional Affairs | EG183: 1 | EH183: Administration | EI183: 3 | EJ183: Corporate Services | EK183: Payments for capital assets | EL183: Machinery and equipment | EM183: Other machinery and equipment | EN183: 9489 | EO183: 4722 | EP183: 1138 | EQ183: 1138 | ER183: 1138 | ES183: 1205 | ET183: 1272 | EU183: 1342 | EV183: 0 | EW183: 0 | EX183: 0 | EY183: 1272 | EZ183: 1342 | FA183: 1416 | FB183: Cooperative Governance and Traditional Affairs|Administration | FC183: 004 | FD183: 001 | FE183: 003 | FF183: 057 | FG183: 004001 | FH183: 004057 | FI183: 57 | FJ183: 004001003057 | FL183: 004001057 | FT183: 8 | FU183: Planning, Monitoring and Evaluation | FV183: 1 | FW183: Administration | FX183: 2 | FY183: Corporate and Financial Services
AA184: =OFFSET($AA$233,26,MATCH(Summary!$G$7,Cover!$AB$233:$BV$233,0)) -> 0 | AB184: =OFFSET($AA$310,26,MATCH(Summary!$G$7,Cover!$AB$233:$BV$233,0)) -> 0 | AC184: =OFFSET($AA$387,26,MATCH(Summary!$G$7,Cover!$AB$233:$BV$233,0)) -> 0 | AD184: =OFFSET($AA$464,26,MATCH(Summary!$G$7,Cover!$AB$233:$BV$233,0)) -> 0 | AE184: =OFFSET($AA$541,26,MATCH(Summary!$G$7,Cover!$AB$233:$BV$233,0)) -> 0 | AF184: =OFFSET($AA$618,26,MATCH(Summary!$G$7,Cover!$AB$233:$BV$233,0)) -> 0 | DG184: Home Affairs | DH184: Administration | DI184: 12 | DJ184: 207 | DK184: 53 | DL184: 0 | DM184: 53 | DN184: 50981 | DO184: 110 | DP184: 105938 | DQ184: 110 | DR184: 124216 | DS184: 110 | DT184: 144260 | DU184: 110 | DV184: 154001 | DW184: Home Affairs|Administration | DX184: 005 | DY184: 001 | DZ184: 005001 | EC184: 432 | ED184: 56 | EE184: 4 | EF184: Cooperative Governance and Traditional Affairs | EG184: 1 | EH184: Administration | EI184: 3 | EJ184: Corporate Services | EK184: Payments for capital assets | EL184: Machinery and equipment | EM184: Transport equipment | EN184: 0 | EO184: 1856 | EP184: 1950 | EQ184: 1950 | ER184: 1950 | ES184: 1990 | ET184: 2101 | EU184: 2217 | EV184: 0 | EW184: 0 | EX184: 0 | EY184: 2101 | EZ184: 2217 | FA184: 2339 | FB184: Cooperative Governance and Traditional Affairs|Administration | FC184: 004 | FD184: 001 | FE184: 003 | FF184: 056 | FG184: 004001 | FH184: 004056 | FI184: 56 | FJ184: 004001003056 | FL184: 004001056 | FT184: 8 | FU184: Planning, Monitoring and Evaluation | FV184: 1 | FW184: Administration | FX184: 3 | FY184: Information Technology Support
AA185: =OFFSET($AA$233,27,MATCH(Summary!$G$7,Cover!$AB$233:$BV$233,0)) -> 0 | AB185: =OFFSET($AA$310,27,MATCH(Summary!$G$7,Cover!$AB$233:$BV$233,0)) -> 0 | AC185: =OFFSET($AA$387,27,MATCH(Summary!$G$7,Cover!$AB$233:$BV$233,0)) -> 0 | AD185: =OFFSET($AA$464,27,MATCH(Summary!$G$7,Cover!$AB$233:$BV$233,0)) -> 0 | AE185: =OFFSET($AA$541,27,MATCH(Summary!$G$7,Cover!$AB$233:$BV$233,0)) -> 0 | AF185: =OFFSET($AA$618,27,MATCH(Summary!$G$7,Cover!$AB$233:$BV$233,0)) -> 0 | DG185: Home Affairs | DH185: Administration | DI185: 13 | DJ185: 112 | DK185: 67 | DL185: 1 | DM185: 68 | DN185: 83744 | DO185: 68 | DP185: 83846 | DQ185: 68 | DR185: 98312 | DS185: 68 | DT185: 114176 | DU185: 68 | DV185: 121885 | DW185: Home Affairs|Administration | DX185: 005 | DY185: 001 | DZ185: 005001 | EC185: 432 | ED185: 44 | EE185: 4 | EF185: Cooperative Governance and Traditional Affairs | EG185: 1 | EH185: Administration | EI185: 3 | EJ185: Corporate Services | EK185: Transfers and subsidies | EL185: Provinces and municipalities | EM185: Municipalities | EN185: 22 | EO185: 20 | EP185: 103 | EQ185: 103 | ER185: 103 | ES185: 106 | ET185: 112 | EU185: 118 | EV185: 0 | EW185: 0 | EX185: 0 | EY185: 112 | EZ185: 118 | FA185: 124 | FB185: Cooperative Governance and Traditional Affairs|Administration | FC185: 004 | FD185: 001 | FE185: 003 | FF185: 044 | FG185: 004001 | FH185: 004044 | FI185: 44 | FJ185: 004001003044 | FL185: 004001044 | FT185: 8 | FU185: Planning, Monitoring and Evaluation | FV185: 1 | FW185: Administration | FX185: 4 | FY185: Internal Audit and Enterprise Risk Management
AA186: =OFFSET($AA$233,28,MATCH(Summary!$G$7,Cover!$AB$233:$BV$233,0)) -> 0 | AB186: =OFFSET($AA$310,28,MATCH(Summary!$G$7,Cover!$AB$233:$BV$233,0)) -> 0 | AC186: =OFFSET($AA$387,28,MATCH(Summary!$G$7,Cover!$AB$233:$BV$233,0)) -> 0 | AD186: =OFFSET($AA$464,28,MATCH(Summary!$G$7,Cover!$AB$233:$BV$233,0)) -> 0 | AE186: =OFFSET($AA$541,28,MATCH(Summary!$G$7,Cover!$AB$233:$BV$233,0)) -> 0 | AF186: =OFFSET($AA$618,28,MATCH(Summary!$G$7,Cover!$AB$233:$BV$233,0)) -> 0 | DG186: Home Affairs | DH186: Administration | DI186: 14 | DJ186: 33 | DK186: 23 | DL186: 0 | DM186: 23 | DN186: 34170 | DO186: 22 | DP186: 32724 | DQ186: 22 | DR186: 38370 | DS186: 21 | DT186: 42536 | DU186: 21 | DV186: 45408 | DW186: Home Affairs|Administration | DX186: 005 | DY186: 001 | DZ186: 005001 | EC186: 433 | ED186: 53 | EE186: 4 | EF186: Cooperative Governance and Traditional Affairs | EG186: 1 | EH186: Administration | EI186: 3 | EJ186: Corporate Services | EK186: Transfers and subsidies | EL186: Households | EM186: Other transfers to households | EN186: 0 | EO186: 20 | EP186: 0 | EQ186: 0 | ER186: 0 | ES186: 0 | ET186: 0 | EU186: 0 | EV186: 0 | EW186: 0 | EX186: 0 | EY186: 0 | EZ186: 0 | FA186: 0 | FB186: Cooperative Governance and Traditional Affairs|Administration | FC186: 004 | FD186: 001 | FE186: 003 | FF186: 053 | FG186: 004001 | FH186: 004053 | FI186: 53 | FJ186: 004001003053 | FL186: 004001053 | FT186: 8 | FU186: Planning, Monitoring and Evaluation | FV186: 1 | FW186: Administration | FX186: 5 | FY186: Ministerial Support
AA187: =OFFSET($AA$233,29,MATCH(Summary!$G$7,Cover!$AB$233:$BV$233,0)) -> 0 | AB187: =OFFSET($AA$310,29,MATCH(Summary!$G$7,Cover!$AB$233:$BV$233,0)) -> 0 | AC187: =OFFSET($AA$387,29,MATCH(Summary!$G$7,Cover!$AB$233:$BV$233,0)) -> 0 | AD187: =OFFSET($AA$464,29,MATCH(Summary!$G$7,Cover!$AB$233:$BV$233,0)) -> 0 | AE187: =OFFSET($AA$541,29,MATCH(Summary!$G$7,Cover!$AB$233:$BV$233,0)) -> 0 | AF187: =OFFSET($AA$618,29,MATCH(Summary!$G$7,Cover!$AB$233:$BV$233,0)) -> 0 | DG187: Home Affairs | DH187: Administration | DI187: 15 | DJ187: 10 | DK187: 8 | DL187: 2 | DM187: 10 | DN187: 18067 | DO187: 11 | DP187: 19898 | DQ187: 11 | DR187: 23331 | DS187: 11 | DT187: 27096 | DU187: 11 | DV187: 28926 | DW187: Home Affairs|Administration | DX187: 005 | DY187: 001 | DZ187: 005001 | EC187: 433 | ED187: 52 | EE187: 4 | EF187: Cooperative Governance and Traditional Affairs | EG187: 1 | EH187: Administration | EI187: 3 | EJ187: Corporate Services | EK187: Transfers and subsidies | EL187: Households | EM187: Social benefits | EN187: 285 | EO187: 127 | EP187: 0 | EQ187: 10 | ER187: 10 | ES187: 0 | ET187: 0 | EU187: 0 | EV187: 0 | EW187: 0 | EX187: 0 | EY187: 0 | EZ187: 0 | FA187: 0 | FB187: Cooperative Governance and Traditional Affairs|Administration | FC187: 004 | FD187: 001 | FE187: 003 | FF187: 052 | FG187: 004001 | FH187: 004052 | FI187: 52 | FJ187: 004001003052 | FL187: 004001052 | FT187: 8 | FU187: Planning, Monitoring and Evaluation | FV187: 2 | FW187: Outcomes Monitoring and Evaluation | FX187: 1 | FY187: Programme Management for Outcomes Monitoring and Evaluation
AA188: =OFFSET($AA$233,30,MATCH(Summary!$G$7,Cover!$AB$233:$BV$233,0)) -> 0 | AB188: =OFFSET($AA$310,30,MATCH(Summary!$G$7,Cover!$AB$233:$BV$233,0)) -> 0 | AC188: =OFFSET($AA$387,30,MATCH(Summary!$G$7,Cover!$AB$233:$BV$233,0)) -> 0 | AD188: =OFFSET($AA$464,30,MATCH(Summary!$G$7,Cover!$AB$233:$BV$233,0)) -> 0 | AE188: =OFFSET($AA$541,30,MATCH(Summary!$G$7,Cover!$AB$233:$BV$233,0)) -> 0 | AF188: =OFFSET($AA$618,30,MATCH(Summary!$G$7,Cover!$AB$233:$BV$233,0)) -> 0 | DG188: Home Affairs | DH188: Administration | DI188: 16 | DJ188: 3 | DK188: 3 | DL188: 0 | DM188: 3 | DN188: 4975 | DO188: 3 | DP188: 4981 | DQ188: 3 | DR188: 5840 | DS188: 3 | DT188: 6783 | DU188: 3 | DV188: 7241 | DW188: Home Affairs|Administration | DX188: 005 | DY188: 001 | DZ188: 005001 | EC188: 434 | ED188: 1 | EE188: 4 | EF188: Cooperative Governance and Traditional Affairs | EG188: 1 | EH188: Administration | EI188: 4 | EJ188: Financial Services | EK188: Current payments | EL188: Compensation of employees | EM188: Compensation of employees | EN188: 18674 | EO188: 18675 | EP188: 24710 | EQ188: 23710 | ER188: 23710 | ES188: 26169 | ET188: 28136 | EU188: 30246 | EV188: 0 | EW188: 0 | EX188: 0 | EY188: 28136 | EZ188: 30246 | FA188: 32212 | FB188: Cooperative Governance and Traditional Affairs|Administration | FC188: 004 | FD188: 001 | FE188: 004 | FF188: 001 | FG188: 004001 | FH188: 004001 | FI188: 1 | FJ188: 004001004001 | FL188: 004001001 | FT188: 8 | FU188: Planning, Monitoring and Evaluation | FV188: 2 | FW188: Outcomes Monitoring and Evaluation | FX188: 2 | FY188: Outcomes Support
AA189: =OFFSET($AA$233,31,MATCH(Summary!$G$7,Cover!$AB$233:$BV$233,0)) -> 0 | AB189: =OFFSET($AA$310,31,MATCH(Summary!$G$7,Cover!$AB$233:$BV$233,0)) -> 0 | AC189: =OFFSET($AA$387,31,MATCH(Summary!$G$7,Cover!$AB$233:$BV$233,0)) -> 0 | AD189: =OFFSET($AA$464,31,MATCH(Summary!$G$7,Cover!$AB$233:$BV$233,0)) -> 0 | AE189: =OFFSET($AA$541,31,MATCH(Summary!$G$7,Cover!$AB$233:$BV$233,0)) -> 0 | AF189: =OFFSET($AA$618,31,MATCH(Summary!$G$7,Cover!$AB$233:$BV$233,0)) -> 0 | DG189: Home Affairs | DH189: Citizen Affairs | DI189: 3 | DJ189: 0 | DK189: 420 | DL189: 0 | DM189: 420 | DN189: 41868 | DO189: 400 | DP189: 55630 | DQ189: 400 | DR189: 52496 | DS189: 305 | DT189: 43273 | DU189: 305 | DV189: 46212 | DW189: Home Affairs|Citizen Affairs | DX189: 005 | DY189: 002 | DZ189: 005002 | EC189: 434 | ED189: 2 | EE189: 4 | EF189: Cooperative Governance and Traditional Affairs | EG189: 1 | EH189: Administration | EI189: 4 | EJ189: Financial Services | EK189: Current payments | EL189: Goods and services | EM189: Goods and services | EN189: 10325 | EO189: 8276 | EP189: 11678 | EQ189: 10578 | ER189: 10578 | ES189: 12337 | ET189: 13046 | EU189: 13764 | EV189: 0 | EW189: 0 | EX189: 0 | EY189: 13046 | EZ189: 13764 | FA189: 14521 | FB189: Cooperative Governance and Traditional Affairs|Administration | FC189: 004 | FD189: 001 | FE189: 004 | FF189: 002 | FG189: 004001 | FH189: 004002 | FI189: 2 | FJ189: 004001004002 | FL189: 004001002 | FT189: 8 | FU189: Planning, Monitoring and Evaluation | FV189: 2 | FW189: Outcomes Monitoring and Evaluation | FX189: 3 | FY189: Evaluation and Research
AA190: =OFFSET($AA$233,32,MATCH(Summary!$G$7,Cover!$AB$233:$BV$233,0)) -> 0 | AB190: =OFFSET($AA$310,32,MATCH(Summary!$G$7,Cover!$AB$233:$BV$233,0)) -> 0 | AC190: =OFFSET($AA$387,32,MATCH(Summary!$G$7,Cover!$AB$233:$BV$233,0)) -> 0 | AD190: =OFFSET($AA$464,32,MATCH(Summary!$G$7,Cover!$AB$233:$BV$233,0)) -> 0 | AE190: =OFFSET($AA$541,32,MATCH(Summary!$G$7,Cover!$AB$233:$BV$233,0)) -> 0 | AF190: =OFFSET($AA$618,32,MATCH(Summary!$G$7,Cover!$AB$233:$BV$233,0)) -> 0 | DG190: Home Affairs | DH190: Citizen Affairs | DI190: 4 | DJ190: 0 | DK190: 0 | DL190: 0 | DM190: 1 | DN190: 139 | DO190: 1 | DP190: 246 | DQ190: 1 | DR190: 183 | DS190: 1 | DT190: 198 | DU190: 1 | DV190: 212 | DW190: Home Affairs|Citizen Affairs | DX190: 005 | DY190: 002 | DZ190: 005002 | EC190: 434 | ED190: 57 | EE190: 4 | EF190: Cooperative Governance and Traditional Affairs | EG190: 1 | EH190: Administration | EI190: 4 | EJ190: Financial Services | EK190: Payments for capital assets | EL190: Machinery and equipment | EM190: Other machinery and equipment | EN190: 6 | EO190: 17 | EP190: 1986 | EQ190: 1986 | ER190: 1986 | ES190: 2063 | ET190: 2165 | EU190: 2284 | EV190: 0 | EW190: 0 | EX190: 0 | EY190: 2165 | EZ190: 2284 | FA190: 2410 | FB190: Cooperative Governance and Traditional Affairs|Administration | FC190: 004 | FD190: 001 | FE190: 004 | FF190: 057 | FG190: 004001 | FH190: 004057 | FI190: 57 | FJ190: 004001004057 | FL190: 004001057 | FT190: 8 | FU190: Planning, Monitoring and Evaluation | FV190: 3 | FW190: Institutional Performance Monitoring and Evaluation | FX190: 1 | FY190: Programme Management for Institutional Performance Monitoring and Evaluation
AA191: =OFFSET($AA$233,33,MATCH(Summary!$G$7,Cover!$AB$233:$BV$233,0)) -> 0 | AB191: =OFFSET($AA$310,33,MATCH(Summary!$G$7,Cover!$AB$233:$BV$233,0)) -> 0 | AC191: =OFFSET($AA$387,33,MATCH(Summary!$G$7,Cover!$AB$233:$BV$233,0)) -> 0 | AD191: =OFFSET($AA$464,33,MATCH(Summary!$G$7,Cover!$AB$233:$BV$233,0)) -> 0 | AE191: =OFFSET($AA$541,33,MATCH(Summary!$G$7,Cover!$AB$233:$BV$233,0)) -> 0 | AF191: =OFFSET($AA$618,33,MATCH(Summary!$G$7,Cover!$AB$233:$BV$233,0)) -> 0 | DG191: Home Affairs | DH191: Citizen Affairs | DI191: 5 | DJ191: 0 | DK191: 282 | DL191: 0 | DM191: 282 | DN191: 39830 | DO191: 251 | DP191: 49460 | DQ191: 251 | DR191: 46674 | DS191: 251 | DT191: 50457 | DU191: 251 | DV191: 53884 | DW191: Home Affairs|Citizen Affairs | DX191: 005 | DY191: 002 | DZ191: 005002 | EC191: 435 | ED191: 52 | EE191: 4 | EF191: Cooperative Governance and Traditional Affairs | EG191: 1 | EH191: Administration | EI191: 4 | EJ191: Financial Services | EK191: Transfers and subsidies | EL191: Households | EM191: Social benefits | EN191: 64 | EO191: 18 | EP191: 0 | EQ191: 0 | ER191: 0 | ES191: 0 | ET191: 0 | EU191: 0 | EV191: 0 | EW191: 0 | EX191: 0 | EY191: 0 | EZ191: 0 | FA191: 0 | FB191: Cooperative Governance and Traditional Affairs|Administration | FC191: 004 | FD191: 001 | FE191: 004 | FF191: 052 | FG191: 004001 | FH191: 004052 | FI191: 52 | FJ191: 004001004052 | FL191: 004001052 | FT191: 8 | FU191: Planning, Monitoring and Evaluation | FV191: 3 | FW191: Institutional Performance Monitoring and Evaluation | FX191: 2 | FY191: Management Performance Monitoring and Support
AA192: =OFFSET($AA$233,34,MATCH(Summary!$G$7,Cover!$AB$233:$BV$233,0)) -> 0 | AB192: =OFFSET($AA$310,34,MATCH(Summary!$G$7,Cover!$AB$233:$BV$233,0)) -> 0 | AC192: =OFFSET($AA$387,34,MATCH(Summary!$G$7,Cover!$AB$233:$BV$233,0)) -> 0 | AD192: =OFFSET($AA$464,34,MATCH(Summary!$G$7,Cover!$AB$233:$BV$233,0)) -> 0 | AE192: =OFFSET($AA$541,34,MATCH(Summary!$G$7,Cover!$AB$233:$BV$233,0)) -> 0 | AF192: =OFFSET($AA$618,34,MATCH(Summary!$G$7,Cover!$AB$233:$BV$233,0)) -> 0 | DG192: Home Affairs | DH192: Citizen Affairs | DI192: 6 | DJ192: 5204 | DK192: 4970 | DL192: 0 | DM192: 4753 | DN192: 806137 | DO192: 4228 | DP192: 1000430 | DQ192: 4228 | DR192: 944069 | DS192: 4228 | DT192: 1020602 | DU192: 4228 | DV192: 1089915 | DW192: Home Affairs|Citizen Affairs | DX192: 005 | DY192: 002 | DZ192: 005002 | EC192: 435 | ED192: 63 | EE192: 4 | EF192: Cooperative Governance and Traditional Affairs | EG192: 1 | EH192: Administration | EI192: 4 | EJ192: Financial Services | EK192: Payments for financial assets | EL192: Payments for financial assets | EM192: Payments for financial assets | EN192: 914 | EO192: 173 | EP192: 0 | EQ192: 100 | ER192: 100 | ES192: 0 | ET192: 0 | EU192: 0 | EV192: 0 | EW192: 0 | EX192: 0 | EY192: 0 | EZ192: 0 | FA192: 0 | FB192: Cooperative Governance and Traditional Affairs|Administration | FC192: 004 | FD192: 001 | FE192: 004 | FF192: 063 | FG192: 004001 | FH192: 004063 | FI192: 63 | FJ192: 004001004063 | FL192: 004001063 | FT192: 8 | FU192: Planning, Monitoring and Evaluation | FV192: 3 | FW192: Institutional Performance Monitoring and Evaluation | FX192: 3 | FY192: Presidential Frontline Service Delivery Performance Monitoring and Support
AA193: =OFFSET($AA$233,35,MATCH(Summary!$G$7,Cover!$AB$233:$BV$233,0)) -> 0 | AB193: =OFFSET($AA$310,35,MATCH(Summary!$G$7,Cover!$AB$233:$BV$233,0)) -> 0 | AC193: =OFFSET($AA$387,35,MATCH(Summary!$G$7,Cover!$AB$233:$BV$233,0)) -> 0 | AD193: =OFFSET($AA$464,35,MATCH(Summary!$G$7,Cover!$AB$233:$BV$233,0)) -> 0 | AE193: =OFFSET($AA$541,35,MATCH(Summary!$G$7,Cover!$AB$233:$BV$233,0)) -> 0 | AF193: =OFFSET($AA$618,35,MATCH(Summary!$G$7,Cover!$AB$233:$BV$233,0)) -> 0 | DG193: Home Affairs | DH193: Citizen Affairs | DI193: 7 | DJ193: 103 | DK193: 976 | DL193: 0 | DM193: 976 | DN193: 204365 | DO193: 1012 | DP193: 295629 | DQ193: 1012 | DR193: 278974 | DS193: 1012 | DT193: 301590 | DU193: 1012 | DV193: 322073 | DW193: Home Affairs|Citizen Affairs | DX193: 005 | DY193: 002 | DZ193: 005002 | EC193: 435 | ED193: 1 | EE193: 4 | EF193: Cooperative Governance and Traditional Affairs | EG193: 1 | EH193: Administration | EI193: 5 | EJ193: Internal Audit and Risk Management | EK193: Current payments | EL193: Compensation of employees | EM193: Compensation of employees | EN193: 6099 | EO193: 5937 | EP193: 8175 | EQ193: 7175 | ER193: 7175 | ES193: 8655 | ET193: 9312 | EU193: 10006 | EV193: 0 | EW193: 0 | EX193: 0 | EY193: 9312 | EZ193: 10006 | FA193: 10656 | FB193: Cooperative Governance and Traditional Affairs|Administration | FC193: 004 | FD193: 001 | FE193: 005 | FF193: 001 | FG193: 004001 | FH193: 004001 | FI193: 1 | FJ193: 004001005001 | FL193: 004001001 | FT193: 8 | FU193: Planning, Monitoring and Evaluation | FV193: 3 | FW193: Institutional Performance Monitoring and Evaluation | FX193: 4 | FY193: Macro Monitoring and Evaluation Policy and Capacity Building
AA194: =OFFSET($AA$233,36,MATCH(Summary!$G$7,Cover!$AB$233:$BV$233,0)) -> 0 | AB194: =OFFSET($AA$310,36,MATCH(Summary!$G$7,Cover!$AB$233:$BV$233,0)) -> 0 | AC194: =OFFSET($AA$387,36,MATCH(Summary!$G$7,Cover!$AB$233:$BV$233,0)) -> 0 | AD194: =OFFSET($AA$464,36,MATCH(Summary!$G$7,Cover!$AB$233:$BV$233,0)) -> 0 | AE194: =OFFSET($AA$541,36,MATCH(Summary!$G$7,Cover!$AB$233:$BV$233,0)) -> 0 | AF194: =OFFSET($AA$618,36,MATCH(Summary!$G$7,Cover!$AB$233:$BV$233,0)) -> 0 | DG194: Home Affairs | DH194: Citizen Affairs | DI194: 8 | DJ194: 514 | DK194: 889 | DL194: 0 | DM194: 889 | DN194: 231167 | DO194: 699 | DP194: 253578 | DQ194: 699 | DR194: 239292 | DS194: 699 | DT194: 258691 | DU194: 699 | DV194: 276260 | DW194: Home Affairs|Citizen Affairs | DX194: 005 | DY194: 002 | DZ194: 005002 | EC194: 436 | ED194: 2 | EE194: 4 | EF194: Cooperative Governance and Traditional Affairs | EG194: 1 | EH194: Administration | EI194: 5 | EJ194: Internal Audit and Risk Management | EK194: Current payments | EL194: Goods and services | EM194: Goods and services | EN194: 5758 | EO194: 1498 | EP194: 4802 | EQ194: 9265 | ER194: 9265 | ES194: 4967 | ET194: 5243 | EU194: 5534 | EV194: 0 | EW194: 0 | EX194: 0 | EY194: 5243 | EZ194: 5534 | FA194: 5838 | FB194: Cooperative Governance and Traditional Affairs|Administration | FC194: 004 | FD194: 001 | FE194: 005 | FF194: 002 | FG194: 004001 | FH194: 004002 | FI194: 2 | FJ194: 004001005002 | FL194: 004001002 | FT194: 8 | FU194: Planning, Monitoring and Evaluation | FV194: 4 | FW194: National Planning | FX194: 1 | FY194: Programme Management for National Planning
AA195: =OFFSET($AA$233,37,MATCH(Summary!$G$7,Cover!$AB$233:$BV$233,0)) -> 0 | AB195: =OFFSET($AA$310,37,MATCH(Summary!$G$7,Cover!$AB$233:$BV$233,0)) -> 0 | AC195: =OFFSET($AA$387,37,MATCH(Summary!$G$7,Cover!$AB$233:$BV$233,0)) -> 0 | AD195: =OFFSET($AA$464,37,MATCH(Summary!$G$7,Cover!$AB$233:$BV$233,0)) -> 0 | AE195: =OFFSET($AA$541,37,MATCH(Summary!$G$7,Cover!$AB$233:$BV$233,0)) -> 0 | AF195: =OFFSET($AA$618,37,MATCH(Summary!$G$7,Cover!$AB$233:$BV$233,0)) -> 0 | DG195: Home Affairs | DH195: Citizen Affairs | DI195: 9 | DJ195: 10 | DK195: 69 | DL195: 0 | DM195: 69 | DN195: 21329 | DO195: 35 | DP195: 15094 | DQ195: 35 | DR195: 14244 | DS195: 35 | DT195: 15398 | DU195: 35 | DV195: 16444 | DW195: Home Affairs|Citizen Affairs | DX195: 005 | DY195: 002 | DZ195: 005002 | EC195: 436 | ED195: 53 | EE195: 4 | EF195: Cooperative Governance and Traditional Affairs | EG195: 1 | EH195: Administration | EI195: 5 | EJ195: Internal Audit and Risk Management | EK195: Transfers and subsidies | EL195: Households | EM195: Other transfers to households | EN195: 0 | EO195: 0 | EP195: 0 | EQ195: 37 | ER195: 37 | ES195: 0 | ET195: 0 | EU195: 0 | EV195: 0 | EW195: 0 | EX195: 0 | EY195: 0 | EZ195: 0 | FA195: 0 | FB195: Cooperative Governance and Traditional Affairs|Administration | FC195: 004 | FD195: 001 | FE195: 005 | FF195: 053 | FG195: 004001 | FH195: 004053 | FI195: 53 | FJ195: 004001005053 | FL195: 004001053 | FT195: 8 | FU195: Planning, Monitoring and Evaluation | FV195: 4 | FW195: National Planning | FX195: 2 | FY195: Research and Policy Services
